Vendor Name,Corporate Subjective Description,Invoice Payment Amount,Payment Date
2M HEATH & HOMECARE SERVICES LTD&&ISHC3873,Home Care / Domiciliary,926.23,11/08/2017
2M HEATH & HOMECARE SERVICES LTD&&ISHC3873,Home Care / Domiciliary,1073.52,11/08/2017
2M HEATH & HOMECARE SERVICES LTD&&ISHC3873,Home Care / Domiciliary,1361.38,11/08/2017
2M HEATH & HOMECARE SERVICES LTD&&ISHC3873,Home Care / Domiciliary,1458.62,11/08/2017
2M HEATH & HOMECARE SERVICES LTD&&ISHC3873,Home Care / Domiciliary,3104.03,11/08/2017
2M HEATH & HOMECARE SERVICES LTD&&ISHC3873,Home Care / Domiciliary,4443.72,11/08/2017
2M HEATH & HOMECARE SERVICES LTD&&ISHC3873,Home Care / Domiciliary,17307.08,11/08/2017
ABBERDALE LIMITED&&SSAROE40419,Residential,1738.08,25/08/2017
Abbey Court Nursing & Residential Homes Ltd &&SSARO03285,Residential,2042.08,25/08/2017
ABBEYFIELDS EXTRA CARE&&SSAROE52835,Residential,11773.44,25/08/2017
ABBEY HEALTHCARE (AARON COURT) LTD&&SSARO2996,Nursing,6394.42,25/08/2017
ABBEY HEALTHCARE (AARON COURT) LTD&&SSARO2996,Private Contractors,6394.42,25/08/2017
ABBEY HEALTHCARE (AARON COURT) LTD&&SSARO2996,Residential,6394.42,25/08/2017
ABBOTSFORD CARE LTD&&SSARO2339,Residential,-1176.64,25/08/2017
ABBOTSFORD CARE LTD&&SSARO2339,Residential,-1162.8,25/08/2017
ABBOTSFORD CARE LTD&&SSARO2339,Residential,581.4,25/08/2017
ABBOTSFORD CARE LTD&&SSARO2339,Residential,8572.08,25/08/2017
ABSOLUTE CARE AGENCY&&ISHC2620,Home Care / Domiciliary,664.9,11/08/2017
ABSOLUTE CARE AGENCY&&ISHC2620,Home Care / Domiciliary,962.33,11/08/2017
ABSOLUTE CARE AGENCY&&ISHC2620,Home Care / Domiciliary,14122.62,11/08/2017
ACORN LODGE&&SSARO3214,Residential,3490,25/08/2017
ADEN HOUSE LTD&&SSARO2794,Residential,2016.4,25/08/2017
ADL PLC RE ALLAMBIE COURT NURSING HOME&&SSAROE57669,Private Contractors,1859.08,25/08/2017
Adullam Homes Housing Association Ltd,Other Agency & Cont Services,1724.02,25/08/2017
Adullam Homes Housing Association Ltd,Other Agency & Cont Services,2060.13,25/08/2017
Adullam Homes Housing Association Ltd,Other Agency & Cont Services,4688.67,25/08/2017
Adullam Homes Housing Association Ltd,Voluntary Associations,35667,03/08/2017
Adullam Homes Housing Association Ltd,Voluntary Associations,35667,31/08/2017
Advance Housing & Support Ltd    1,Supported Living,540.72,25/08/2017
Advance Housing & Support Ltd    1,Supported Living,561.6,25/08/2017
Advance Housing & Support Ltd    1,Supported Living,580.32,25/08/2017
Advance Housing & Support Ltd    1,Supported Living,645.86,25/08/2017
Advance Housing & Support Ltd    1,Supported Living,1141.52,25/08/2017
Advance Housing & Support Ltd    1,Supported Living,1209.11,25/08/2017
Advance Housing & Support Ltd    1,Supported Living,1832.44,25/08/2017
Advance Housing & Support Ltd    1,Supported Living,1879.68,25/08/2017
Advance Housing & Support Ltd    1,Supported Living,1952.6,25/08/2017
AHAVAH HEALTHCARELTD&&SSARO1638,Residential,1944.75,25/08/2017
AHAVAH HEALTHCARELTD&&SSARO1638,Residential,27163.96,25/08/2017
AITCH CARE HOMES FLEETWOOD HOUSE&&SSARO3305,Residential,7600,25/08/2017
AKARI CARE LTD T/A SEALE PASTURES&&SSAROE47014,Residential,1110.66,25/08/2017
AKARI CARE LTD T/A SEALE PASTURES&&SSAROE47014,Residential,1804.75,25/08/2017
AKARI CARE LTD T/A SEALE PASTURES&&SSAROE47014,Residential,7952.48,25/08/2017
ALA CARE LTD&&SSAROE1044,Residential,13445.32,25/08/2017
ALA CARE LTD&&SSAROE182,Residential,-949,25/08/2017
ALA CARE LTD&&SSAROE182,Residential,-794.28,25/08/2017
ALA CARE LTD&&SSAROE182,Residential,-556,25/08/2017
ALA CARE LTD&&SSAROE182,Residential,556,25/08/2017
ALA CARE LTD&&SSAROE182,Residential,39653,25/08/2017
ALA CARE LTD&&SSAROE40269,Residential,-758.57,25/08/2017
ALA CARE LTD&&SSAROE40269,Residential,1062,25/08/2017
ALA CARE LTD&&SSAROE40269,Residential,33660,25/08/2017
ALEXANDRA HOUSE&&SSAROE1111,Residential,685.72,25/08/2017
ALEXANDRA HOUSE&&SSAROE1111,Residential,1200,25/08/2017
ALEXANDRA HOUSE&&SSAROE1111,Residential,2400,25/08/2017
ALEXANDRA HOUSE&&SSAROE1111,Residential,2600,25/08/2017
ALISON PICKERING T/A DISHLEY GRANGE PRE SKOOL&&EYRS1763,Grants,591.6,17/08/2017
ALISON PICKERING T/A DISHLEY GRANGE PRE SKOOL&&EYRS1763,Grants,2138.46,17/08/2017
REDACTED PERSONAL DATA,Miscellaneous Insurance,62491,21/08/2017
ALLAG CARE LIMITED  GWENDOLEN&&SSARO3351,Residential,3283.93,25/08/2017
ALLAG CARE LIMITED  GWENDOLEN&&SSARO3351,Residential,17470.5,25/08/2017
ALLAG CARE LTD T/A SYCAMORE COTTAGE&&SSAROE44469,Residential,11420,25/08/2017
ALLCONTRAST LTD & GIVECARE LTD&&SSAROE2374,Private Contractors,22836,25/08/2017
ALLCONTRAST LTD & GIVECARE LTD&&SSAROE2374,Residential,22836,25/08/2017
ALPHA CARE MANAGEMENT SERVICES NO 2 LTD&&SSARO1217,Private Contractors,6758.6,25/08/2017
Alzheimers Society     1,Voluntary Associations,26556.1,25/08/2017
AMBERWOOD CARE HOME LTD&&SSAROE40398,Residential,-1500.85,25/08/2017
AMBERWOOD CARE HOME LTD&&SSAROE40398,Residential,-1134.86,25/08/2017
AMBERWOOD CARE HOME LTD&&SSAROE40398,Residential,2506.28,25/08/2017
AMBERWOOD CARE HOME LTD&&SSAROE40398,Residential,21286,25/08/2017
AMICARE DOMICILIRY CARE SERVICES LTD&&ISHC2524,Home Care / Domiciliary,-2373.27,11/08/2017
AMICARE DOMICILIRY CARE SERVICES LTD&&ISHC2524,Home Care / Domiciliary,617.82,11/08/2017
AMICARE DOMICILIRY CARE SERVICES LTD&&ISHC2524,Home Care / Domiciliary,2373.27,11/08/2017
AMICARE DOMICILIRY CARE SERVICES LTD&&ISHC2524,Home Care / Domiciliary,4885.7,11/08/2017
REDACTED PERSONAL DATA,Grants,958.39,03/08/2017
Andy Kirk Contractors Ltd,Suspense,1375,15/08/2017
Andy Kirk Contractors Ltd,Suspense,2050,15/08/2017
ANEW Young People Services Ltd,Other Agency & Cont Services,1799.9,23/08/2017
Anglia Fostering Agency Ltd,Other Agency & Cont Services,3478.2,17/08/2017
APPLE HOUSE LEICESTER LTD&&SSAROE185,Residential,5544,25/08/2017
REDACTED PERSONAL DATA,Residential,7752,25/08/2017
ARK CARE LODGE&&SSAROE699,Residential,7633.68,25/08/2017
Asfordby Hill Primary School Academy,Children&Families Spprt Servs,2750.07,04/08/2017
ASHA INCORPORATED LIMITED T/A ASHLEE CARE HOME&&SSARO3233,Residential,1746.64,25/08/2017
ASHBY COURT NURSING HOME&&SSAROE40195,Private Contractors,23055.48,25/08/2017
ASHBY COURT NURSING HOME&&SSAROE40195,Residential,3850,25/08/2017
ASHBY COURT NURSING HOME&&SSAROE40195,Residential,23055.48,25/08/2017
Ashby School Academy,Payment to Ext SEN Providers,835,25/08/2017
Ashby Willesley Primary School Academy,Payment to Ext SEN Providers,528,25/08/2017
ASHLEIGH NURSING HOME&&SSAROE40196,Private Contractors,3625.04,25/08/2017
Ashmount School,Devolved Capital,5235,23/08/2017
ASHTON LODGE&&SSAROE40467,Residential,5414.16,25/08/2017
ASH TREE&&SSAROE424,Residential,17568,25/08/2017
REDACTED PERSONAL DATA,S.E.N. Taxi Hire,532,16/08/2017
ASPIRE HEALTH & CARE LTD CHILLWEL HOUSE&&SSARO3332,Residential,2800,25/08/2017
ASSISI COMMUNITY CARE LTD T/A FRANCIS HOUSE&&SSARO1087,Residential,1988,25/08/2017
AUTISM CARE (UK) LTD&&SSAROE1335,Residential,9131.92,25/08/2017
AVERY HOMES HINCKLEY LTD&&SSARO2898,Residential,-1038.86,25/08/2017
AVERY HOMES HINCKLEY LTD&&SSARO2898,Residential,936,25/08/2017
AVERY HOMES HINCKLEY LTD&&SSARO2898,Residential,2471.43,25/08/2017
AVERY HOMES HINCKLEY LTD&&SSARO2898,Residential,50304,25/08/2017
AVERY HOMES NELSON LTD T/A GLENMOOR HOUSE CARE HOME&&SSARO3190,Residential,2300,25/08/2017
AVVISIM CARE LTD T/A FERNLEIGH CARE HOME&&SSAROE40336,Residential,1062,25/08/2017
AVVISIM CARE LTD T/A FERNLEIGH CARE HOME&&SSAROE40336,Residential,22660,25/08/2017
AYLESHAM COURT NURSING HOME&&SSAROE59696,Private Contractors,1821.43,25/08/2017
AYLESHAM COURT NURSING HOME&&SSAROE59696,Private Contractors,43828,25/08/2017
AYLESHAM COURT NURSING HOME&&SSAROE59696,Residential,-1274.29,25/08/2017
AYLESHAM COURT NURSING HOME&&SSAROE59696,Residential,1821.43,25/08/2017
AYLESHAM COURT NURSING HOME&&SSAROE59696,Residential,43828,25/08/2017
AYLESTONE GRANGE LTD&&SSARO3251,Residential,-749,25/08/2017
AYLESTONE GRANGE LTD&&SSARO3251,Residential,12570.3,25/08/2017
BADBY PARK LTD&&SSARO3105,Nursing,5275.71,25/08/2017
BADBY PARK LTD&&SSARO3105,Private Contractors,5275.71,25/08/2017
BADBY PARK LTD&&SSARO3105,Residential,5275.71,25/08/2017
Bagnalls Coaches,Home to Sch Trans - Buses,7352.5,25/08/2017
Bagnalls Coaches,Home to Sch Trans - Buses,14705,04/08/2017
BALMORE COUNTRY HOUSE&&SSAROE53507,Private Contractors,5140,25/08/2017
BALMORE COUNTRY HOUSE&&SSAROE53507,Residential,5140,25/08/2017
BARCHESTER HEALTHCARE HOME LTD T/A MARPLE DALE WINDSOR&&SSAROE350,Residential,2679.72,25/08/2017
BARCHESTER HEALTHCARE HOMES LTD LANCASTER GRANGE&&SARO3353,Residential,2989.29,25/08/2017
BARCHESTER HEALTHCARE HOMES LTD LANCASTER GRANGE&&SARO3353,Residential,4050,25/08/2017
BARCHESTER HEALTHCARE HOMES LTD OVERSLADE HOUSE RECEIPTS ACCOUNT&&SSARO3228,Nursing,1728,25/08/2017
BARCHESTER HEALTHCARE HOMES LTD OVERSLADE HOUSE RECEIPTS ACCOUNT&&SSARO3228,Private Contractors,1728,25/08/2017
BARCHESTER HEALTHCARE HOMES LTD&&SAROE59408,Private Contractors,3575.12,25/08/2017
Barford Childrens Services,Private Contractors,15500,03/08/2017
Barford Childrens Services,Private Contractors,16828.57,03/08/2017
Barwell CE Academy,Payment to Ext SEN Providers,718,25/08/2017
Battling Brook Primary School Academy,Payment to Ext SEN Providers,2066,25/08/2017
REDACTED PERSONAL DATA,Nursing,7756.68,25/08/2017
REDACTED PERSONAL DATA,Private Contractors,-661.43,25/08/2017
REDACTED PERSONAL DATA,Private Contractors,7756.68,25/08/2017
REDACTED PERSONAL DATA,Residential,7756.68,25/08/2017
Beacon Academy,Agency Staff,1049.4,11/08/2017
Beacon Academy,Payment to Ext SEN Providers,1084,25/08/2017
Beacon Academy,Payment to Ext SEN Providers,4474,25/08/2017
Beauchamp Academy,Buildings - Operational,208873.95,25/08/2017
Beauchamp Academy,Children&Families Spprt Servs,1339,25/08/2017
Belvoir High School & Melton Vale Post 16 Centre,Payment to Ext SEN Providers,565,25/08/2017
BEN&&SSAROE48226,Private Contractors,3130.76,25/08/2017
BENTLEY HOUSE LTD&&SSAROE140,Private Contractors,1529.44,25/08/2017
BERRYSTEAD NURSING & RESIDENTIAL  HOME LTD&&SSAROE2040,Private Contractors,569.57,25/08/2017
BERRYSTEAD NURSING & RESIDENTIAL  HOME LTD&&SSAROE2040,Private Contractors,987.71,25/08/2017
BERRYSTEAD NURSING & RESIDENTIAL  HOME LTD&&SSAROE2040,Private Contractors,1389,25/08/2017
BERRYSTEAD NURSING & RESIDENTIAL  HOME LTD&&SSAROE2040,Private Contractors,1852,25/08/2017
BERRYSTEAD NURSING & RESIDENTIAL  HOME LTD&&SSAROE2040,Private Contractors,1924,25/08/2017
BERRYSTEAD NURSING & RESIDENTIAL  HOME LTD&&SSAROE2040,Private Contractors,2444,25/08/2017
BERRYSTEAD NURSING & RESIDENTIAL  HOME LTD&&SSAROE2040,Private Contractors,4018.29,25/08/2017
BERRYSTEAD NURSING & RESIDENTIAL  HOME LTD&&SSAROE2040,Private Contractors,7958.71,25/08/2017
BERRYSTEAD NURSING & RESIDENTIAL  HOME LTD&&SSAROE2040,Private Contractors,29560,25/08/2017
BERRYSTEAD NURSING & RESIDENTIAL  HOME LTD&&SSAROE2040,Residential,-1628.58,25/08/2017
BERRYSTEAD NURSING & RESIDENTIAL  HOME LTD&&SSAROE2040,Residential,-1401.71,25/08/2017
BERRYSTEAD NURSING & RESIDENTIAL  HOME LTD&&SSAROE2040,Residential,7958.71,25/08/2017
BERRYSTEAD NURSING & RESIDENTIAL  HOME LTD&&SSAROE2040,Residential,29560,25/08/2017
BESTCARE LTD&&SSAROE1281,Residential,-1259.42,25/08/2017
BESTCARE LTD&&SSAROE1281,Residential,4660.2,25/08/2017
BESTCARE LTD&&SSAROE1281,Residential,31896,25/08/2017
BETHEL RESIDENTIAL HOME&&SSAROE40459,Residential,-1200,25/08/2017
BETHEL RESIDENTIAL HOME&&SSAROE40459,Residential,509.71,25/08/2017
BETHEL RESIDENTIAL HOME&&SSAROE40459,Residential,1274.29,25/08/2017
BETHEL RESIDENTIAL HOME&&SSAROE40459,Residential,21940,25/08/2017
BIRCHESTER MEDICARE LTD&&SSARO2290,Residential,-1700,25/08/2017
BIRCHESTER MEDICARE LTD&&SSARO2290,Residential,-1396.43,25/08/2017
BIRCHESTER MEDICARE LTD&&SSARO2290,Residential,-667.85,25/08/2017
BIRCHESTER MEDICARE LTD&&SSARO2290,Residential,1700,25/08/2017
BIRCHESTER MEDICARE LTD&&SSARO2290,Residential,12567.85,25/08/2017
Birkett House School Academy,Payment to Ext SEN Providers,3264,31/08/2017
Birkett House School Academy,Payment to Ext SEN Providers,163309,31/08/2017
Birstall Cabs,Home to Sch Trans - Buses,628,30/08/2017
Birstall Cabs,Personal Accounts - Govt Depts,1286.78,30/08/2017
Birstall Cabs,Recharge of Pooled Transp Cost,592.5,30/08/2017
Birstall Cabs,Recharge of Pooled Transp Cost,759.36,30/08/2017
Birstall Cabs,Recharge of Pooled Transp Cost,1286.78,30/08/2017
Birstall Cabs,S.E.N. Taxi Hire,669.4,30/08/2017
Birstall Cabs,S.E.N. Taxi Hire,705.6,30/08/2017
Birstall Cabs,S.E.N. Taxi Hire,766.29,30/08/2017
Birstall Cabs,S.E.N. Taxi Hire,809.88,30/08/2017
Birstall Cabs,S.E.N. Taxi Hire,828,30/08/2017
Birstall Cabs,S.E.N. Taxi Hire,917.88,30/08/2017
Birstall Cabs,S.E.N. Taxi Hire,953.6,30/08/2017
Birstall Cabs,S.E.N. Taxi Hire,1196.24,30/08/2017
Birstall Cabs,S.E.N. Taxi Hire,1331.2,30/08/2017
BIRSTALL CARE SERVICES LTD&&SSARO3339,Residential,6724,25/08/2017
BLACKBERRY BUSH T/A BUSH BABIES CHILDRENS NURSERIES LTD&&EYRS1534,Grants,833.7,17/08/2017
Blue Line Cars,Home to Sch Trans - Buses,760,09/08/2017
BLUE MAR LTD&&SSARO3025,Private Contractors,1640,25/08/2017
BLUEWOOD RECRUITMENT LTD&&ISHC3933,Home Care / Domiciliary,1030.81,11/08/2017
BLUEWOOD RECRUITMENT LTD&&ISHC3933,Home Care / Domiciliary,1086.09,11/08/2017
BLUEWOOD RECRUITMENT LTD&&ISHC3933,Home Care / Domiciliary,1199.66,11/08/2017
BLUEWOOD RECRUITMENT LTD&&ISHC3933,Home Care / Domiciliary,7920.76,11/08/2017
BM CARE MANAGEMENT SOLUTIONS&&ISHC2890,Home Care / Domiciliary,4078.62,11/08/2017
Borough of Charnwood Council,Other Local Authorities,7620,08/08/2017
Borough of Charnwood Council,Personal Accounts - Other,509.16,08/08/2017
BOSCAPS,Grants,637,11/08/2017
Bosworth Academy,Payment to Ext SEN Providers,3300,25/08/2017
Bottesford CE Primary School Academy,Children&Families Spprt Servs,2142.45,04/08/2017
Bottesford CE Primary School Academy,Payment to Ext SEN Providers,558,25/08/2017
Bottesford Parish Council,Rent,8000,03/08/2017
BRANSTON COURT CARE HOME T/A BUPA CARE HOMES LTD&&SSARO3346,Residential,3080,25/08/2017
BRIARS & ROSE LODGE&&SSAROE1126,Residential,17500,25/08/2017
BRIARS&&SSAROE425,Residential,13168,25/08/2017
BRIDGEFOOT DEVELOPMENTS LTD JASON HYLTON COURT&&SSARO3277,Private Contractors,7189.96,25/08/2017
BRIDGEFOOT DEVELOPMENTS LTD JASON HYLTON COURT&&SSARO3277,Residential,7189.96,25/08/2017
BRIGHT INTERGRATED CARE LTD&&ISHC3324,Home Care / Domiciliary,-639.17,11/08/2017
BRIGHT INTERGRATED CARE LTD&&ISHC3324,Home Care / Domiciliary,1302.16,11/08/2017
BRIGHT INTERGRATED CARE LTD&&ISHC3324,Home Care / Domiciliary,9943.87,11/08/2017
British Red Cross Society,Voluntary Associations,11393.1,25/08/2017
BROADOAK GRANGE RESIDENTIAL HOME&&SSAROE40338,Residential,-531,25/08/2017
BROADOAK GRANGE RESIDENTIAL HOME&&SSAROE40338,Residential,1934.72,25/08/2017
BROADOAK GRANGE RESIDENTIAL HOME&&SSAROE40338,Residential,37403.36,25/08/2017
BROADOAK LODGE&&SSAROE66479,Residential,-1700.57,25/08/2017
BROADOAK LODGE&&SSAROE66479,Residential,1062,25/08/2017
BROADOAK LODGE&&SSAROE66479,Residential,1772.86,25/08/2017
BROADOAK LODGE&&SSAROE66479,Residential,24812,25/08/2017
Brockington College Academy,Payment to Ext SEN Providers,2237,25/08/2017
Brocks Hill Primary School Academy,Payment to Ext SEN Providers,858,25/08/2017
BROOK HOUSE&&SSAROE40313,Residential,-2234.57,25/08/2017
BROOK HOUSE&&SSAROE40313,Residential,-2172.57,25/08/2017
BROOK HOUSE&&SSAROE40313,Residential,-655.71,25/08/2017
BROOK HOUSE&&SSAROE40313,Residential,30970,25/08/2017
Brookvale High School Academy,Payment to Ext SEN Providers,2026,25/08/2017
BROOKVALE&&SSAROE56,Residential,-2051.43,25/08/2017
BROOKVALE&&SSAROE56,Residential,2118.51,25/08/2017
BROOKVALE&&SSAROE56,Residential,2422.08,25/08/2017
Broom Leys Academy,Payment to Ext SEN Providers,966,25/08/2017
Brownlow School Academy,Payment to Ext SEN Providers,1237,25/08/2017
BS&CK SIDHU T/A OLDBURY GRANGE NURSING HOME&&SSAROE76868,Private Contractors,2200,25/08/2017
BUCINTORO LTD T/A BRAMBLE LODGE&&SSARO2174,Residential,2021.32,25/08/2017
BUPA CARE SERVICES&&SSARO2030,Nursing,1694.4,25/08/2017
BUPA CARE SERVICES&&SSARO2030,Nursing,9588,25/08/2017
BUPA CARE SERVICES&&SSARO2030,Private Contractors,-3948,25/08/2017
BUPA CARE SERVICES&&SSARO2030,Private Contractors,-1692,25/08/2017
BUPA CARE SERVICES&&SSARO2030,Private Contractors,1694.4,25/08/2017
BUPA CARE SERVICES&&SSARO2030,Private Contractors,9588,25/08/2017
BUPA CARE SERVICES T/A GREY FERRARS&&SSAROE61119,Nursing,34469.24,25/08/2017
BUPA CARE SERVICES T/A GREY FERRARS&&SSAROE61119,Private Contractors,-1821.57,25/08/2017
BUPA CARE SERVICES T/A GREY FERRARS&&SSAROE61119,Private Contractors,2563.7,25/08/2017
BUPA CARE SERVICES T/A GREY FERRARS&&SSAROE61119,Private Contractors,5599.65,25/08/2017
BUPA CARE SERVICES T/A GREY FERRARS&&SSAROE61119,Private Contractors,34469.24,25/08/2017
BUPA CARE SERVICES T/A GREY FERRARS&&SSAROE61119,Residential,34469.24,25/08/2017
BURBAGE HOMECARE LTD&&ISHCHC455,Home Care / Domiciliary,797.81,11/08/2017
BURBAGE HOMECARE LTD&&ISHCHC455,Home Care / Domiciliary,8297.46,11/08/2017
Burbage Independent Learning Centre,Payment to Ext SEN Providers,1728,07/08/2017
BUSY BEES AT BITTESWELL MONTESSORI NURSERY&&EYRS1806,Grants,813.45,03/08/2017
BUSY BEES AT BITTESWELL MONTESSORI NURSERY&&EYRS1806,Grants,3437.18,03/08/2017
BUSY BUGS&&EYRS1661,Grants,4880.7,17/08/2017
BUSY BUGS&&EYRS1661,Grants,33520.08,17/08/2017
CARE 24 7 (BODNANT HOUSE)&&SSARO3231,Residential,7527,25/08/2017
CARE 24 7 LEICESTER LTD&&SSARO3330,Residential,3554.64,25/08/2017
CARE 4 U (LEICESTERSHIRE) LTD&&ISHC2529,Home Care / Domiciliary,661.71,11/08/2017
CARE 4 U (LEICESTERSHIRE) LTD&&ISHC2529,Home Care / Domiciliary,671.23,11/08/2017
CARE 4 U (LEICESTERSHIRE) LTD&&ISHC2529,Home Care / Domiciliary,15369.05,11/08/2017
CARE AT HOME (MIDLANDS) LTD&&ISHC2753,Home Care / Domiciliary,647.77,11/08/2017
CARE AT HOME (MIDLANDS) LTD&&ISHC2753,Home Care / Domiciliary,979.96,11/08/2017
CARE AT HOME (MIDLANDS) LTD&&ISHC2753,Home Care / Domiciliary,5616.32,11/08/2017
CARE AT HOME (MIDLANDS) LTD&&ISHC2753,Home Care / Domiciliary,13244.35,11/08/2017
CARELINK HEALTHCARE PROFESSIONALS LTD&&ISHC3871,Home Care / Domiciliary,556.5,11/08/2017
CARELINK HEALTHCARE PROFESSIONALS LTD&&ISHC3871,Home Care / Domiciliary,1060.74,11/08/2017
CARELINK HEALTHCARE PROFESSIONALS LTD&&ISHC3871,Home Care / Domiciliary,13323.85,11/08/2017
Caremark Hinckley Bosworth & Blaby,Private Contractors,756,16/08/2017
Caremark Hinckley Bosworth & Blaby,Private Contractors,1764,16/08/2017
CAREMARK HINCKLEY BOSWORTH & BLABY&&ISHC3015,Home Care / Domiciliary,19224.21,11/08/2017
CARING HANDS DOMICILIARY CARE LTD&&ISHC3229,Home Care / Domiciliary,-1211.72,11/08/2017
CARING HANDS DOMICILIARY CARE LTD&&ISHC3229,Home Care / Domiciliary,-930.37,11/08/2017
CARING HANDS DOMICILIARY CARE LTD&&ISHC3229,Home Care / Domiciliary,-584.97,11/08/2017
CARING HANDS DOMICILIARY CARE LTD&&ISHC3229,Home Care / Domiciliary,586.52,11/08/2017
CARING HANDS DOMICILIARY CARE LTD&&ISHC3229,Home Care / Domiciliary,732.58,11/08/2017
CARING HANDS DOMICILIARY CARE LTD&&ISHC3229,Home Care / Domiciliary,933.39,11/08/2017
CARING HANDS DOMICILIARY CARE LTD&&ISHC3229,Home Care / Domiciliary,1571.32,11/08/2017
CARING HANDS DOMICILIARY CARE LTD&&ISHC3229,Home Care / Domiciliary,1658.32,11/08/2017
CARING HANDS DOMICILIARY CARE LTD&&ISHC3229,Home Care / Domiciliary,95290.16,11/08/2017
CARING HOMES HEALTHCARE GROUP LTD T/A GRETTON HOMES&&SSAROE846,Residential,6887.32,25/08/2017
Carlton Construction Services,Suspense,1851.6,07/08/2017
Carlton Construction Services,Suspense,2602.5,11/08/2017
Carlton Construction Services,Suspense,2973,21/08/2017
Carlton Construction Services,Suspense,3353.1,18/08/2017
Carlton Construction Services,Suspense,3654.9,24/08/2017
Carlton Construction Services,Suspense,3718.2,21/08/2017
Carlton Construction Services,Suspense,3814.5,04/08/2017
Carlton Construction Services,Suspense,3814.5,21/08/2017
Carlton Construction Services,Suspense,4496.7,21/08/2017
Carlton Construction Services,Suspense,5059.2,21/08/2017
Carlton Construction Services,Suspense,5172.6,21/08/2017
Carlton Construction Services,Suspense,5300.1,14/08/2017
Carlton Construction Services,Suspense,6842.4,25/08/2017
CASA MIA CARE CENTRE&&SSARO3009,Residential,4373.28,25/08/2017
CASTLE PLAYGROUP&&EYRS1394,Grants,1617.68,17/08/2017
CASTLE PLAYGROUP&&EYRS1394,Grants,4297.37,17/08/2017
Castle Rock High Academy,Payment to Ext SEN Providers,2472,25/08/2017
CASTLEROCK RECRUITMENT GROUP LTD&&ISHC3232,Home Care / Domiciliary,520.19,11/08/2017
CASTLEROCK RECRUITMENT GROUP LTD&&ISHC3232,Home Care / Domiciliary,780.57,11/08/2017
CASTLEROCK RECRUITMENT GROUP LTD&&ISHC3232,Home Care / Domiciliary,809.72,11/08/2017
CASTLEROCK RECRUITMENT GROUP LTD&&ISHC3232,Home Care / Domiciliary,944.76,11/08/2017
CASTLEROCK RECRUITMENT GROUP LTD&&ISHC3232,Home Care / Domiciliary,1303,11/08/2017
CASTLEROCK RECRUITMENT GROUP LTD&&ISHC3232,Home Care / Domiciliary,1443.44,11/08/2017
CASTLEROCK RECRUITMENT GROUP LTD&&ISHC3232,Home Care / Domiciliary,71848.67,11/08/2017
Catch 22,Other Transfer Payments,33800,25/08/2017
CEDAR HOUSE CARE HOME LTD&&SSAROE40413,Residential,12496,25/08/2017
Cedars Academy Lionheart Academies Trust,Deferred Charges (Grants & Advances),88625.49,25/08/2017
Cedars Academy Lionheart Academies Trust,Deferred Charges (Grants & Advances),500377.69,25/08/2017
Cedars Academy Lionheart Academies Trust,Payment to Ext SEN Providers,2479,31/08/2017
CEDARS HEALTHCARE LTD RE THE CEDARS BOURNE&&SSARO 3348,Residential,3620,25/08/2017
REDACTED PERSONAL DATA,S.E.N. Taxi Hire,1392,25/08/2017
Charitable Giving,Personal Accounts - Other,1041.75,04/08/2017
CHARNWOOD HOUSE METHODIST HOMES&&SARO3343,Residential,2836,25/08/2017
Charnwood Nursery & Pre School,Other Transfer Payments,-1462.71,31/08/2017
Charnwood Nursery & Pre School,Other Transfer Payments,577.57,31/08/2017
Charnwood Nursery & Pre School,Private Contractors,-1946.55,31/08/2017
Charnwood Nursery & Pre School,Private Contractors,1063.62,31/08/2017
CHARTWELL TRUST CARE PLC&&SSARO2345,Residential,-2239.14,25/08/2017
CHARTWELL TRUST CARE PLC&&SSARO2345,Residential,-1119.57,25/08/2017
CHARTWELL TRUST CARE PLC&&SSARO2345,Residential,839.68,25/08/2017
CHARTWELL TRUST CARE PLC&&SSARO2345,Residential,14555.44,25/08/2017
CHARTWELL TRUST CARE PLC&&SSARO2345,Residential,52324,25/08/2017
CHERRE RESIDENTIAL CARE LTD T/A AYEESHA RAJ&&SSAROE40381,Residential,20060,25/08/2017
CHERRYTREE CARE LTD&&SSAROE40314,Residential,1114.28,25/08/2017
CHERRYTREE CARE LTD&&SSAROE40314,Residential,6628,25/08/2017
Chessington (Clownholme) CC Priory,Private Contractors,4435.69,25/08/2017
CHESTNUTS ARNESBY LTD&&SSAROE40279,Residential,-1456.93,25/08/2017
CHESTNUTS ARNESBY LTD&&SSAROE40279,Residential,1938,25/08/2017
CHESTNUTS ARNESBY LTD&&SSAROE40279,Residential,4122.86,25/08/2017
CHESTNUTS ARNESBY LTD&&SSAROE40279,Residential,35023.62,25/08/2017
Child Support Agency Client Fund A/C,Personal Accounts - Other,2637.67,08/08/2017
Christ Church & St Peters CE Primary School Academy,Payment to Ext SEN Providers,1414,29/08/2017
CITY & COUNTY CARE SERVICES LTD&&ISHCHC486,Home Care / Domiciliary,740.29,11/08/2017
CITY & COUNTY CARE SERVICES LTD&&ISHCHC486,Home Care / Domiciliary,5792.12,11/08/2017
CLAREGRANGE LTD&&SSAROE21,Nursing,22212.5,25/08/2017
CLAREGRANGE LTD&&SSAROE21,Private Contractors,13185.68,25/08/2017
CLAREGRANGE LTD&&SSAROE21,Private Contractors,22212.5,25/08/2017
CLAREGRANGE LTD&&SSAROE21,Residential,13185.68,25/08/2017
CLAREGRANGE LTD&&SSAROE21,Residential,22212.5,25/08/2017
CLAREGRANGE LTD&&SSAROE47217,Residential,12360,25/08/2017
CLEARVISION (GB) T/A CHATAWAY RESIDENTIAL HOME&&SSAROE40294,Residential,15980,25/08/2017
Click Travel,Public Transport -  Staff,832.8,15/08/2017
Click Travel,Public Transport -  Staff,965.08,31/08/2017
Click Travel,Public Transport -  Staff,2235.07,22/08/2017
CLIFFE HOUSE RESIDENTS A/C&&SSAROE47266,Residential,6048,25/08/2017
Clockwise    1,Personal Accounts - Other,888,03/08/2017
Clockwise    1,Personal Accounts - Other,1313,03/08/2017
Coalville Cabs Ltd,Home to Sch Trans - Buses,576,18/08/2017
Coalville Cabs Ltd,Home to Sch Trans - Buses,590.4,18/08/2017
Coalville Cabs Ltd,Home to Sch Trans - Buses,696,18/08/2017
Coalville Cabs Ltd,Home to Sch Trans - Buses,936,18/08/2017
Coalville Cabs Ltd,Home to Sch Trans - Buses,1075.2,18/08/2017
Coalville Cabs Ltd,Personal Accounts - Govt Depts,1638,30/08/2017
Coalville Cabs Ltd,Recharge of Pooled Transp Cost,517.8,30/08/2017
Coalville Cabs Ltd,Recharge of Pooled Transp Cost,562.56,30/08/2017
Coalville Cabs Ltd,Recharge of Pooled Transp Cost,624,30/08/2017
Coalville Cabs Ltd,Recharge of Pooled Transp Cost,720,30/08/2017
Coalville Cabs Ltd,Recharge of Pooled Transp Cost,864,30/08/2017
Coalville Cabs Ltd,Recharge of Pooled Transp Cost,946.56,30/08/2017
Coalville Cabs Ltd,Recharge of Pooled Transp Cost,1008,30/08/2017
Coalville Cabs Ltd,Recharge of Pooled Transp Cost,1015.92,30/08/2017
Coalville Cabs Ltd,Recharge of Pooled Transp Cost,1057.51,30/08/2017
Coalville Cabs Ltd,Recharge of Pooled Transp Cost,1162.8,30/08/2017
Coalville Cabs Ltd,Recharge of Pooled Transp Cost,1185.6,30/08/2017
Coalville Cabs Ltd,Recharge of Pooled Transp Cost,1711.2,30/08/2017
Coalville Cabs Ltd,Recharge of Pooled Transp Cost,2335.2,30/08/2017
Coalville Cabs Ltd,Recharge of Pooled Transp Cost,2390.4,03/08/2017
Coalville Cabs Ltd,S.E.N. Taxi Hire,510,18/08/2017
Coalville Cabs Ltd,S.E.N. Taxi Hire,528,18/08/2017
Coalville Cabs Ltd,S.E.N. Taxi Hire,534,18/08/2017
Coalville Cabs Ltd,S.E.N. Taxi Hire,537.6,18/08/2017
Coalville Cabs Ltd,S.E.N. Taxi Hire,567,30/08/2017
Coalville Cabs Ltd,S.E.N. Taxi Hire,572.16,18/08/2017
Coalville Cabs Ltd,S.E.N. Taxi Hire,585.6,18/08/2017
Coalville Cabs Ltd,S.E.N. Taxi Hire,633.6,18/08/2017
Coalville Cabs Ltd,S.E.N. Taxi Hire,684,18/08/2017
Coalville Cabs Ltd,S.E.N. Taxi Hire,715.2,18/08/2017
Coalville Cabs Ltd,S.E.N. Taxi Hire,810.96,18/08/2017
Coalville Cabs Ltd,S.E.N. Taxi Hire,822,18/08/2017
Coalville Cabs Ltd,S.E.N. Taxi Hire,825.6,18/08/2017
Coalville Cabs Ltd,S.E.N. Taxi Hire,832.8,18/08/2017
Coalville Cabs Ltd,S.E.N. Taxi Hire,835.2,18/08/2017
Coalville Cabs Ltd,S.E.N. Taxi Hire,888,18/08/2017
Coalville Cabs Ltd,S.E.N. Taxi Hire,943.2,18/08/2017
Coalville Cabs Ltd,S.E.N. Taxi Hire,973.2,18/08/2017
Coalville Cabs Ltd,S.E.N. Taxi Hire,1005.12,18/08/2017
Coalville Cabs Ltd,S.E.N. Taxi Hire,1067.04,18/08/2017
Coalville Cabs Ltd,S.E.N. Taxi Hire,1078.8,18/08/2017
Coalville Cabs Ltd,S.E.N. Taxi Hire,1099.2,18/08/2017
Coalville Cabs Ltd,S.E.N. Taxi Hire,1109.22,18/08/2017
Coalville Cabs Ltd,S.E.N. Taxi Hire,1118.4,18/08/2017
Coalville Cabs Ltd,S.E.N. Taxi Hire,1135.2,18/08/2017
Coalville Cabs Ltd,S.E.N. Taxi Hire,1149.12,18/08/2017
Coalville Cabs Ltd,S.E.N. Taxi Hire,1183.2,18/08/2017
Coalville Cabs Ltd,S.E.N. Taxi Hire,1195.2,18/08/2017
Coalville Cabs Ltd,S.E.N. Taxi Hire,1207.2,18/08/2017
Coalville Cabs Ltd,S.E.N. Taxi Hire,1287.36,18/08/2017
Coalville Cabs Ltd,S.E.N. Taxi Hire,1300.8,18/08/2017
Coalville Cabs Ltd,S.E.N. Taxi Hire,1303.2,18/08/2017
Coalville Cabs Ltd,S.E.N. Taxi Hire,1344,18/08/2017
Coalville Cabs Ltd,S.E.N. Taxi Hire,1530.24,18/08/2017
Coalville Cabs Ltd,S.E.N. Taxi Hire,1699.2,18/08/2017
Coalville Cabs Ltd,S.E.N. Taxi Hire,1780.8,30/08/2017
Coalville Cabs Ltd,S.E.N. Taxi Hire,1938,30/08/2017
Coalville Cabs Ltd,S.E.N. Taxi Hire,2268,30/08/2017
Coalville Cabs Ltd,S.E.N. Taxi Hire,2274.72,30/08/2017
Coalville Cabs Ltd,S.E.N. Taxi Hire,2625.12,30/08/2017
Coalville Cabs Ltd,S.E.N. Taxi Hire,2707.2,30/08/2017
Coalville Cabs Ltd,S.E.N. Taxi Hire,2790.72,30/08/2017
Coalville Cabs Ltd,S.E.N. Taxi Hire,4203.36,30/08/2017
Cobden Primary School Academy,Payment to Ext SEN Providers,1520,25/08/2017
COFRESH HOMES LLP (TUDOR CARE HOMES)&&SSARO1585,Residential,637.14,25/08/2017
COFRESH HOMES LLP (TUDOR CARE HOMES)&&SSARO1585,Residential,1784,25/08/2017
COFRESH HOMES LLP (TUDOR CARE HOMES)&&SSARO1585,Residential,6132,25/08/2017
COMMUNITY CARELINE NORTHWEST LEICESTERSHIRE LTD&&ISHCHC1514,Home Care / Domiciliary,2127.98,11/08/2017
COMMUNITY LIVING PROJECT&&SSAROE56011,Residential,1452,25/08/2017
COMMUNITY LIVING PROJECT&&SSAROE56011,Residential,1848,25/08/2017
COMMUNITY LIVING PROJECT&&SSAROE56011,Residential,19584,25/08/2017
CONDOVER COLLEGE LTD&&SSAROE1331,Residential,19956,25/08/2017
CONIFER LODGE&&SSAROE40296,Residential,16568,25/08/2017
Conway Contractors (Derby),Suspense,1046,04/08/2017
Cosby Primary School Academy,Payment to Ext SEN Providers,542,25/08/2017
COTTAGE & RURAL ENTERPRISES LTD&&SSAROE14,Residential,-924,25/08/2017
COTTAGE & RURAL ENTERPRISES LTD&&SSAROE14,Residential,-799.24,25/08/2017
COTTAGE & RURAL ENTERPRISES LTD&&SSAROE14,Residential,931.02,25/08/2017
COTTAGE & RURAL ENTERPRISES LTD&&SSAROE14,Residential,6145.4,25/08/2017
COTTAGE & RURAL ENTERPRISES LTD&&SSAROE14,Residential,7408.36,25/08/2017
COTTAGE & RURAL ENTERPRISES LTD&&SSAROE14,Residential,7431.72,25/08/2017
COUNTRY RETIREMENT AND NURSING HOMES T/A EVERSLEY&&SSARO3119,Private Contractors,2156.44,25/08/2017
COUNTRYWIDE CARE HOMES (2) LTD T/A ARGYLE HOUSE&&SSARO3347,Residential,3200,25/08/2017
CRAEGMOOR FACILITIES CO LTD RE CHARNWOOD LODGE&&SSAROE346,Residential,9916,25/08/2017
CRAEGMOOR FACILITIES CO LTD RE HALIFAX DRIVE&&SSAROE29669A,Residential,7074.2,25/08/2017
CRAEGMOOR FACILITIES CO LTD RE MAR LODGE&&SSAROE66405,Residential,11140,25/08/2017
CRAEGMOOR FACILITIES CO LTD RE MEADOWS&&SSAROE40227,Private Contractors,-2340,25/08/2017
CRAEGMOOR FACILITIES CO LTD RE MEADOWS&&SSAROE40227,Private Contractors,39604,25/08/2017
CRAEGMOOR FACILITIES CO LTD RE MEADOWS&&SSAROE40227,Residential,680,25/08/2017
CRAEGMOOR FACILITIES CO LTD RE MEADOWS&&SSAROE40227,Residential,1248,25/08/2017
CRAEGMOOR FACILITIES CO LTD RE MEADOWS&&SSAROE40227,Residential,39604,25/08/2017
CRAEGMOOR FACILITIES COMPANY LTD&&SSAROE8,Residential,7525.28,25/08/2017
REDACTED PERSONAL DATA,Residential,4565.4,25/08/2017
CREATIVE CARE (EAST MIDLANDS) LTD&&SSARO2061,Residential,11659.44,25/08/2017
Creative Support Ltd,Supported Living,517.6,25/08/2017
Creative Support Ltd,Supported Living,3913.14,25/08/2017
Creative Support Ltd,Supported Living,4472.16,25/08/2017
Creative Support Ltd,Supported Living,4577.76,25/08/2017
Creative Support Ltd,Supported Living,4663.79,25/08/2017
Creative Support Ltd,Supported Living,5289.65,25/08/2017
Creative Support Ltd,Supported Living,5352.81,25/08/2017
Creative Support Ltd,Supported Living,5424.65,25/08/2017
Creative Support Ltd,Supported Living,5762.81,25/08/2017
DALLINGTON HOUSE&&SSAROE40408,Residential,7304,25/08/2017
DANSHELL HEALTHCARE LTD&&SSARO3301,Residential,-10815,25/08/2017
DANSHELL HEALTHCARE LTD&&SSARO3301,Residential,-6180,25/08/2017
DANSHELL HEALTHCARE LTD&&SSARO3301,Residential,-5076.43,25/08/2017
DANSHELL HEALTHCARE LTD&&SSARO3301,Residential,-1324.29,25/08/2017
DANSHELL HEALTHCARE LTD&&SSARO3301,Residential,-1103.57,25/08/2017
DANSHELL HEALTHCARE LTD&&SSARO3301,Residential,6180,25/08/2017
DANSHELL HEALTHCARE LTD&&SSARO3301,Residential,80119.29,25/08/2017
REDACTED PERSONAL DATA,Residential,21924,24/08/2017
REDACTED PERSONAL DATA,Residential,2697.72,25/08/2017
REDACTED PERSONAL DATA,Children&Families Spprt Servs,1158,25/08/2017
REDACTED PERSONAL DATA,Materials,537.11,07/08/2017
DEAFINITELY INDEPENDENT&&SSAROE700,Residential,7876,25/08/2017
REDACTED PERSONAL DATA,Managed/Traditional Services,628.59,23/08/2017
De Lisle College Catholic Voluntary Academy,Payment to Ext SEN Providers,707,25/08/2017
REDACTED PERSONAL DATA,S.E.N. Taxi Hire,920,24/08/2017
REDACTED PERSONAL DATA,S.E.N. Taxi Hire,1600,03/08/2017
Department for Work and Pensions,Provisions Expenditure,637,11/08/2017
DERWEN COLLEGE&&SSAROE205,Residential,3787.4,25/08/2017
REDACTED PERSONAL DATA,Residential,3886,25/08/2017
DIGINEW LTD&&SSARO3320,Private Contractors,1587.45,25/08/2017
DIGINEW LTD&&SSARO3320,Private Contractors,4008.24,25/08/2017
Direct Care Works Ltd,Supported Living,511.5,15/08/2017
Direct Care Works Ltd,Supported Living,2310,03/08/2017
Direct Care Works Ltd,Supported Living,2310,15/08/2017
DIRECT HEALTH UK LTD&&ISHCHC502,Home Care / Domiciliary,4581.01,11/08/2017
Discovery Schools Academies Trust Ltd Parkland Primary School,Payment to Ext SEN Providers,1696,25/08/2017
Dixons Coach & Travel Services,Home to Sch Trans - Buses,1223.91,23/08/2017
Dixons Coach & Travel Services,Home to Sch Trans - Buses,1608,23/08/2017
REDACTED PERSONAL DATA,Suspense,5464.48,18/08/2017
DN&KJ LOCK T/A MOAT HOUSE RETIREMENT LTD&&SSAROE276,Residential,42692.24,25/08/2017
DOLPHIN PROPERTY LTD (EXECUTIVE CARE GRP)&&SSARO3044,Private Contractors,1247.14,25/08/2017
DOLPHIN PROPERTY LTD (EXECUTIVE CARE GRP)&&SSARO3044,Private Contractors,1940,25/08/2017
DOLPHIN PROPERTY LTD (EXECUTIVE CARE GRP)&&SSARO3044,Residential,-1038.86,25/08/2017
Dorothy Goodman School Academy,Payment to Ext SEN Providers,22278,31/08/2017
Dorothy Goodman School Academy,Payment to Ext SEN Providers,139177,31/08/2017
DOWNING (BARWELL) LTD&&SSAROE1041,Residential,-1517.14,25/08/2017
DOWNING (BARWELL) LTD&&SSAROE1041,Residential,637.14,25/08/2017
DOWNING (BARWELL) LTD&&SSAROE1041,Residential,700.86,25/08/2017
DOWNING (BARWELL) LTD&&SSAROE1041,Residential,1210.57,25/08/2017
DOWNING (BARWELL) LTD&&SSAROE1041,Residential,2124,25/08/2017
DOWNING (BARWELL) LTD&&SSAROE1041,Residential,3777.57,25/08/2017
DOWNING (BARWELL) LTD&&SSAROE1041,Residential,49850,25/08/2017
DRE HEALTHCARE LTD&&SSAROE417,Private Contractors,12756.6,25/08/2017
DRE HEALTHCARE LTD&&SSAROE417,Residential,12756.6,25/08/2017
REDACTED PERSONAL DATA,S.E.N. Taxi Hire,760,04/08/2017
REDACTED PERSONAL DATA,S.E.N. Taxi Hire,1744,04/08/2017
DRUGLINK&&SSARO3269,Residential,529.5,25/08/2017
DRUGLINK&&SSARO3269,Residential,2471,25/08/2017
DWP Debt Management,Personal Accounts - Other,1530.66,08/08/2017
EAST COAST RECOVERY&&SSARO2900,Residential,-1914.29,25/08/2017
EAST COAST RECOVERY&&SSARO2900,Residential,501.56,25/08/2017
EAST COAST RECOVERY&&SSARO2900,Residential,2983.4,25/08/2017
EAST COAST RECOVERY&&SSARO2900,Residential,4048.32,25/08/2017
East Midlands Ambulance Service NHS Trust,Reserve Debtors,6337,07/08/2017
East West Community Project,Day / CLC Services,884,04/08/2017
REDACTED PERSONAL DATA,Residential,-1467.14,25/08/2017
REDACTED PERSONAL DATA,Residential,21338,25/08/2017
REDACTED PERSONAL DATA,Grants,661.65,03/08/2017
Elaines Taxis Ltd,Home to Sch Trans - Buses,570,11/08/2017
Elaines Taxis Ltd,Home to Sch Trans - Buses,600,25/08/2017
Elaines Taxis Ltd,Home to Sch Trans - Buses,624,25/08/2017
Elaines Taxis Ltd,Home to Sch Trans - Buses,696,25/08/2017
Elaines Taxis Ltd,Home to Sch Trans - Buses,840,25/08/2017
Elaines Taxis Ltd,Home to Sch Trans - Buses,988.8,25/08/2017
Elaines Taxis Ltd,Home to Sch Trans - Buses,1056,25/08/2017
Elaines Taxis Ltd,S.E.N. Taxi Hire,1200,25/08/2017
Elaines Taxis Ltd,S.E.N. Taxi Hire,1248,25/08/2017
Elaines Taxis Ltd,S.E.N. Taxi Hire,1344,25/08/2017
REDACTED PERSONAL DATA,Residential,3073.12,25/08/2017
ELLIOTT RESIDENTIAL CARE HOME&&SSAROE40471,Residential,1682.28,25/08/2017
ELMS RESIDENTIAL HOME LTD T/A THE ELMS&&SSAROE40414,Residential,-1083.14,25/08/2017
ELMS RESIDENTIAL HOME LTD T/A THE ELMS&&SSAROE40414,Residential,892,25/08/2017
ELMS RESIDENTIAL HOME LTD T/A THE ELMS&&SSAROE40414,Residential,1146.85,25/08/2017
ELMS RESIDENTIAL HOME LTD T/A THE ELMS&&SSAROE40414,Residential,16800,25/08/2017
EMSA HOMEHELP LTD T/A BLUEBIRD CARE LEICS&&ISHC3983,Home Care / Domiciliary,792.87,11/08/2017
EMSA HOMEHELP LTD T/A BLUEBIRD CARE LEICS&&ISHC3983,Home Care / Domiciliary,882.45,11/08/2017
EMSA HOMEHELP LTD T/A BLUEBIRD CARE LEICS&&ISHC3983,Home Care / Domiciliary,5912.48,11/08/2017
ENABLE CARE & HOME SUPPORT LTD&&ISHC2477,Home Care / Domiciliary,13329.13,11/08/2017
Eon UK Energy Services Ltd,Buildings - Operational,1419.47,03/08/2017
ESPA LTD&&SSAROE247,Residential,10788.52,25/08/2017
ESPO,Consultants & Specialists,14481.6,03/08/2017
ESPO,Personal Accounts - Other,505,25/08/2017
ESPO,Provisions Income,500,23/08/2017
ETA CARE SOLUTIONS LTD&&ISHC3990,Home Care / Domiciliary,3287.33,11/08/2017
EVOLVING CARE&&ISHC2825,Home Care / Domiciliary,804.12,11/08/2017
EVOLVING CARE&&ISHC2825,Home Care / Domiciliary,6485.63,11/08/2017
Fairfield Community Primary School Academy,Payment to Ext SEN Providers,707,25/08/2017
REDACTED PERSONAL DATA,Home to Sch Trans - Buses,794.9,17/08/2017
REDACTED PERSONAL DATA,S.E.N. Taxi Hire,640,18/08/2017
F AZAM T/A MARSTON COURT LTD&&SSAROE1054,Residential,-2394.75,25/08/2017
F AZAM T/A MARSTON COURT LTD&&SSAROE1054,Residential,1759.02,25/08/2017
F AZAM T/A MARSTON COURT LTD&&SSAROE1054,Residential,15627.16,25/08/2017
REDACTED PERSONAL DATA,Suspense,1738.8,30/08/2017
FEES COLLECTION A/C&&SSAROE390,Residential,2509.44,25/08/2017
FEES COLLECTION A/C&&SSAROE390,Residential,4449.56,25/08/2017
FIELD HOUSE NURSING HOME LTD&&SSARO2972,Residential,2680,25/08/2017
Firebird Trading Limited,Rech to other revenue accounts,864,25/08/2017
Fire Brigade Union,Fees & Charges (833),3900.62,03/08/2017
Fire Brigade Union,Personal Accounts - Other,3900.62,03/08/2017
Fire Fighters Charity,Personal Accounts - Other,1130.88,03/08/2017
First Choice Care Agency Ltd,Home Care / Domiciliary,596.82,03/08/2017
FIRSTMILE LTD&&SSAROE642,Residential,-531,25/08/2017
FIRSTMILE LTD&&SSAROE642,Residential,606.86,25/08/2017
FIRSTMILE LTD&&SSAROE642,Residential,1137.86,25/08/2017
FIRSTMILE LTD&&SSAROE642,Residential,2442.57,25/08/2017
FIRSTMILE LTD&&SSAROE642,Residential,43715.37,25/08/2017
FIRST POINT HOMECARE LTD&&ISHC2318,Home Care / Domiciliary,1185.6,11/08/2017
FIRST POINT HOMECARE LTD&&ISHC2318,Home Care / Domiciliary,10952.68,11/08/2017
FIRSTSMILE LTD&&SSAROE6,Residential,1083.14,25/08/2017
FIRSTSMILE LTD&&SSAROE6,Residential,32356.14,25/08/2017
REDACTED PERSONAL DATA,Residential,2526,25/08/2017
Forest Way School Academy Trust,Payment to Ext SEN Providers,9500,31/08/2017
Forest Way School Academy Trust,Payment to Ext SEN Providers,116572,31/08/2017
FOSSE HEALTHCARE LTD&&&&ISHC3231,Home Care / Domiciliary,510.54,11/08/2017
FOSSE HEALTHCARE LTD&&&&ISHC3231,Home Care / Domiciliary,564.32,11/08/2017
FOSSE HEALTHCARE LTD&&&&ISHC3231,Home Care / Domiciliary,616.09,11/08/2017
FOSSE HEALTHCARE LTD&&&&ISHC3231,Home Care / Domiciliary,749.96,11/08/2017
FOSSE HEALTHCARE LTD&&&&ISHC3231,Home Care / Domiciliary,966.96,11/08/2017
FOSSE HEALTHCARE LTD&&&&ISHC3231,Home Care / Domiciliary,1396.86,11/08/2017
FOSSE HEALTHCARE LTD&&&&ISHC3231,Home Care / Domiciliary,1497.87,11/08/2017
FOSSE HEALTHCARE LTD&&&&ISHC3231,Home Care / Domiciliary,4281.34,11/08/2017
FOSSE HEALTHCARE LTD&&&&ISHC3231,Home Care / Domiciliary,8488.2,11/08/2017
FOSSE HEALTHCARE LTD&&&&ISHC3231,Home Care / Domiciliary,79440.95,11/08/2017
FOUNDATION CARE LTD T/A MANTON HALL&&SSAROE40333,Residential,1880,25/08/2017
FOUR SEASONS (EVEDALE LTD) RE THE WILLOWS&&SSAROE40243,Private Contractors,32272,25/08/2017
FOUR SEASONS (EVEDALE LTD) RE THE WILLOWS&&SSAROE40243,Residential,-1122.85,25/08/2017
FOUR SEASONS (EVEDALE LTD) RE THE WILLOWS&&SSAROE40243,Residential,2571.42,25/08/2017
FOUR SEASONS (EVEDALE LTD) RE THE WILLOWS&&SSAROE40243,Residential,32272,25/08/2017
FOUR SEASONS (EVEDALE) LTD&&SSARO3292,Private Contractors,2092.16,25/08/2017
FOUR SEASONS HOMES NO4 LTD T/A DOVE COURT CARE HOME&&SSARO3280,Private Contractors,2000.68,25/08/2017
FOUR SEASONS HOMES NO4 LTD T/A DOVE COURT CARE HOME&&SSARO3280,Residential,2000.68,25/08/2017
Freedom Play & Creative Arts Therapy,Other Agency & Cont Services,940,31/08/2017
FSHC NEWCO LTD T/A THE LAWNS CARE HOME&&SSAROE76864,Residential,-4350.86,25/08/2017
FSHC NEWCO LTD T/A THE LAWNS CARE HOME&&SSAROE76864,Residential,-3724,25/08/2017
FSHC NEWCO LTD T/A THE LAWNS CARE HOME&&SSAROE76864,Residential,-1729,25/08/2017
FSHC NEWCO LTD T/A THE LAWNS CARE HOME&&SSAROE76864,Residential,-1178.57,25/08/2017
FSHC NEWCO LTD T/A THE LAWNS CARE HOME&&SSAROE76864,Residential,1563.43,25/08/2017
FSHC NEWCO LTD T/A THE LAWNS CARE HOME&&SSAROE76864,Residential,6436,25/08/2017
FUTURE DIRECTIONS CIC&&SSARO3273,Residential,3173.28,25/08/2017
Future Home Care,Managed/Traditional Services,6274.8,07/08/2017
Future Home Care,Personal Accounts - Govt Depts,6274.8,07/08/2017
Future Home Care,Supported Living,3024,18/08/2017
Future Home Care,Supported Living,4534.92,18/08/2017
Future Home Care,Supported Living,6274.8,07/08/2017
GABLES CARE HOME (MARKET HARBOROUGH) LTD&&SSAROE40322,Residential,5416,25/08/2017
GARENDON RESIDENTIAL HOME&&SSAROE46112,Residential,20804,25/08/2017
Gartree High School Academy,Payment to Ext SEN Providers,3158,25/08/2017
GB CARE LTD&&SSAROE928,Private Contractors,7658.16,25/08/2017
GB CARE LTD&&SSAROE928,Residential,7658.16,25/08/2017
GENESIS HOMES (ESSEX) LTD&&SSARO1089,Residential,1383.43,25/08/2017
GENESIS HOMES (ESSEX) LTD&&SSARO1089,Residential,2213.71,25/08/2017
GENESIS HOMES (ESSEX) LTD&&SSARO1089,Residential,3124,25/08/2017
GENESIS HOMES (ESSEX) LTD&&SSARO1089,Residential,26108,25/08/2017
GILDAWOOD COURT RESIDENTIAL HOMES LTD&&SSARO1886,Residential,1891.68,25/08/2017
Gilmorton Chandler CE Aided Primary School Academy,Payment to Ext SEN Providers,636,25/08/2017
Glebe House    1,Private Contractors,1732.5,03/08/2017
Glebe House    1,Private Contractors,2722.5,11/08/2017
GLEBE HOUSE&&SSAROE62670,Residential,1848,25/08/2017
Glenfield Primary School Academy,Payment to Ext SEN Providers,966,25/08/2017
Glenfield Primary School Academy,Payment to Ext SEN Providers,2501,25/08/2017
Glen Hills Primary School Academy,Payment to Ext SEN Providers,1178,25/08/2017
GMBATU,Fees & Charges (833),4714.97,10/08/2017
GMBATU,Suspense,4714.97,10/08/2017
GOLD CARE HOMES LTD&&SSARO2855,Residential,2000,25/08/2017
Goodleaf Ltd,Other Expenditure,700,18/08/2017
GOODWOOD ORCHARD REST HOME&&SSAROE40251,Residential,3676.08,25/08/2017
REDACTED PERSONAL DATA,S.E.N. Taxi Hire,1095,18/08/2017
GRANGE SADDINGTON LTD&&SSAROE304,Private Contractors,-1374.28,25/08/2017
GRANGE SADDINGTON LTD&&SSAROE304,Private Contractors,856.14,25/08/2017
GRANGE SADDINGTON LTD&&SSAROE304,Private Contractors,45448,25/08/2017
GRANGE SADDINGTON LTD&&SSAROE304,Residential,45448,25/08/2017
GRANGEWOOD LODGE&&SSAROE44233,Residential,4042.64,25/08/2017
GRATIA&&SSAROE40405,Residential,-2283.24,25/08/2017
GRATIA&&SSAROE40405,Residential,2283.24,25/08/2017
GRATIA&&SSAROE40405,Residential,21037.44,25/08/2017
Great Glen Community Library,Furniture,1127.92,23/08/2017
Great Glen Community Library,Furniture,4511.65,03/08/2017
Great Glen Community Library,Grants,600,23/08/2017
Great Glen Community Library,Grants,2988.43,23/08/2017
GREENACRES NURSING HOMES LTD&&SSAROE49047,Residential,-858.44,25/08/2017
GREENACRES NURSING HOMES LTD&&SSAROE49047,Residential,6860,25/08/2017
GREEN LEAF HEALTHCARE LTD T/A LIVESEY LODGE CARE HOME&&SSAROE40457,Residential,-834.43,25/08/2017
GREEN LEAF HEALTHCARE LTD T/A LIVESEY LODGE CARE HOME&&SSAROE40457,Residential,700.86,25/08/2017
GREEN LEAF HEALTHCARE LTD T/A LIVESEY LODGE CARE HOME&&SSAROE40457,Residential,23080,25/08/2017
Groby Community College Academy,Payment to Ext SEN Providers,3014,25/08/2017
REDACTED PERSONAL DATA,Recharge of Pooled Transp Cost,550,25/08/2017
REDACTED PERSONAL DATA,S.E.N. Taxi Hire,597,25/08/2017
REDACTED PERSONAL DATA,S.E.N. Taxi Hire,1196,25/08/2017
REDACTED PERSONAL DATA,Recharge of Pooled Transp Cost,1340,04/08/2017
GVA Grimley Ltd,Consultants & Specialists,1608,03/08/2017
GVA Grimley Ltd,Consultants & Specialists,1788,09/08/2017
GVA Grimley Ltd,Consultants & Specialists,3900,30/08/2017
GVA Grimley Ltd,Consultants & Specialists,5040,03/08/2017
HALES GROUP LTD&&ISHC3228,Home Care / Domiciliary,1029.12,11/08/2017
HALES GROUP LTD&&ISHC3228,Home Care / Domiciliary,1558.2,11/08/2017
HALES GROUP LTD&&ISHC3228,Home Care / Domiciliary,2423.04,11/08/2017
HALES GROUP LTD&&ISHC3228,Home Care / Domiciliary,2707.61,11/08/2017
HALES GROUP LTD&&ISHC3228,Home Care / Domiciliary,3207.93,11/08/2017
HALES GROUP LTD&&ISHC3228,Home Care / Domiciliary,48878.6,11/08/2017
Harborough District Council,Other Expenditure,1149.26,30/08/2017
Harborough District Council,Postal Services,509.82,23/08/2017
Harborough District Council (NDR),Control Accounts,1361.86,31/08/2017
HARLEY HOUSE CARE HOME LIMITED&&SSAROE40260,Private Contractors,1889.04,25/08/2017
HARMONY CARE & SUPPORT LTD&&ISHC2872,Home Care / Domiciliary,653.55,11/08/2017
HARMONY CARE & SUPPORT LTD&&ISHC2872,Home Care / Domiciliary,13070.56,11/08/2017
Hastings High School Academy,Payment to Ext SEN Providers,1556,25/08/2017
HATHERLEIGH CARE VILLAGE&&SSARO33,Nursing,1904.24,25/08/2017
HATHERLEIGH CARE VILLAGE&&SSARO33,Private Contractors,1904.24,25/08/2017
HAWTHORNE CARE LTD&&SSAROE1360,Residential,814.28,25/08/2017
HAWTHORNE CARE LTD&&SSAROE1360,Residential,2280,25/08/2017
HAWTHORNE CARE LTD&&SSAROE1360,Residential,4951.43,25/08/2017
HAWTHORNE CARE LTD&&SSAROE1360,Residential,26425.6,25/08/2017
REDACTED PERSONAL DATA,Other Transfer Payments,2000,31/08/2017
HC ONE C/O ACACIA CARE HOME&&SSARO3299,Residential,2038.76,25/08/2017
HC ONE LTD RE BEAUVALE CARE HOME&&SSAROE48787,Private Contractors,6776,25/08/2017
HC ONE LTD RE BEAUVALE CARE HOME&&SSAROE48787,Residential,6776,25/08/2017
HC ONE LTD RE CEDAR COURT&&SSAROE43896,Private Contractors,-1359.86,25/08/2017
HC ONE LTD RE CEDAR COURT&&SSAROE43896,Private Contractors,2245.71,25/08/2017
HC ONE LTD RE CEDAR COURT&&SSAROE43896,Private Contractors,7642.57,25/08/2017
HC ONE LTD RE CEDAR COURT&&SSAROE43896,Private Contractors,47320,25/08/2017
HC ONE LTD RE CEDAR COURT&&SSAROE43896,Residential,2245.71,25/08/2017
HC ONE LTD RE CEDAR COURT&&SSAROE43896,Residential,7642.57,25/08/2017
HC ONE LTD RE CEDAR COURT&&SSAROE43896,Residential,47320,25/08/2017
HC ONE LTD RE HARLEY GRANGE&&SSAROE40253,Private Contractors,8471,25/08/2017
HC ONE LTD RE HINCKLEY PARK&&SSAROE24,Private Contractors,-1745.71,25/08/2017
HC ONE LTD RE HINCKLEY PARK&&SSAROE24,Private Contractors,38697.8,25/08/2017
HC ONE LTD RE HINCKLEY PARK&&SSAROE24,Residential,-2100,25/08/2017
HC ONE LTD RE HINCKLEY PARK&&SSAROE24,Residential,-1800,25/08/2017
HC ONE LTD RE HINCKLEY PARK&&SSAROE24,Residential,38697.8,25/08/2017
HC ONE LTD RE MAGNA&&SSAROE68590,Nursing,16640.04,25/08/2017
HC ONE LTD RE MAGNA&&SSAROE68590,Private Contractors,818.72,25/08/2017
HC ONE LTD RE MAGNA&&SSAROE68590,Private Contractors,2307.29,25/08/2017
HC ONE LTD RE MAGNA&&SSAROE68590,Private Contractors,16640.04,25/08/2017
HC ONE LTD RE MAGNA&&SSAROE68590,Residential,16640.04,25/08/2017
HC ONE LTD RE THE WILLOWS&&SSAROE40262,Residential,36704.44,25/08/2017
HC ONE RE THE ROWANS&&SSAROE53508,Residential,944.43,25/08/2017
HC ONE RE THE ROWANS&&SSAROE53508,Residential,1202,25/08/2017
HC ONE RE THE ROWANS&&SSAROE53508,Residential,1459.57,25/08/2017
HC ONE RE THE ROWANS&&SSAROE53508,Residential,1548,25/08/2017
HC ONE RE THE ROWANS&&SSAROE53508,Residential,63463.32,25/08/2017
Health Management Ltd,Other Allowances/Expenses,1618.32,24/08/2017
Health Management Ltd,Other Allowances/Expenses,4228.68,03/08/2017
Health Management Ltd,Other Allowances/Expenses,2860.44,24/08/2017
Health Management Ltd,Other Allowances/Expenses,910.08,24/08/2017
Health Management Ltd,Other Allowances/Expenses,1598.16,03/08/2017
HEATHCOTES CARE LTD&&SSAROE1336,Residential,4196,25/08/2017
HEATHCOTES CARE LTD&&SSAROE1336,Residential,103752.88,25/08/2017
HEATHCOTES M LTD&&SSARO2756,Residential,8264,25/08/2017
HEATHCOTES M LTD&&SSARO2756,Residential,17901.92,25/08/2017
HEATHCOTES M LTD&&SSARO2756,Residential,42156.56,25/08/2017
HEATHCOTES M LTD&&SSARO2756,Residential,57404,25/08/2017
HEATHCOTES M LTD&&SSARO3309,Residential,4397.4,25/08/2017
HEATHCOTES&&SSARO2014,Residential,49588,25/08/2017
Heathfield Academy,Payment to Ext SEN Providers,1540,25/08/2017
HELP AT HOME EGERTON LODGE LTD&&ISHCHC440,Home Care / Domiciliary,-544.34,11/08/2017
HELP AT HOME EGERTON LODGE LTD&&ISHCHC440,Home Care / Domiciliary,676,11/08/2017
HELP AT HOME EGERTON LODGE LTD&&ISHCHC440,Home Care / Domiciliary,788.13,11/08/2017
HELP AT HOME EGERTON LODGE LTD&&ISHCHC440,Home Care / Domiciliary,806,11/08/2017
HELP AT HOME EGERTON LODGE LTD&&ISHCHC440,Home Care / Domiciliary,927.39,11/08/2017
HELP AT HOME EGERTON LODGE LTD&&ISHCHC440,Home Care / Domiciliary,1134.92,11/08/2017
HELP AT HOME EGERTON LODGE LTD&&ISHCHC440,Home Care / Domiciliary,1167.95,11/08/2017
HELP AT HOME EGERTON LODGE LTD&&ISHCHC440,Home Care / Domiciliary,1248.71,11/08/2017
HELP AT HOME EGERTON LODGE LTD&&ISHCHC440,Home Care / Domiciliary,1309.29,11/08/2017
HELP AT HOME EGERTON LODGE LTD&&ISHCHC440,Home Care / Domiciliary,1394.7,11/08/2017
HELP AT HOME EGERTON LODGE LTD&&ISHCHC440,Home Care / Domiciliary,1557.95,11/08/2017
HELP AT HOME EGERTON LODGE LTD&&ISHCHC440,Home Care / Domiciliary,2206.63,11/08/2017
HELP AT HOME EGERTON LODGE LTD&&ISHCHC440,Home Care / Domiciliary,2462.01,11/08/2017
HELP AT HOME EGERTON LODGE LTD&&ISHCHC440,Home Care / Domiciliary,3117.17,11/08/2017
HELP AT HOME EGERTON LODGE LTD&&ISHCHC440,Home Care / Domiciliary,24146.18,11/08/2017
HELP AT HOME EGERTON LODGE LTD&&ISHCHC440,Voluntary Associations,-9301.14,25/08/2017
HELP AT HOME EGERTON LODGE LTD&&ISHCHC440,Voluntary Associations,-8699.6,25/08/2017
HELP AT HOME EGERTON LODGE LTD&&ISHCHC440,Voluntary Associations,8699.58,25/08/2017
HELP AT HOME EGERTON LODGE LTD&&ISHCHC440,Voluntary Associations,9147.6,25/08/2017
HELP AT HOME EGERTON LODGE LTD&&ISHCHC440,Voluntary Associations,9301.13,25/08/2017
HELP AT HOME EGERTON LODGE LTD&&ISHCHC440,Voluntary Associations,9780.12,25/08/2017
HELP AT HOME EGERTON LODGE LTD&&ISHCHC440,Voluntary Associations,9780.14,25/08/2017
HELP AT HOME LTD&&ISHC3234,Home Care / Domiciliary,648.2,11/08/2017
HELP AT HOME LTD&&ISHC3234,Home Care / Domiciliary,822.56,11/08/2017
HELP AT HOME LTD&&ISHC3234,Home Care / Domiciliary,922.61,11/08/2017
HELP AT HOME LTD&&ISHC3234,Home Care / Domiciliary,1074.4,11/08/2017
HELP AT HOME LTD&&ISHC3234,Home Care / Domiciliary,1727.73,11/08/2017
HELP AT HOME LTD&&ISHC3234,Home Care / Domiciliary,3929.18,11/08/2017
HELP AT HOME LTD&&ISHC3234,Home Care / Domiciliary,77831.61,11/08/2017
Heritage Care Ltd     1,Day / CLC Services,815.7,09/08/2017
Heritage Care Ltd     1,Day / CLC Services,842.24,17/08/2017
Heritage Care Ltd     1,Day / CLC Services,935.68,30/08/2017
Heritage Care Ltd     1,Day / CLC Services,945.81,18/08/2017
Heritage Care Ltd     1,Supported Living,-2606.24,04/08/2017
Heritage Care Ltd     1,Supported Living,505.92,17/08/2017
Heritage Care Ltd     1,Supported Living,596.96,03/08/2017
Heritage Care Ltd     1,Supported Living,596.96,25/08/2017
Heritage Care Ltd     1,Supported Living,620,03/08/2017
Heritage Care Ltd     1,Supported Living,626.08,03/08/2017
Heritage Care Ltd     1,Supported Living,626.08,25/08/2017
Heritage Care Ltd     1,Supported Living,745.65,18/08/2017
Heritage Care Ltd     1,Supported Living,784,03/08/2017
Heritage Care Ltd     1,Supported Living,790.68,18/08/2017
Heritage Care Ltd     1,Supported Living,803.19,18/08/2017
Heritage Care Ltd     1,Supported Living,804.11,18/08/2017
Heritage Care Ltd     1,Supported Living,815.7,18/08/2017
Heritage Care Ltd     1,Supported Living,825.71,18/08/2017
Heritage Care Ltd     1,Supported Living,828.21,18/08/2017
Heritage Care Ltd     1,Supported Living,835.72,18/08/2017
Heritage Care Ltd     1,Supported Living,850.73,18/08/2017
Heritage Care Ltd     1,Supported Living,896,03/08/2017
Heritage Care Ltd     1,Supported Living,932.72,18/08/2017
Heritage Care Ltd     1,Supported Living,1065.01,18/08/2017
Heritage Care Ltd     1,Supported Living,1065.21,18/08/2017
Heritage Care Ltd     1,Supported Living,1085.03,18/08/2017
Heritage Care Ltd     1,Supported Living,1280.1,03/08/2017
Heritage Care Ltd     1,Supported Living,1280.1,18/08/2017
Heritage Care Ltd     1,Supported Living,1336.2,30/08/2017
Heritage Care Ltd     1,Supported Living,1901.63,18/08/2017
Heritage Care Ltd     1,Supported Living,2059.26,18/08/2017
Heritage Care Ltd     1,Supported Living,2204.8,17/08/2017
Heritage Care Ltd     1,Supported Living,2384.5,03/08/2017
Heritage Care Ltd     1,Supported Living,2384.5,18/08/2017
Heritage Care Ltd     1,Supported Living,2489,30/08/2017
Heritage Care Ltd     1,Supported Living,3710,03/08/2017
Heritage Care Ltd     1,Supported Living,3808,03/08/2017
Heritage Care Ltd     1,Supported Living,3874.3,30/08/2017
Heritage Care Ltd     1,Supported Living,3976.64,30/08/2017
Heritage Care Ltd     1,Supported Living,4125.66,03/08/2017
Heritage Care Ltd     1,Supported Living,4125.66,18/08/2017
Heritage Care Ltd     1,Supported Living,4213.44,03/08/2017
Heritage Care Ltd     1,Supported Living,4213.44,18/08/2017
Heritage Care Ltd     1,Supported Living,4476.78,03/08/2017
Heritage Care Ltd     1,Supported Living,4476.78,18/08/2017
Heritage Care Ltd     1,Supported Living,4890,03/08/2017
Heritage Care Ltd     1,Supported Living,4975.5,03/08/2017
Heritage Care Ltd     1,Supported Living,5010,04/08/2017
Heritage Care Ltd     1,Supported Living,5053,10/08/2017
Heritage Care Ltd     1,Supported Living,5115,10/08/2017
Heritage Care Ltd     1,Supported Living,5154.24,03/08/2017
Heritage Care Ltd     1,Supported Living,5154.24,10/08/2017
Heritage Care Ltd     1,Supported Living,5154.24,30/08/2017
Heritage Care Ltd     1,Supported Living,5177,10/08/2017
Heritage Care Ltd     1,Supported Living,5356.05,04/08/2017
Heritage Care Ltd     1,Supported Living,5531.1,04/08/2017
Heritage Care Ltd     1,Supported Living,5534.59,10/08/2017
Heritage Care Ltd     1,Supported Living,5584.8,04/08/2017
Heritage Care Ltd     1,Supported Living,5591.04,10/08/2017
Heritage Care Ltd     1,Supported Living,5674.09,09/08/2017
Heritage Care Ltd     1,Supported Living,5715.47,10/08/2017
Heritage Care Ltd     1,Supported Living,5722.31,07/08/2017
Heritage Care Ltd     1,Supported Living,5722.31,10/08/2017
Heritage Care Ltd     1,Supported Living,5770.96,10/08/2017
Heritage Care Ltd     1,Supported Living,5959.57,30/08/2017
Heritage Care Ltd     1,Supported Living,6142.31,04/08/2017
Heritage Care Ltd     1,Supported Living,6142.31,10/08/2017
Heritage Care Ltd     1,Supported Living,6384.6,10/08/2017
Heritage Care Ltd     1,Supported Living,6385.8,04/08/2017
Heritage Care Ltd     1,Supported Living,6385.8,10/08/2017
Heritage Care Ltd     1,Supported Living,6398.17,30/08/2017
Heritage Care Ltd     1,Supported Living,6504.6,04/08/2017
Heritage Care Ltd     1,Supported Living,6504.6,10/08/2017
Heritage Care Ltd     1,Supported Living,6597.42,10/08/2017
Heritage Care Ltd     1,Supported Living,6598.66,10/08/2017
Heritage Care Ltd     1,Supported Living,6721.42,10/08/2017
Heritage Care Ltd     1,Supported Living,6864.95,10/08/2017
Heritage Care Ltd     1,Supported Living,7066.31,03/08/2017
Heritage Care Ltd     1,Supported Living,7066.31,10/08/2017
Heritage Care Ltd     1,Supported Living,7363.09,30/08/2017
Heritage Care Ltd     1,Supported Living,12736.05,11/08/2017
HERITAGE CARE&&SSAROE929,Nursing,9440.6,25/08/2017
HERITAGE CARE&&SSAROE929,Private Contractors,9440.6,25/08/2017
HERITAGE MANOR LTD THE LAWNS&&SARO3279,Private Contractors,2632,25/08/2017
Her Majestys Courts & Tribunals Service,Personal Accounts - Other,1388.89,08/08/2017
HERONS LODGE&&SSAROE433,Residential,9647.8,25/08/2017
HFT (CROMWELL CRESCENT)&&SSARO3174,Residential,6173.4,25/08/2017
HFT (CROMWELL CRESCENT)&&SSARO3174,Supported Living,2392.36,25/08/2017
HFT (CROMWELL CRESCENT)&&SSARO3174,Supported Living,2742.62,25/08/2017
HF Trust Ltd,Day / CLC Services,1606.84,25/08/2017
HF Trust Ltd,Day / CLC Services,2277.97,03/08/2017
HF Trust Ltd,Day / CLC Services,2406.43,03/08/2017
HF Trust Ltd,Day / CLC Services,3002.07,03/08/2017
HF Trust Ltd,Supported Living,1253.28,25/08/2017
HF Trust Ltd,Supported Living,1355.2,25/08/2017
HF Trust Ltd,Supported Living,1420.48,03/08/2017
HF Trust Ltd,Supported Living,1457.34,25/08/2017
HF Trust Ltd,Supported Living,1544.48,25/08/2017
HF Trust Ltd,Supported Living,1661.36,25/08/2017
HF Trust Ltd,Supported Living,1670,03/08/2017
HF Trust Ltd,Supported Living,1902.6,30/08/2017
HF Trust Ltd,Supported Living,1902.6,31/08/2017
HF Trust Ltd,Supported Living,2007.88,03/08/2017
HF Trust Ltd,Supported Living,2058.13,03/08/2017
HF Trust Ltd,Supported Living,2065.33,03/08/2017
HF Trust Ltd,Supported Living,2089.86,25/08/2017
HF Trust Ltd,Supported Living,2119.48,25/08/2017
HF Trust Ltd,Supported Living,2128.16,25/08/2017
HF Trust Ltd,Supported Living,2206.34,25/08/2017
HF Trust Ltd,Supported Living,2223.78,03/08/2017
HF Trust Ltd,Supported Living,2239.48,03/08/2017
HF Trust Ltd,Supported Living,2339.8,25/08/2017
HF Trust Ltd,Supported Living,2342.95,03/08/2017
HF Trust Ltd,Supported Living,2343.4,25/08/2017
HF Trust Ltd,Supported Living,2398.1,25/08/2017
HF Trust Ltd,Supported Living,2406.3,03/08/2017
HF Trust Ltd,Supported Living,2411.72,25/08/2017
HF Trust Ltd,Supported Living,2425.48,25/08/2017
HF Trust Ltd,Supported Living,2441.12,25/08/2017
HF Trust Ltd,Supported Living,2491.65,25/08/2017
HF Trust Ltd,Supported Living,2511.52,03/08/2017
HF Trust Ltd,Supported Living,2524.54,25/08/2017
HF Trust Ltd,Supported Living,2532.88,03/08/2017
HF Trust Ltd,Supported Living,2630.22,03/08/2017
HF Trust Ltd,Supported Living,2658.12,25/08/2017
HF Trust Ltd,Supported Living,2713.5,25/08/2017
HF Trust Ltd,Supported Living,2734.21,25/08/2017
HF Trust Ltd,Supported Living,2775.4,03/08/2017
HF Trust Ltd,Supported Living,2843.72,25/08/2017
HF Trust Ltd,Supported Living,2856.54,25/08/2017
HF Trust Ltd,Supported Living,2862.8,03/08/2017
HF Trust Ltd,Supported Living,2877.72,25/08/2017
HF Trust Ltd,Supported Living,2901.84,07/08/2017
HF Trust Ltd,Supported Living,2967.1,25/08/2017
HF Trust Ltd,Supported Living,3146.2,25/08/2017
HF Trust Ltd,Supported Living,3331.96,25/08/2017
HF Trust Ltd,Supported Living,3542,25/08/2017
HICARE LTD&&SSAROE438,Residential,7752,25/08/2017
HICARE LTD&&SSAROE438,Residential,10470.08,25/08/2017
Highcliffe Primary School Academy,Payment to Ext SEN Providers,1366,25/08/2017
HIGHLAND BLUE LTD&&SARO3338,Residential,3942.86,25/08/2017
HIGHLAND BLUE LTD&&SARO3338,Residential,61901.6,25/08/2017
HILL TOP MANOR CARE HOME&&SSARO3267,Private Contractors,2003.72,25/08/2017
HILL TOP MANOR CARE HOME&&SSARO3267,Residential,2003.72,25/08/2017
Hinckley Academy & John Cleveland Sixth Form Centre,Payment to Ext SEN Providers,2664,25/08/2017
HINCKLEY CARER SUPPORT SCHEME&&ISHCHC459,Home Care / Domiciliary,2921.54,11/08/2017
Hinckley Parks Primary School,Devolved Capital,5167.5,23/08/2017
REDACTED PERSONAL DATA,Residential,9401.28,25/08/2017
HOLLYBANK TRUST&&SSAROE756,Residential,4765.15,25/08/2017
HOLLY LODGE COURT LTD&&SSAROE40373,Residential,14372,25/08/2017
HOLMWOOD CARE LTD&&SSARO3282,Residential,2600,25/08/2017
Holy Cross School Catholic Voluntary Academy,Payment to Ext SEN Providers,1037,25/08/2017
Holywell Primary School,Children&Families Spprt Servs,1875.91,04/08/2017
HOMEFIELD COLLEGE LTD&&SSAROE40389,Residential,-2524,25/08/2017
HOMEFIELD COLLEGE LTD&&SSAROE40389,Residential,-1262,25/08/2017
HOMEFIELD COLLEGE LTD&&SSAROE40389,Residential,1241.24,25/08/2017
HOMEFIELD COLLEGE LTD&&SSAROE40389,Residential,2245.04,25/08/2017
HOMEFIELD COLLEGE LTD&&SSAROE40389,Residential,2482.48,25/08/2017
HOMEFIELD COLLEGE LTD&&SSAROE40389,Residential,3564,25/08/2017
HOMEFIELD COLLEGE LTD&&SSAROE40389,Residential,4964.96,25/08/2017
"HOMEFIELD&&SSARO3168",Private Contractors,6764.44,25/08/2017
HOME FROM HOME RESIDENTIAL CARE LTD&&SSAROE421,Residential,-892,25/08/2017
HOME FROM HOME RESIDENTIAL CARE LTD&&SSAROE421,Residential,7648,25/08/2017
Homes 2 Inspire,Private Contractors,11338.25,30/08/2017
HOPSCOTCH SOLUTIONS LTD&&SSARO2119,Residential,11062.36,25/08/2017
Horizon Care & Education Group Ltd,Payment to Ext SEN Providers,-12184.9,07/08/2017
Horizon Care & Education Group Ltd,Payment to Ext SEN Providers,-12184.9,14/08/2017
Horizon Care & Education Group Ltd,Payment to Ext SEN Providers,12184.9,07/08/2017
Horizon Care & Education Group Ltd,Payment to Ext SEN Providers,20085,07/08/2017
Horizon Care & Education Group Ltd,Payment to Ext SEN Providers,26780,07/08/2017
Horizon Care & Education Group Ltd,Payment to Ext SEN Providers,54095.6,07/08/2017
Horizon Care & Education Group Ltd,Payment to Ext SEN Providers,109664.1,07/08/2017
Horizon Care & Education Group Ltd,Private Contractors,-12497.96,07/08/2017
Horizon Care & Education Group Ltd,Private Contractors,-1209.48,07/08/2017
Horizon Care & Education Group Ltd,Private Contractors,9600,03/08/2017
Horizon Care & Education Group Ltd,Private Contractors,12000,03/08/2017
Horizon Care & Education Group Ltd,Private Contractors,12094.8,03/08/2017
Horizon Care & Education Group Ltd,Private Contractors,12400,14/08/2017
Horizon Care & Education Group Ltd,Private Contractors,12400,25/08/2017
Horizon Care & Education Group Ltd,Private Contractors,12857.1,25/08/2017
Horizon Care & Education Group Ltd,Private Contractors,13684.2,17/08/2017
Horizon Care & Education Group Ltd,Private Contractors,14657.1,18/08/2017
HR CARE HOMES LTD&&SSARO1363,Residential,3670.36,25/08/2017
REDACTED PERSONAL DATA,Residential,1639.12,25/08/2017
Humphrey Perkins School Academy,Payment to Ext SEN Providers,588,25/08/2017
Huncote Community Primary School Academy Trust,Payment to Ext SEN Providers,542,25/08/2017
HUNTERS LODGE CARE & SUPPORT LTD&&SSAROE40448,Residential,-766.07,25/08/2017
HUNTERS LODGE CARE & SUPPORT LTD&&SSAROE40448,Residential,572,25/08/2017
HUNTERS LODGE CARE & SUPPORT LTD&&SSAROE40448,Residential,35424.68,25/08/2017
HUNTERS LODGE RETIREMENT HOME LTD&&SSAROE40396,Residential,560,25/08/2017
HUNTERS LODGE RETIREMENT HOME LTD&&SSAROE40396,Residential,984,25/08/2017
HUNTERS LODGE RETIREMENT HOME LTD&&SSAROE40396,Residential,28008,25/08/2017
HUSKARDS NEW CARE LTD&&SSARO1910,Private Contractors,-1031.28,25/08/2017
HUSKARDS NEW CARE LTD&&SSARO1910,Private Contractors,1889.04,25/08/2017
IDEAL CAREHOMES NUMBER 1 LTD T/A COPPICE LODGE&&SSARO3303,Residential,2420,25/08/2017
IDEAL CARE HOMES (NUMBER ONE) LTD&&SSARO2786,Residential,12720.24,25/08/2017
Imagination Services,Grants,780,04/08/2017
In Out & About Ltd,Day / CLC Services,-4940,03/08/2017
In Out & About Ltd,Private Contractors,840,03/08/2017
In Out & About Ltd,Private Contractors,960,04/08/2017
In Out & About Ltd,Private Contractors,5200,03/08/2017
In Out & About Ltd,Private Contractors,5200,14/08/2017
Ivanhoe College Specialist Technology Academy,Payment to Ext SEN Providers,2189,25/08/2017
REDACTED PERSONAL DATA,Other Transfer Payments,-7409.57,31/08/2017
REDACTED PERSONAL DATA,Other Transfer Payments,8322,31/08/2017
REDACTED PERSONAL DATA,Residential,4688,25/08/2017
REDACTED PERSONAL DATA,Residential,2463.72,25/08/2017
REDACTED PERSONAL DATA,Grants,813.45,03/08/2017
Jetline Taxis Ltd,Recharge of Pooled Transp Cost,952.8,09/08/2017
JF&MV COOPER T/A WILLOWS PRIVATENURSING HOME BUSINESS CURRENT A/C&&SSAROE40242,Nursing,30842,25/08/2017
JF&MV COOPER T/A WILLOWS PRIVATENURSING HOME BUSINESS CURRENT A/C&&SSAROE40242,Private Contractors,30842,25/08/2017
JF&MV COOPER T/A WILLOWS PRIVATENURSING HOME BUSINESS CURRENT A/C&&SSAROE40242,Residential,-1757.15,25/08/2017
JF&MV COOPER T/A WILLOWS PRIVATENURSING HOME BUSINESS CURRENT A/C&&SSAROE40242,Residential,606.86,25/08/2017
JF&MV COOPER T/A WILLOWS PRIVATENURSING HOME BUSINESS CURRENT A/C&&SSAROE40242,Residential,3641.14,25/08/2017
JF&MV COOPER T/A WILLOWS PRIVATENURSING HOME BUSINESS CURRENT A/C&&SSAROE40242,Residential,30842,25/08/2017
John Ferneley College,Payment to Ext SEN Providers,2707,25/08/2017
Jordan Road Surfacing Ltd,Private Contractors,30659.81,04/08/2017
REDACTED PERSONAL DATA,S.E.N. Taxi Hire,3743,30/08/2017
JUBILEE VILLA LTD&&SSAROE749,Residential,1848.09,25/08/2017
JUBILEE VILLA LTD&&SSAROE749,Residential,2541.13,25/08/2017
JUBILEE VILLA LTD&&SSAROE749,Residential,20188,25/08/2017
REDACTED PERSONAL DATA,Recharge of Pooled Transp Cost,1235,16/08/2017
REDACTED PERSONAL DATA,S.E.N. Taxi Hire,1235,16/08/2017
REDACTED PERSONAL DATA,Grants,698.72,23/08/2017
KEENGLEN CARE HOMES LTD&&SSARO3220,Residential,11024,25/08/2017
Kibworth CE Primary School Academy,Payment to Ext SEN Providers,978,25/08/2017
Kibworth High School Academy,Payment to Ext SEN Providers,542,25/08/2017
KIBWORTH KNOLL LTD&&SSAROE76184,Residential,535,25/08/2017
KIBWORTH KNOLL LTD&&SSAROE76184,Residential,11804,25/08/2017
KIDAROO CHILDCARE LTD&&EYRS1304,Grants,926.31,03/08/2017
KILMAR HOUSE CARE HOME&&SSARO3313,Residential,2176,25/08/2017
KINGLEY PARTNERSHIP LTD T/A KINGLEY HOUSE&&SSARO1232,Residential,5566.26,25/08/2017
KINGLEY PARTNERSHIP LTD T/A KINGLEY HOUSE&&SSARO1232,Residential,8429.96,25/08/2017
KINGLEY PARTNERSHIP LTD T/A KINGLEY HOUSE&&SSARO1232,Residential,23040.76,25/08/2017
KINGLY CARE PARTNERSHIP&&SSARO3232,Residential,3371.2,25/08/2017
KINGS RESIDENTIAL CARE HOMES LTD&&SSARO1726,Residential,24940,25/08/2017
Kings School Grantham,Other Local Authorities,1250,04/08/2017
KINGSWOOD LODGE&&SSAROE40284,Residential,1062,25/08/2017
KINGSWOOD LODGE&&SSAROE40284,Residential,21324,25/08/2017
KIRBY GRANGE LTD (KIRBY GRANGE RESIDENTIAL HOME)&&SSAROE40286,Residential,835.71,25/08/2017
KIRBY GRANGE LTD (KIRBY GRANGE RESIDENTIAL HOME)&&SSAROE40286,Residential,1406.86,25/08/2017
KIRBY GRANGE LTD (KIRBY GRANGE RESIDENTIAL HOME)&&SSAROE40286,Residential,1593,25/08/2017
KIRBY GRANGE LTD (KIRBY GRANGE RESIDENTIAL HOME)&&SSAROE40286,Residential,1764.29,25/08/2017
KIRBY GRANGE LTD (KIRBY GRANGE RESIDENTIAL HOME)&&SSAROE40286,Residential,4124,25/08/2017
KIRBY GRANGE LTD (KIRBY GRANGE RESIDENTIAL HOME)&&SSAROE40286,Residential,21888,25/08/2017
Kirby Muxloe Primary School Academy,Payment to Ext SEN Providers,2045,25/08/2017
REDACTED PERSONAL DATA,S.E.N. Taxi Hire,999.8,11/08/2017
REDACTED PERSONAL DATA,Recharge of Pooled Transp Cost,1128,04/08/2017
Knighton Manor Ltd,Managed/Traditional Services,3453.2,29/08/2017
Knighton Manor Ltd,Managed/Traditional Services,5019.96,09/08/2017
Knighton Manor Ltd,Managed/Traditional Services,5065.6,09/08/2017
Knighton Manor Ltd,Managed/Traditional Services,5460.8,09/08/2017
Knighton Manor Ltd,Managed/Traditional Services,5460.8,29/08/2017
Knighton Manor Ltd,Managed/Traditional Services,5593.68,29/08/2017
Knighton Manor Ltd,Managed/Traditional Services,5889.9,09/08/2017
Knighton Manor Ltd,Managed/Traditional Services,5969.1,29/08/2017
Knighton Manor Ltd,Managed/Traditional Services,6637.48,09/08/2017
Knighton Manor Ltd,Managed/Traditional Services,10602.9,07/08/2017
Knighton Manor Ltd,Personal Accounts - Govt Depts,3453.2,29/08/2017
Knighton Manor Ltd,Personal Accounts - Govt Depts,5019.96,09/08/2017
Knighton Manor Ltd,Personal Accounts - Govt Depts,5065.6,09/08/2017
Knighton Manor Ltd,Personal Accounts - Govt Depts,5460.8,09/08/2017
Knighton Manor Ltd,Personal Accounts - Govt Depts,5460.8,29/08/2017
Knighton Manor Ltd,Personal Accounts - Govt Depts,5593.68,29/08/2017
Knighton Manor Ltd,Personal Accounts - Govt Depts,5889.9,09/08/2017
Knighton Manor Ltd,Personal Accounts - Govt Depts,5969.1,29/08/2017
Knighton Manor Ltd,Personal Accounts - Govt Depts,6637.48,09/08/2017
Knighton Manor Ltd,Personal Accounts - Govt Depts,10602.9,07/08/2017
Knighton Manor Ltd,Supported Living,3453.2,29/08/2017
Knighton Manor Ltd,Supported Living,4155,04/08/2017
Knighton Manor Ltd,Supported Living,4155,29/08/2017
Knighton Manor Ltd,Supported Living,5019.96,09/08/2017
Knighton Manor Ltd,Supported Living,5065.6,09/08/2017
Knighton Manor Ltd,Supported Living,5460.8,09/08/2017
Knighton Manor Ltd,Supported Living,5460.8,29/08/2017
Knighton Manor Ltd,Supported Living,5593.68,29/08/2017
Knighton Manor Ltd,Supported Living,5889.9,09/08/2017
Knighton Manor Ltd,Supported Living,5969.1,29/08/2017
Knighton Manor Ltd,Supported Living,6637.48,09/08/2017
Knighton Manor Ltd,Supported Living,10602.9,07/08/2017
KNIGHTON MANOR LTD&&SSAROE68249,Residential,10378.4,25/08/2017
KNOWLE HOUSE NURSING HOME&&SSARO2882,Residential,2061.6,25/08/2017
KPMG Llp Fees Account,Audit Fee,23085,30/08/2017
KPMG Llp Fees Account,Consultants & Specialists,4836,03/08/2017
K PRASAD & GIVECARE LTD T/A BOSWORTH HOMECARE SERVICES&&ISHCHC446,Home Care / Domiciliary,13088.26,11/08/2017
REDACTED PERSONAL DATA,S.E.N. Taxi Hire,1522.6,16/08/2017
REDACTED PERSONAL DATA,S.E.N. Taxi Hire,3105.2,04/08/2017
KRIS CARERS LTD&&ISHC3937,Home Care / Domiciliary,746.66,11/08/2017
KRIS CARERS LTD&&ISHC3937,Home Care / Domiciliary,1624.59,11/08/2017
KRIS CARERS LTD&&ISHC3937,Home Care / Domiciliary,1929.83,11/08/2017
KRIS CARERS LTD&&ISHC3937,Home Care / Domiciliary,12216.44,11/08/2017
REDACTED PERSONAL DATA,Recharge of Pooled Transp Cost,571.2,18/08/2017
KTS Taxis,Recharge of Pooled Transp Cost,757.2,18/08/2017
KTS Taxis,Recharge of Pooled Transp Cost,876,18/08/2017
KTS Taxis,Recharge of Pooled Transp Cost,1300.8,18/08/2017
KTS Taxis,Recharge of Pooled Transp Cost,2653.2,18/08/2017
KTS Taxis,S.E.N. Taxi Hire,2016,18/08/2017
Lady Jane Grey Academy,Payment to Ext SEN Providers,695,25/08/2017
LAMP,Materials,10124.67,25/08/2017
LANDERMEADS INVESTMENTS LTD&&SSAROE51305,Private Contractors,778,25/08/2017
LANGDALE RESIDENTIAL HOME&&SSAROE40271,Private Contractors,640,25/08/2017
LANGDALE RESIDENTIAL HOME&&SSAROE40271,Private Contractors,705.67,25/08/2017
LANGDALE RESIDENTIAL HOME&&SSAROE40271,Private Contractors,800,25/08/2017
LANGDALE RESIDENTIAL HOME&&SSAROE40271,Private Contractors,880,25/08/2017
LANGDALE RESIDENTIAL HOME&&SSAROE40271,Private Contractors,15136.6,25/08/2017
LANGDALE RESIDENTIAL HOME&&SSAROE40271,Residential,640,25/08/2017
LANGDALE RESIDENTIAL HOME&&SSAROE40271,Residential,705.67,25/08/2017
LANGDALE RESIDENTIAL HOME&&SSAROE40271,Residential,800,25/08/2017
LANGDALE RESIDENTIAL HOME&&SSAROE40271,Residential,880,25/08/2017
LANGDALE RESIDENTIAL HOME&&SSAROE40271,Residential,15136.6,25/08/2017
LANGDALE VIEW LTD&&SSARO1356,Nursing,6079.58,25/08/2017
LANGDALE VIEW LTD&&SSARO1356,Private Contractors,6079.58,25/08/2017
LANGLEYS&&SSARO3286,Residential,1704,25/08/2017
LAXTON HALL&&SSAROE58522,Residential,2304,25/08/2017
LCC Anstey Latimer CP School A/C,Devolved Capital,4506,23/08/2017
LCC Arnesby CE Primary School A/C,Devolved Capital,2737.5,23/08/2017
LCC Ashby De La Zouch CE Primary School A/C,Devolved Capital,4431.75,23/08/2017
LCC Ashby De La Zouch Woodcote Primary School A/C,Devolved Capital,3702.75,23/08/2017
LCC Barwell CI School A/C,Devolved Capital,3669,23/08/2017
LCC Barwell Newlands CP School A/C,Devolved Capital,4249.5,23/08/2017
LCC Belton CE Primary School A/C,Devolved Capital,2967,23/08/2017
LCC Billesdon Parochial Primary School A/C,Devolved Capital,3075,23/08/2017
LCC Blaby Stokes CE Primary School A/C,Devolved Capital,4836.75,23/08/2017
LCC Blaby Thistly Meadow Primary School A/C,Devolved Capital,3817.5,23/08/2017
LCC Braunstone Kingsway CP School A/C,Devolved Capital,4519.5,23/08/2017
LCC Braunstone Ravenhurst CP School A/C,Devolved Capital,6389.25,23/08/2017
LCC Breedon On The Hill St Hardulphs School A/C,Devolved Capital,2791.5,23/08/2017
LCC Broughton Astley Old Mill CP School A/C,Devolved Capital,5012.25,23/08/2017
LCC Broughton Astley Orchard CE School A/C,Devolved Capital,3790.5,23/08/2017
LCC Buckminster CP School A/C,Devolved Capital,3021,23/08/2017
LCC Burbage CE Infants School A/C,Devolved Capital,4229.25,23/08/2017
LCC Burbage County Junior School A/C,Devolved Capital,4836.75,23/08/2017
LCC Burbage Sketchley Hill CP School A/C,Devolved Capital,5302.5,23/08/2017
LCC Castle Donington Orchard CP School A/C,Devolved Capital,4006.5,23/08/2017
LCC Coalville All Saints CE School A/C,Devolved Capital,3817.5,23/08/2017
LCC Coalville Belvoir Dale County School A/C,Devolved Capital,4404.75,23/08/2017
LCC Coalville Warren Hills CP School A/C,Devolved Capital,3736.5,23/08/2017
LCC Congerstone County School A/C,Devolved Capital,3277.5,23/08/2017
LCC Cossington CE School A/C,Devolved Capital,3075,23/08/2017
LCC Countesthorpe Greenfields Primary School A/C,Devolved Capital,6362.25,23/08/2017
LCC Countesthorpe Nursery School A/C,Devolved Capital,2619.51,23/08/2017
LCC Croft CE School A/C,Devolved Capital,3007.5,23/08/2017
LCC Customer Direct Payments A/C,Cash Personal Budgets,888.13,24/08/2017
LCC Customer Direct Payments A/C,Cash Personal Budgets,4211.58,18/08/2017
LCC Customer Rep Direct Payments A/C,Cash Personal Budgets,1508.54,07/08/2017
LCC Desford CP School A/C,Devolved Capital,4445.25,23/08/2017
LCC Diseworth Primary School A/C,Devolved Capital,2703.75,23/08/2017
LCC Donisthorpe CP School A/C,Devolved Capital,3635.25,23/08/2017
LCC Dunton Bassett County School A/C,Devolved Capital,2987.25,23/08/2017
LCC Ellesmere College,Other Local Authorities,49292.17,16/08/2017
LCC Ellistown CP School A/C,Devolved Capital,3945.75,23/08/2017
LCC Fleckney CE School A/C,Devolved Capital,4958.25,23/08/2017
LCC Foxton County School A/C,Devolved Capital,2973.75,23/08/2017
LCC Glenfield The Hall Primary School A/C,Devolved Capital,5343,23/08/2017
LCC Great Glen St Cuthberts CE Primary School A/C,Devolved Capital,3986.25,23/08/2017
LCC Griffydam CP School A/C,Devolved Capital,3034.5,23/08/2017
LCC Groby Elizabeth Woodville County School A/C,Devolved Capital,3844.5,23/08/2017
LCC Groby Martinshaw County School A/C,Devolved Capital,3763.5,23/08/2017
LCC Hallaton CE School A/C,Devolved Capital,3223.5,23/08/2017
LCC Harby CE School A/C,Devolved Capital,2946.75,23/08/2017
LCC Hathern CE Primary School A/C,Devolved Capital,3203.25,23/08/2017
LCC Heather County School A/C,Devolved Capital,3108.75,23/08/2017
LCC Hemington County Primary School A/C,Devolved Capital,2811.75,23/08/2017
LCC Hinckley St Marys CE School A/C,Devolved Capital,4492.5,23/08/2017
LCC Hinckley Westfield CI School A/C,Devolved Capital,4377.75,23/08/2017
LCC Hinckley Westfield CJ School A/C,Devolved Capital,4647.75,23/08/2017
LCC Hose CE School A/C,Devolved Capital,2798.25,23/08/2017
LCC Houghton On The Hill CP School A/C,Devolved Capital,3581.25,23/08/2017
LCC Hugglescote CP School A/C,Devolved Capital,5133.75,23/08/2017
LCC Ibstock CJ School A/C,Devolved Capital,3871.5,23/08/2017
LCC Ibstock St Denys CE Infants School A/C,Devolved Capital,3844.5,23/08/2017
LCC Imperial Avenue Infant School,Children&Families Spprt Servs,1873.35,04/08/2017
LCC Kegworth CP School A/C,Devolved Capital,3527.25,23/08/2017
LCC Little Bowden CP School A/C,Devolved Capital,5012.25,23/08/2017
LCC Long Clawson CE School A/C,Devolved Capital,3088.5,23/08/2017
LCC Long Whatton Primary School A/C,Devolved Capital,2940,23/08/2017
LCC Loughborough Booth Wood CP School A/C,Devolved Capital,3810.75,23/08/2017
LCC Loughborough Thorpe Acre County Infant School A/C,Devolved Capital,3264,23/08/2017
LCC Loughborough Thorpe Acre County Junior School A/C,Devolved Capital,3405.75,23/08/2017
LCC Lutterworth Sherrier CE Primary School A/C,Devolved Capital,4924.5,23/08/2017
LCC Managed Finances Pooled Account,Residential,597.2,23/08/2017
LCC Managed Finances Pooled Account,Residential,645.01,03/08/2017
LCC Melton Mowbray Birch Wood School A/C,Devolved Capital,5356.5,23/08/2017
LCC Melton Mowbray Sherard County Primary School A/C,Devolved Capital,4438.5,23/08/2017
LCC Moira Primary School,Devolved Capital,3635.25,23/08/2017
LCC Nailstone Dove Bank Primary School A/C,Devolved Capital,3135.75,23/08/2017
LCC Newbold Coleorton CE School A/C,Devolved Capital,2771.25,23/08/2017
LCC Newbold Verdon CP School A/C,Devolved Capital,3925.5,23/08/2017
LCC New Swannington Primary School A/C,Devolved Capital,3723,23/08/2017
LCC Newton Burgoland CP School A/C,Devolved Capital,2987.25,23/08/2017
LCC Oadby Brookside CP School A/C,Devolved Capital,4971.75,23/08/2017
LCC Oadby Woodland Grange Primary School A/C,Devolved Capital,4884,23/08/2017
LCC Quorn St Bartholomews CE Primary School A/C,Devolved Capital,5518.5,23/08/2017
LCC Scalford CE School A/C,Devolved Capital,2852.25,23/08/2017
LCC Sheepy Magna CE School A/C,Devolved Capital,3135.75,23/08/2017
LCC Shepshed High School A/C,Devolved Capital,7327.5,23/08/2017
LCC Shepshed Hind Leys Community College A/C,Devolved Capital,8788.88,23/08/2017
LCC Shepshed Oxley CP School A/C,Devolved Capital,3945.75,23/08/2017
LCC Shepshed St Botolphs CE Primary School A/C,Devolved Capital,3986.25,23/08/2017
LCC Sileby Highgate CP School A/C,Devolved Capital,3864.75,23/08/2017
LCC Stathern CP School A/C,Devolved Capital,2906.25,23/08/2017
LCC Stoney Stanton Manorfield CE Primary School A/C,Devolved Capital,4742.25,23/08/2017
LCC Swithland St Leonards CE School A/C,Devolved Capital,3081.75,23/08/2017
LCC Warren Hills Community Primary School,Receipts in Advance,5847.8,25/08/2017
LCC Whetstone Badgerbrook Primary School A/C,Devolved Capital,5174.25,23/08/2017
LCC Whitwick CE Primary School A/C,Devolved Capital,4755.75,23/08/2017
LCC Wigston Fields Water Leys CP School A/C,Devolved Capital,4836.75,23/08/2017
LCC Wigston Thythorn Field CP School A/C,Devolved Capital,3513.75,23/08/2017
LCC Woodhouse Eaves Maplewell Hall School A/C,Devolved Capital,5781.75,23/08/2017
LCC Woodhouse Eaves St Pauls CE Primary School A/C,Devolved Capital,3858,23/08/2017
LCC Woodstone County School A/C,Devolved Capital,3837.75,23/08/2017
LCC Worthington Primary School A/C,Devolved Capital,2818.5,23/08/2017
LCC Wymeswold CE School A/C,Devolved Capital,3351.75,23/08/2017
LCHAA (LEEDS AUTISM SERVICES)&&SSAROE81,Residential,7314.12,25/08/2017
Leicester City Council,Personal Accounts - Other,900.54,08/08/2017
Leicestershire Community Projects Trust,Voluntary Associations,6666.5,25/08/2017
Leicestershire Community Projects Trust,Voluntary Associations,10000,25/08/2017
LEICESTERSHIRE COUNTY CARE LIMITED&&SSARO3258,Residential,1938,25/08/2017
LEICESTERSHIRE COUNTY CARE LTD&&SSARO2541,Residential,-2365.71,25/08/2017
LEICESTERSHIRE COUNTY CARE LTD&&SSARO2541,Residential,-2125.28,25/08/2017
LEICESTERSHIRE COUNTY CARE LTD&&SSARO2541,Residential,-1210.57,25/08/2017
LEICESTERSHIRE COUNTY CARE LTD&&SSARO2541,Residential,-1198.29,25/08/2017
LEICESTERSHIRE COUNTY CARE LTD&&SSARO2541,Residential,-1065.14,25/08/2017
LEICESTERSHIRE COUNTY CARE LTD&&SSARO2541,Residential,-764.57,25/08/2017
LEICESTERSHIRE COUNTY CARE LTD&&SSARO2541,Residential,-708.42,25/08/2017
LEICESTERSHIRE COUNTY CARE LTD&&SSARO2541,Residential,-700.86,25/08/2017
LEICESTERSHIRE COUNTY CARE LTD&&SSARO2541,Residential,-637.14,25/08/2017
LEICESTERSHIRE COUNTY CARE LTD&&SSARO2541,Residential,509.71,25/08/2017
LEICESTERSHIRE COUNTY CARE LTD&&SSARO2541,Residential,568.93,25/08/2017
LEICESTERSHIRE COUNTY CARE LTD&&SSARO2541,Residential,637.14,25/08/2017
LEICESTERSHIRE COUNTY CARE LTD&&SSARO2541,Residential,682.71,25/08/2017
LEICESTERSHIRE COUNTY CARE LTD&&SSARO2541,Residential,865.86,25/08/2017
LEICESTERSHIRE COUNTY CARE LTD&&SSARO2541,Residential,1019.43,25/08/2017
LEICESTERSHIRE COUNTY CARE LTD&&SSARO2541,Residential,1529.14,25/08/2017
LEICESTERSHIRE COUNTY CARE LTD&&SSARO2541,Residential,1708.28,25/08/2017
LEICESTERSHIRE COUNTY CARE LTD&&SSARO2541,Residential,1784,25/08/2017
LEICESTERSHIRE COUNTY CARE LTD&&SSARO2541,Residential,1792.85,25/08/2017
LEICESTERSHIRE COUNTY CARE LTD&&SSARO2541,Residential,1852.57,25/08/2017
LEICESTERSHIRE COUNTY CARE LTD&&SSARO2541,Residential,1896.43,25/08/2017
LEICESTERSHIRE COUNTY CARE LTD&&SSARO2541,Residential,2857.86,25/08/2017
LEICESTERSHIRE COUNTY CARE LTD&&SSARO2541,Residential,3402.29,25/08/2017
LEICESTERSHIRE COUNTY CARE LTD&&SSARO2541,Residential,3547.86,25/08/2017
LEICESTERSHIRE COUNTY CARE LTD&&SSARO2541,Residential,3766.71,25/08/2017
LEICESTERSHIRE COUNTY CARE LTD&&SSARO2541,Residential,4068,25/08/2017
LEICESTERSHIRE COUNTY CARE LTD&&SSARO2541,Residential,4875.86,25/08/2017
LEICESTERSHIRE COUNTY CARE LTD&&SSARO2541,Residential,5464.43,25/08/2017
LEICESTERSHIRE COUNTY CARE LTD&&SSARO2541,Residential,37104,25/08/2017
LEICESTERSHIRE COUNTY CARE LTD&&SSARO2541,Residential,37716,25/08/2017
LEICESTERSHIRE COUNTY CARE LTD&&SSARO2541,Residential,40093.44,25/08/2017
LEICESTERSHIRE COUNTY CARE LTD&&SSARO2541,Residential,41051.77,25/08/2017
LEICESTERSHIRE COUNTY CARE LTD&&SSARO2541,Residential,43828,25/08/2017
LEICESTERSHIRE COUNTY CARE LTD&&SSARO2541,Residential,49813.44,25/08/2017
LEICESTERSHIRE COUNTY CARE LTD&&SSARO2541,Residential,55255.28,25/08/2017
LEICESTERSHIRE COUNTY CARE LTD&&SSARO2541,Residential,65756.57,25/08/2017
LEICESTERSHIRE COUNTY CARE LTD&&SSARO2541,Residential,68576,25/08/2017
LEICESTERSHIRE COUNTY CARE LTD&&SSARO3206,Residential,-1117.34,25/08/2017
LEICESTERSHIRE COUNTY CARE LTD&&SSARO3206,Residential,1107.43,25/08/2017
LEICESTERSHIRE COUNTY CARE LTD&&SSARO3206,Residential,3183.86,25/08/2017
LEICESTERSHIRE COUNTY CARE LTD&&SSARO3206,Residential,3676.08,25/08/2017
Leicestershire Partnership NHS Trust,Public Bodies,19533.33,03/08/2017
LEONARD CHESHIRE DISABILITY&&SSARO3262,Residential,4794.36,25/08/2017
LEONARD CHESHIRE FOUNDATION&&SSAROE905,Private Contractors,7813.8,25/08/2017
LEONARD CHESHIRE FOUNDATION&&SSAROE905,Residential,5379.96,25/08/2017
LEONARD CHESHIRE FOUNDATION&&SSAROE905,Residential,7813.8,25/08/2017
LEONARD CHESHIRE FOUNDATION&&SSAROE905,Residential,22704,25/08/2017
LEONARD CHESHIRE FOUNDATION&&SSAROE905,Residential,31129.4,25/08/2017
LESTER HALL APARTMENTS LTD&&SSAROE434,Residential,10265.94,25/08/2017
Lex Autolease Ltd,Contract Hire,516.73,03/08/2017
Lex Autolease Ltd,Operational Leasing,2220.77,14/08/2017
Lex Autolease Ltd,Operational Leasing,2220.77,25/08/2017
Lex Autolease Ltd,Operational Leasing,2420.49,15/08/2017
Lex Autolease Ltd,Operational Leasing,3054.81,15/08/2017
Lex Autolease Ltd,Operational Leasing,3107.95,14/08/2017
Lex Autolease Ltd,Operational Leasing,3407.18,15/08/2017
Lex Autolease Ltd,Operational Leasing,3735.5,14/08/2017
LIFELINE NURSING SERVICES LTD T/A ST EDMUNDS&&SSAROE49039,Private Contractors,3444,25/08/2017
LIFELINE NURSING SERVICES LTD T/A ST EDMUNDS&&SSAROE49039,Residential,3444,25/08/2017
Limehurst High School Academy,Payment to Ext SEN Providers,730,25/08/2017
LIME TREE DAY NURSERY SILEBY&&EYRS1791,Grants,665.55,17/08/2017
LINCOLNSHIRE HOUSE ASSOCIATION LTD&&SSARO2305,Residential,3653.96,25/08/2017
LINDEN LODGE&&SSAROE48027,Private Contractors,2371.2,25/08/2017
LINGDALE LODGE RESIDENTIAL HOME&&SSAROE461,Residential,-1441.29,25/08/2017
LINGDALE LODGE RESIDENTIAL HOME&&SSAROE461,Residential,566.85,25/08/2017
LINGDALE LODGE RESIDENTIAL HOME&&SSAROE461,Residential,637.72,25/08/2017
LINGDALE LODGE RESIDENTIAL HOME&&SSAROE461,Residential,682.71,25/08/2017
LINGDALE LODGE RESIDENTIAL HOME&&SSAROE461,Residential,1162,25/08/2017
LINGDALE LODGE RESIDENTIAL HOME&&SSAROE461,Residential,3188.57,25/08/2017
LINGDALE LODGE RESIDENTIAL HOME&&SSAROE461,Residential,3831.28,25/08/2017
LINGDALE LODGE RESIDENTIAL HOME&&SSAROE461,Residential,53844,25/08/2017
LINKAGE COMMUNITY TRUST CARE SERVICES A/C&&SSAROE1329,Residential,2764,25/08/2017
LINKAGE COMMUNITY TRUST CARE SERVICES A/C&&SSAROE1329,Residential,15261.4,25/08/2017
LITTLE ANGELS DAY NURSERY&&EYRS1561,Grants,1865.52,03/08/2017
LITTLE FINGERS PLAYGROUP (SRKC)&&EYRS1557,Grants,709.92,03/08/2017
LODGE RESIDENTIAL HOME&&SSAROE40440,Residential,1100,25/08/2017
LODGE RESIDENTIAL HOME&&SSAROE40440,Residential,9241.71,25/08/2017
LODGE TRUST&&SSAROE40324,Residential,-1556,25/08/2017
LODGE TRUST&&SSAROE40324,Residential,-867.46,25/08/2017
LODGE TRUST&&SSAROE40324,Residential,1036.71,25/08/2017
LODGE TRUST&&SSAROE40324,Residential,1632,25/08/2017
LODGE TRUST&&SSAROE40324,Residential,29204.44,25/08/2017
LONDON ROAD NURSING HOME&&SSAROE40265,Private Contractors,2633.89,25/08/2017
LONDON ROAD NURSING HOME&&SSAROE40265,Private Contractors,6704.44,25/08/2017
LORRAINES CARE HOME LTD&&SSAROE47122,Residential,3894.8,25/08/2017
LOUGHBOROUGH CAMPUS NURSERY&&EYRS1457,Grants,1198.8,17/08/2017
Loughborough College   1,Payment to Ext SEN Providers,23371.28,16/08/2017
Loughborough Holywell Primary Academy,Payment to Ext SEN Providers,1269,25/08/2017
Loughborough Leggo Youth Group,Grants,2786,18/08/2017
Loughborough Leggo Youth Group,Grants,2786,30/08/2017
Lutterworth College Academy,Payment to Ext SEN Providers,1212,31/08/2017
LYNDHURST LODGE LTD&&SSAROE40340,Residential,655.71,25/08/2017
LYNDHURST LODGE LTD&&SSAROE40340,Residential,1092.86,25/08/2017
LYNDHURST LODGE LTD&&SSAROE40340,Residential,25160,25/08/2017
REDACTED PERSONAL DATA,Nursing,4552.86,24/08/2017
Macintyre Care,Day / CLC Services,1170.03,03/08/2017
Macintyre Care,Day / CLC Services,1388.7,29/08/2017
Macintyre Care,Day / CLC Services,1434.99,03/08/2017
Macintyre Care,Day / CLC Services,1434.99,31/08/2017
Macintyre Care,Managed/Traditional Services,1388.7,29/08/2017
Macintyre Care,Managed/Traditional Services,1434.99,03/08/2017
Macintyre Care,Personal Accounts - Govt Depts,1388.7,29/08/2017
Macintyre Care,Personal Accounts - Govt Depts,1434.99,03/08/2017
Macintyre Care,Residential,1434.99,03/08/2017
MACINTYRE CARE&&SSAROE40268,Residential,40647.04,25/08/2017
MAGNUM CARE LTD T/A ABERRY HOUSE&&SSAROE40470,Private Contractors,6117.15,25/08/2017
MAGNUM CARE LTD T/A ABERRY HOUSE&&SSAROE40470,Private Contractors,6660,25/08/2017
MAGNUM CARE LTD T/A ABERRY HOUSE&&SSAROE40470,Residential,-950,25/08/2017
MAGNUM CARE LTD T/A ABERRY HOUSE&&SSAROE40470,Residential,692.14,25/08/2017
MAGNUM CARE LTD T/A ABERRY HOUSE&&SSAROE40470,Residential,969,25/08/2017
MAGNUM CARE LTD T/A ABERRY HOUSE&&SSAROE40470,Residential,6117.15,25/08/2017
MAGNUM CARE LTD T/A ABERRY HOUSE&&SSAROE40470,Residential,6660,25/08/2017
MAGNUM HOLIDAYS LTD T/A ALSTON HOUSE RESIDENTIAL HOME&&SSAROE533,Residential,9005.58,25/08/2017
Malvern Achievement Services Ltd,Private Contractors,21576,25/08/2017
Manor High School,Payment to Ext SEN Providers,798,25/08/2017
Maplefields Academy,Other Local Authorities,6705,07/08/2017
Market Bosworth High School Academy,Payment to Ext SEN Providers,1092,25/08/2017
Marlene Reid Centre Community Action     1,Recharge of Pooled Transp Cost,1985.48,04/08/2017
MARS CARE SERVICES LTD&&SSARO1430,Residential,11576,25/08/2017
REDACTED PERSONAL DATA,Home to Sch Trans - Buses,1100,10/08/2017
REDACTED PERSONAL DATA,Home to Sch Trans - Buses,1656,11/08/2017
REDACTED PERSONAL DATA,Personal Accounts - Govt Depts,1656,11/08/2017
REDACTED PERSONAL DATA,Recharge of Pooled Transp Cost,691.2,11/08/2017
REDACTED PERSONAL DATA,Recharge of Pooled Transp Cost,1008,11/08/2017
REDACTED PERSONAL DATA,Recharge of Pooled Transp Cost,1436.4,14/08/2017
REDACTED PERSONAL DATA,S.E.N. Taxi Hire,798,14/08/2017
REDACTED PERSONAL DATA,S.E.N. Taxi Hire,833.76,11/08/2017
REDACTED PERSONAL DATA,S.E.N. Taxi Hire,1524.24,11/08/2017
REDACTED PERSONAL DATA,S.E.N. Taxi Hire,2251.2,11/08/2017
REDACTED PERSONAL DATA,S.E.N. Taxi Hire,2448,11/08/2017
REDACTED PERSONAL DATA,S.E.N. Taxi Hire,2452.8,11/08/2017
REDACTED PERSONAL DATA,S.E.N. Taxi Hire,2640,11/08/2017
REDACTED PERSONAL DATA,S.E.N. Taxi Hire,2781.6,11/08/2017
REDACTED PERSONAL DATA,S.E.N. Taxi Hire,3093.6,11/08/2017
MAURICARE LTD&&SSAROE40436,Residential,1284,25/08/2017
M Bennett Ltd,Suspense,1162.2,18/08/2017
M Bennett Ltd,Suspense,1888.71,25/08/2017
REDACTED PERSONAL DATA,Other Equipment & Materials,1000,25/08/2017
Meadow Community Primary School,Payment to Ext SEN Providers,2788,25/08/2017
Meadowdale Primary School Academy,Children&Families Spprt Servs,3243.2,04/08/2017
Meadowdale Primary School Academy,Payment to Ext SEN Providers,542,25/08/2017
MEDACS HEALTHCARE&&ISHC3235,Home Care / Domiciliary,-3791.25,11/08/2017
MEDACS HEALTHCARE&&ISHC3235,Home Care / Domiciliary,501.02,11/08/2017
MEDACS HEALTHCARE&&ISHC3235,Home Care / Domiciliary,568.11,11/08/2017
MEDACS HEALTHCARE&&ISHC3235,Home Care / Domiciliary,731.78,11/08/2017
MEDACS HEALTHCARE&&ISHC3235,Home Care / Domiciliary,2289.45,11/08/2017
MEDACS HEALTHCARE&&ISHC3235,Home Care / Domiciliary,3860.87,11/08/2017
MEDACS HEALTHCARE&&ISHC3235,Home Care / Domiciliary,54928.92,11/08/2017
Melton Borough Council,Other Expenditure,6272.62,03/08/2017
MELTON CARE LTD THE AMWELL&&SARO3345,Private Contractors,58648.39,25/08/2017
MELTON CARE LTD THE AMWELL&&SARO3345,Residential,509.71,25/08/2017
MELTON CARE LTD THE AMWELL&&SARO3345,Residential,764.57,25/08/2017
MELTON CARE LTD THE AMWELL&&SARO3345,Residential,986.14,25/08/2017
MELTON CARE LTD THE AMWELL&&SARO3345,Residential,1139.14,25/08/2017
MELTON CARE LTD THE AMWELL&&SARO3345,Residential,1338,25/08/2017
MELTON CARE LTD THE AMWELL&&SARO3345,Residential,1784,25/08/2017
MELTON CARE LTD THE AMWELL&&SARO3345,Residential,58648.39,25/08/2017
MELTON CARE SERVICES LTD&&ISHC3134,Home Care / Domiciliary,1793.22,11/08/2017
MELTON CARE SERVICES LTD&&ISHC3134,Home Care / Domiciliary,8662.69,11/08/2017
Melton Mowbray Grove CP School Academy,Payment to Ext SEN Providers,1519,25/08/2017
Melton Swallowdale CP School Academy,Children&Families Spprt Servs,2652.9,04/08/2017
Mencap,Managed/Traditional Services,3855.76,07/08/2017
Mencap,Personal Accounts - Govt Depts,3855.76,07/08/2017
Mencap,Supported Living,-3464.28,18/08/2017
Mencap,Supported Living,-2920.12,25/08/2017
Mencap,Supported Living,1971,07/08/2017
Mencap,Supported Living,2038.5,07/08/2017
Mencap,Supported Living,2547.4,18/08/2017
Mencap,Supported Living,3252.52,18/08/2017
Mencap,Supported Living,3594,18/08/2017
Mencap,Supported Living,3855.76,07/08/2017
Mencap,Supported Living,6811.99,25/08/2017
Mencap,Supported Living,13224.48,25/08/2017
Mercenfeld Primary School Academy,Payment to Ext SEN Providers,1838,25/08/2017
MERCIA CARE HOMES LTD&&SSAROE942,Residential,1498,25/08/2017
MERCIA CARE HOMES LTD&&SSAROE942,Residential,2996,25/08/2017
Merton Primary Academy,Payment to Ext SEN Providers,546,25/08/2017
METHODIST HOME FOR THE AGED&&SSAROE40320,Residential,17930,25/08/2017
METHODIST HOMES FOR THE AGED RESIDENTS CHARGE A/C&&SSAROE40300,Nursing,-3523.44,25/08/2017
METHODIST HOMES FOR THE AGED RESIDENTS CHARGE A/C&&SSAROE40300,Nursing,3126.7,25/08/2017
METHODIST HOMES FOR THE AGED RESIDENTS CHARGE A/C&&SSAROE40300,Nursing,9324.35,25/08/2017
METHODIST HOMES FOR THE AGED RESIDENTS CHARGE A/C&&SSAROE40300,Nursing,9634.35,25/08/2017
METHODIST HOMES FOR THE AGED RESIDENTS CHARGE A/C&&SSAROE40300,Private Contractors,-3523.44,25/08/2017
METHODIST HOMES FOR THE AGED RESIDENTS CHARGE A/C&&SSAROE40300,Private Contractors,3126.7,25/08/2017
METHODIST HOMES FOR THE AGED RESIDENTS CHARGE A/C&&SSAROE40300,Private Contractors,9324.35,25/08/2017
METHODIST HOMES FOR THE AGED RESIDENTS CHARGE A/C&&SSAROE40300,Private Contractors,9634.35,25/08/2017
METHODIST HOMES FOR THE AGED RESIDENTS CHARGE A/C&&SSAROE40300,Residential,-3523.44,25/08/2017
METHODIST HOMES FOR THE AGED RESIDENTS CHARGE A/C&&SSAROE40300,Residential,-1425,25/08/2017
METHODIST HOMES FOR THE AGED RESIDENTS CHARGE A/C&&SSAROE40300,Residential,-559.82,25/08/2017
METHODIST HOMES FOR THE AGED RESIDENTS CHARGE A/C&&SSAROE40300,Residential,581,25/08/2017
METHODIST HOMES FOR THE AGED RESIDENTS CHARGE A/C&&SSAROE40300,Residential,3126.7,25/08/2017
METHODIST HOMES FOR THE AGED RESIDENTS CHARGE A/C&&SSAROE40300,Residential,9324.35,25/08/2017
METHODIST HOMES FOR THE AGED RESIDENTS CHARGE A/C&&SSAROE40300,Residential,9634.35,25/08/2017
Micks Minibus,Home to Sch Trans - Buses,5310.41,30/08/2017
Micks Minibus,Home to Sch Trans - Buses,8647.87,03/08/2017
MIDLAND HEALTHCARE LTD&&SSAROE1295,Nursing,11330.16,25/08/2017
MIDLAND HEALTHCARE LTD&&SSAROE1295,Private Contractors,11330.16,25/08/2017
MIDLAND HEALTHCARE LTD&&SSAROE1295,Residential,558.67,25/08/2017
MIDLAND HEALTHCARE LTD&&SSAROE1295,Residential,11330.16,25/08/2017
Mike De Courcey Travel,Minimum Cost Contracts,4116.22,22/08/2017
Mike De Courcey Travel,Minimum Cost Contracts,4174.6,03/08/2017
MILIFE CARE SERVICE LTD&&ISHC3782,Home Care / Domiciliary,1647.34,11/08/2017
Millfield LEAD Academy,Payment to Ext SEN Providers,824,25/08/2017
MILNERS CARE SERVICES LTD T/A HOMES INSTEAD SENIOR CARE&&ISHC2523,Home Care / Domiciliary,1116.18,11/08/2017
Mind Matters Furniture (Syston),Voluntary Associations,987.54,08/08/2017
MINEHOME LTD T/A CHURCH TERRACE NURSING HOME&&SSAROE793,Residential,1772,25/08/2017
REDACTED PERSONAL DATA,Suspense,968.1,29/08/2017
REDACTED PERSONAL DATA,Suspense,1156.6,15/08/2017
REDACTED PERSONAL DATA,Suspense,1218.23,22/08/2017
REDACTED PERSONAL DATA,Suspense,1237.6,10/08/2017
REDACTED PERSONAL DATA,Suspense,1264.6,08/08/2017
MOBILE CARE SERVICES LTD&&ISHCHC443,Home Care / Domiciliary,5741.09,11/08/2017
REDACTED PERSONAL DATA,Grants,1585.32,17/08/2017
Mountfields Lodge School Academy,Payment to Ext SEN Providers,1469,25/08/2017
Murphys Taxis Ltd,Home to Sch Trans - Buses,1104,09/08/2017
Murphys Taxis Ltd,Home to Sch Trans - Buses,1579.2,09/08/2017
Murphys Taxis Ltd,Home to Sch Trans - Buses,1638,09/08/2017
Murphys Taxis Ltd,Personal Accounts - Govt Depts,1848,09/08/2017
Murphys Taxis Ltd,Recharge of Pooled Transp Cost,1848,09/08/2017
Murphys Taxis Ltd,S.E.N. Taxi Hire,648,16/08/2017
Murphys Taxis Ltd,S.E.N. Taxi Hire,785.46,09/08/2017
Murphys Taxis Ltd,S.E.N. Taxi Hire,1776,09/08/2017
Murphys Taxis Ltd,S.E.N. Taxi Hire,2280,09/08/2017
Murphys Taxis Ltd,S.E.N. Taxi Hire,2880,09/08/2017
Murphys Taxis Ltd,S.E.N. Taxi Hire,3024,09/08/2017
Murphys Taxis Ltd,S.E.N. Taxi Hire,3172.8,09/08/2017
Murphys Taxis Ltd,S.E.N. Taxi Hire,3408,09/08/2017
MYMIL LTD&&SSARO1930,Nursing,7485.42,25/08/2017
MYMIL LTD&&SSARO1930,Private Contractors,-809.59,25/08/2017
MYMIL LTD&&SSARO1930,Private Contractors,7485.42,25/08/2017
MYMIL LTD&&SSARO1930,Residential,14652,25/08/2017
NATIONAL AUTISTIC SOCIETY&&SSAROE385,Residential,45445.24,25/08/2017
National Fostering Agency,Other Agency & Cont Services,742.07,30/08/2017
National Fostering Agency,Other Agency & Cont Services,848.08,30/08/2017
National Fostering Agency,Other Agency & Cont Services,1027.26,30/08/2017
National Fostering Agency,Other Agency & Cont Services,1696.16,30/08/2017
National Fostering Agency,Other Agency & Cont Services,2077.4,30/08/2017
National Fostering Agency,Other Agency & Cont Services,2776.41,30/08/2017
National Fostering Agency,Other Agency & Cont Services,2899.8,30/08/2017
National Fostering Agency,Other Agency & Cont Services,3286.31,30/08/2017
National Fostering Agency,Other Agency & Cont Services,3321.6,14/08/2017
National Fostering Agency,Other Agency & Cont Services,3348,30/08/2017
National Fostering Agency,Other Agency & Cont Services,3432.32,30/08/2017
National Fostering Agency,Other Agency & Cont Services,3518.19,03/08/2017
National Fostering Agency,Other Agency & Cont Services,3518.19,30/08/2017
National Fostering Agency,Other Agency & Cont Services,3627,30/08/2017
National Fostering Agency,Other Agency & Cont Services,4291.33,30/08/2017
National Fostering Agency,Other Agency & Cont Services,6005.32,30/08/2017
Nesbit Brothers Ltd,Home to Sch Trans - Buses,6779.4,25/08/2017
Nesbit Brothers Ltd,Home to Sch Trans - Buses,12058.8,04/08/2017
NESTOR PRIMECARE SERVICES LTD&&ISHC3230,Home Care / Domiciliary,659.01,11/08/2017
NESTOR PRIMECARE SERVICES LTD&&ISHC3230,Home Care / Domiciliary,37193.2,11/08/2017
Newbridge High School Academy Trust,Payment to Ext SEN Providers,1225,25/08/2017
New College Worcester,Payment to Ext SEN Providers,15774,31/08/2017
New College Worcester,Payment to Ext SEN Providers,22572,31/08/2017
NEW HOPE SPECIALIST CARE LTD&&ISHC3161,Home Care / Domiciliary,16021.1,11/08/2017
Newline Midlands Ltd,Operational Equipment,1970.76,03/08/2017
Newline Midlands Ltd,R & M of Buildings,1387.08,30/08/2017
NEW OPTIONS LTD (2) T/A AALPS CYMRU&&SSARO2160,Residential,9728,25/08/2017
NHS West Leicestershire CCG,Cash Personal Budgets,-18111.5,14/08/2017
NHS West Leicestershire CCG,Cash Personal Budgets,18111.5,14/08/2017
NHS West Leicestershire CCG,Home Care / Domiciliary,4224.7,31/08/2017
REDACTED PERSONAL DATA,Residential,5256,25/08/2017
NIGHTINGALE NURSING HOME LTD&&SSAROE40228,Private Contractors,14823.2,25/08/2017
NIGHTINGALE NURSING HOME LTD&&SSAROE40228,Residential,14823.2,25/08/2017
NIRVANA CARE HOMES LTD T/A BRIARVALE CARE HOME&&SSARO2208,Residential,20264,25/08/2017
NOBLE CARE&&SSARO3210,Residential,3896,25/08/2017
NORMANTON LODGE LTD T/A LUTTERWORTH COUNTRY HOUSE&&SSARO2301,Residential,-1820.57,25/08/2017
NORMANTON LODGE LTD T/A LUTTERWORTH COUNTRY HOUSE&&SSARO2301,Residential,-1386.71,25/08/2017
NORMANTON LODGE LTD T/A LUTTERWORTH COUNTRY HOUSE&&SSARO2301,Residential,550.29,25/08/2017
NORMANTON LODGE LTD T/A LUTTERWORTH COUNTRY HOUSE&&SSARO2301,Residential,892,25/08/2017
NORMANTON LODGE LTD T/A LUTTERWORTH COUNTRY HOUSE&&SSARO2301,Residential,1300,25/08/2017
NORMANTON LODGE LTD T/A LUTTERWORTH COUNTRY HOUSE&&SSARO2301,Residential,1784,25/08/2017
NORMANTON LODGE LTD T/A LUTTERWORTH COUNTRY HOUSE&&SSARO2301,Residential,49389,25/08/2017
NORTHFIELD HOUSE RESIDENTIAL HOME (AMAFHH CARE HOMES LTD)&&SSAROE40359,Residential,-892,25/08/2017
NORTHFIELD HOUSE RESIDENTIAL HOME (AMAFHH CARE HOMES LTD)&&SSAROE40359,Residential,1162,25/08/2017
NORTHFIELD HOUSE RESIDENTIAL HOME (AMAFHH CARE HOMES LTD)&&SSAROE40359,Residential,14696.43,25/08/2017
North Kelsteven District Council,Subscriptions,1000,09/08/2017
North West Leicestershire District Council,Personal Accounts - Other,694.07,08/08/2017
Norton Taxi Services Ltd,Home to Sch Trans - Buses,1007.04,04/08/2017
Norton Taxi Services Ltd,S.E.N. Taxi Hire,789.45,04/08/2017
Norton Taxi Services Ltd,S.E.N. Taxi Hire,1504.85,04/08/2017
Norton Taxi Services Ltd,S.E.N. Taxi Hire,1888.2,04/08/2017
Norton Taxi Services Ltd,S.E.N. Taxi Hire,2747.06,04/08/2017
Norton Taxi Services Ltd,S.E.N. Taxi Hire,2817.6,04/08/2017
Nottingham Community Housing Association,Day / CLC Services,-4735.5,03/08/2017
Nottingham Community Housing Association,Day / CLC Services,4735.5,03/08/2017
Nottingham Community Housing Association,Private Contractors,-833,14/08/2017
Nottingham Community Housing Association,Private Contractors,594,23/08/2017
Nottingham Community Housing Association,Private Contractors,594,24/08/2017
Nottingham Community Housing Association,Private Contractors,627,14/08/2017
Nottingham Community Housing Association,Private Contractors,627,23/08/2017
Nottingham Community Housing Association,Private Contractors,825,23/08/2017
Nottingham Community Housing Association,Private Contractors,833,03/08/2017
Nottingham Community Housing Association,Private Contractors,858,24/08/2017
Nottingham Community Housing Association,Private Contractors,895,18/08/2017
Nottingham Community Housing Association,Supported Living,873.6,14/08/2017
Nottingham Community Housing Association,Supported Living,1092,14/08/2017
Nottingham Community Housing Association,Supported Living,1255.8,14/08/2017
Nottingham Community Housing Association,Supported Living,1419.6,14/08/2017
Nottingham Community Housing Association     1,Residential,20833.1,25/08/2017
Nottingham Community Housing Association     1,Voluntary Associations,41666.66,25/08/2017
NOTTINGHAM COMMUNITY HOUSING ASSOCIATION&&SSARO3238,Residential,-730.85,25/08/2017
NOTTINGHAM COMMUNITY HOUSING ASSOCIATION&&SSARO3238,Residential,888,25/08/2017
NOTTINGHAM COMMUNITY HOUSING ASSOCIATION&&SSARO3238,Residential,18399.04,25/08/2017
NOTTINGHAM REGIONAL SOCIETY FOR AUTISTIC CHILDREN & ADULTS&&SSAROE160,Residential,4482.64,25/08/2017
NOTTINGHAM REGIONAL SOCIETY FOR AUTISTIC CHILDREN & ADULTS&&SSAROE160,Residential,4548.76,25/08/2017
NOTTINGHAM REGIONAL SOCIETY FOR AUTISTIC CHILDREN & ADULTS&&SSAROE160,Residential,4803.56,25/08/2017
Oadby & Wigston Borough Council,Other Transfer Payments,953.21,04/08/2017
Oadby & Wigston Borough Council,Personal Accounts - Other,756.93,08/08/2017
Oadby & Wigston Borough Council Election Fund,Other Expenditure,10547.81,03/08/2017
OAKFIELD (EASTERN MAUDIT) LTD&&SSAROE67,Residential,3856,25/08/2017
OAKLEIGH RESIDENTIAL HOME LTD&&SSAROE40349,Residential,7976,25/08/2017
Old Dalby CE Primary School Academy,Agency Staff,1876,07/08/2017
OLD VICARAGE&&SSARO3086,Residential,7400,25/08/2017
ORCHARD CARE HOMES COM (3) LTD&&SSARO1942,Private Contractors,4415.92,25/08/2017
ORCHARD CARE HOMES COM (3) LTD&&SSARO1942,Residential,1130.66,25/08/2017
ORCHARD CARE HOMES COM (3) LTD&&SSARO1942,Residential,1372.94,25/08/2017
ORCHARD CARE HOMES COM (3) LTD&&SSARO1942,Residential,1824.72,25/08/2017
ORCHARD GARDENS FEES&&SARO3323,Residential,4296,25/08/2017
ORCHARD HOUSE&&SSAROE297,Residential,992,25/08/2017
ORCHARD HOUSE&&SSAROE297,Residential,1062,25/08/2017
ORCHARD HOUSE&&SSAROE297,Residential,24252,25/08/2017
ORCHARD MANOR VIEW LTD&&SSARO3289,Residential,-1953,25/08/2017
ORCHARD MANOR VIEW LTD&&SSARO3289,Residential,11424,25/08/2017
ORDERS OF ST JOHNS CARE TRUST GREGORY HOUSE RESIDENTIAL CARE HOME&&SSAROE599,Residential,3616,25/08/2017
Outwoods Edge Primary School Academy,Children&Families Spprt Servs,2021.55,04/08/2017
OXENDON HOUSE CARE HOME LTD&&SSAROE56952,Residential,-1440.51,25/08/2017
OXENDON HOUSE CARE HOME LTD&&SSAROE56952,Residential,1526.94,25/08/2017
OXENDON HOUSE CARE HOME LTD&&SSAROE56952,Residential,4375.28,25/08/2017
Packington CE Primary School,Devolved Capital,3122.25,23/08/2017
PAKS TRUST&&SSAROE1010,Residential,3522.68,25/08/2017
PANASHE HOME CARE SERVICES LTD&&ISHC3952,Home Care / Domiciliary,11285.51,11/08/2017
Papworth Trust,Voluntary Associations,10292.7,25/08/2017
Parallel Parents,Other Agency & Cont Services,765.16,03/08/2017
PARCS HEALTHCARE LTD&&SSARO2272,Residential,518.52,25/08/2017
PARCS HEALTHCARE LTD&&SSARO2272,Residential,814.82,25/08/2017
PARCS HEALTHCARE LTD&&SSARO2272,Residential,1356.35,25/08/2017
PARCS HEALTHCARE LTD&&SSARO2272,Residential,2234,25/08/2017
PARCS HEALTHCARE LTD&&SSARO2272,Residential,6694,25/08/2017
PARCS HEALTHCARE LTD&&SSARO2272,Residential,13520.72,25/08/2017
PARTNERSHIPS IN CARE LTD&&SARO3276,Residential,10920,25/08/2017
PASSION HEALTHCARE LIMITED&&ISHC2772,Home Care / Domiciliary,-1571.56,11/08/2017
PASSION HEALTHCARE LIMITED&&ISHC2772,Home Care / Domiciliary,-834.75,11/08/2017
PASSION HEALTHCARE LIMITED&&ISHC2772,Home Care / Domiciliary,582.74,11/08/2017
PASSION HEALTHCARE LIMITED&&ISHC2772,Home Care / Domiciliary,695.55,11/08/2017
PASSION HEALTHCARE LIMITED&&ISHC2772,Home Care / Domiciliary,716.79,11/08/2017
PASSION HEALTHCARE LIMITED&&ISHC2772,Home Care / Domiciliary,763.52,11/08/2017
PASSION HEALTHCARE LIMITED&&ISHC2772,Home Care / Domiciliary,834.75,11/08/2017
PASSION HEALTHCARE LIMITED&&ISHC2772,Home Care / Domiciliary,2022.48,11/08/2017
PASSION HEALTHCARE LIMITED&&ISHC2772,Home Care / Domiciliary,2592.34,11/08/2017
PASSION HEALTHCARE LIMITED&&ISHC2772,Home Care / Domiciliary,3751.45,11/08/2017
PASSION HEALTHCARE LIMITED&&ISHC2772,Home Care / Domiciliary,24363.23,11/08/2017
Pastures Primary School Academy,Payment to Ext SEN Providers,530,25/08/2017
PATHFINDERS CARE (OLLERTON) LTD&&SSARO1505,Residential,7010,25/08/2017
Pathway Care Midlands Ltd,Other Agency & Cont Services,2776.84,03/08/2017
Pathway Care Solutions II Ltd,Private Contractors,13281.29,11/08/2017
Pathway Care Solutions II Ltd,Private Contractors,14056.29,11/08/2017
Pathway Care Solutions II Ltd,Private Contractors,16496.43,11/08/2017
PATHWAY CARE SOLUTIONS II LTD&&SSARO3182,Residential,10300,25/08/2017
PATHWAYS CARE GROUP LTD&&SSARO900,Residential,608.57,25/08/2017
PATHWAYS CARE GROUP LTD&&SSARO900,Residential,735.43,25/08/2017
PATHWAYS CARE GROUP LTD&&SSARO900,Residential,22684,25/08/2017
PATHWAYS CARE GROUP LTD&&SSARO900,Residential,29048,25/08/2017
REDACTED PERSONAL DATA,Managed/Traditional Services,1232.57,04/08/2017
PEARLCARE (GLENFIELD) LTD&&SSAROE58990,Residential,1100,25/08/2017
PEARLCARE (GLENFIELD) LTD&&SSAROE58990,Residential,6481.88,25/08/2017
PENDENE HOUSE RESIDENTIAL HOME LTD&&SSAROE40366,Residential,4152.16,25/08/2017
Perthyn,Supported Living,6210.48,29/08/2017
Perthyn,Supported Living,8075.44,25/08/2017
Peter Brett Associates LLP,Design & Supervision Fees Ext,4640.46,24/08/2017
PILGRIM HOMES&&SSAROE40311,Private Contractors,9387.04,25/08/2017
PILGRIM HOMES&&SSAROE40311,Residential,1514.5,25/08/2017
PILGRIM HOMES&&SSAROE40311,Residential,9387.04,25/08/2017
PINEVIEW CARE HOMES LTD&&SSAROE40458,Residential,3928,25/08/2017
PINE VIEW CARE HOMES LTDT/A SILVER BIRCHES&&SSAROE40412,Residential,7152.24,25/08/2017
PINGLE NOOK RESIDENTIAL HOME (AMAFHH CARE HOMES LTD)&&SSAROE40346,Residential,892,25/08/2017
PINGLE NOOK RESIDENTIAL HOME (AMAFHH CARE HOMES LTD)&&SSAROE40346,Residential,14488.57,25/08/2017
PINNACLE CARE LTD&&SSAROE944,Residential,2550,25/08/2017
PJ CARE LTD&&SSARO3314,Nursing,1400,25/08/2017
PJ CARE LTD&&SSARO3314,Private Contractors,1400,25/08/2017
POhWER,Voluntary Associations,11699.17,25/08/2017
POPLARS RESIDENTIAL HOME LTD&&SSAROE45825,Residential,-1146.86,25/08/2017
POPLARS RESIDENTIAL HOME LTD&&SSAROE45825,Residential,-1137.86,25/08/2017
POPLARS RESIDENTIAL HOME LTD&&SSAROE45825,Residential,509.71,25/08/2017
POPLARS RESIDENTIAL HOME LTD&&SSAROE45825,Residential,2357.43,25/08/2017
POPLARS RESIDENTIAL HOME LTD&&SSAROE45825,Residential,15396,25/08/2017
Positive Opportunities Social Enterprise,Managed/Traditional Services,2550,31/08/2017
Positive Opportunities Social Enterprise,Managed/Traditional Services,3600,10/08/2017
Positive Opportunities Social Enterprise,Personal Accounts - Govt Depts,2550,31/08/2017
Positive Opportunities Social Enterprise,Personal Accounts - Govt Depts,3600,10/08/2017
Positive Opportunities Social Enterprise,Supported Living,2550,31/08/2017
Positive Opportunities Social Enterprise,Supported Living,3600,10/08/2017
PRACTICAL CARE SOLUTIONS LTD&&ISHC3327,Home Care / Domiciliary,4031.89,11/08/2017
REDACTED PERSONAL DATA,S.E.N. Taxi Hire,700,16/08/2017
PRAVINKUMAR PATEL T/A QUALITY CARE MIDLANDS LTD&&SSAROE1112,Private Contractors,-1844,25/08/2017
PRAVINKUMAR PATEL T/A QUALITY CARE MIDLANDS LTD&&SSAROE1112,Private Contractors,-1772,25/08/2017
PRAVINKUMAR PATEL T/A QUALITY CARE MIDLANDS LTD&&SSAROE1112,Private Contractors,-1202.43,25/08/2017
PRAVINKUMAR PATEL T/A QUALITY CARE MIDLANDS LTD&&SSAROE1112,Private Contractors,-922,25/08/2017
PRAVINKUMAR PATEL T/A QUALITY CARE MIDLANDS LTD&&SSAROE1112,Private Contractors,-569.57,25/08/2017
PRAVINKUMAR PATEL T/A QUALITY CARE MIDLANDS LTD&&SSAROE1112,Private Contractors,17084.84,25/08/2017
PRAVINKUMAR PATEL T/A QUALITY CARE MIDLANDS LTD&&SSAROE1112,Private Contractors,17342.28,25/08/2017
PRAVINKUMAR PATEL T/A QUALITY CARE MIDLANDS LTD&&SSAROE1112,Residential,-1050.86,25/08/2017
PRAVINKUMAR PATEL T/A QUALITY CARE MIDLANDS LTD&&SSAROE1112,Residential,17084.84,25/08/2017
PRAVINKUMAR PATEL T/A QUALITY CARE MIDLANDS LTD&&SSAROE1112,Residential,17342.28,25/08/2017
PRECIOUS HOPE HEALTH & HOME CARE&&ISHC3233,Home Care / Domiciliary,546.98,11/08/2017
PRECIOUS HOPE HEALTH & HOME CARE&&ISHC3233,Home Care / Domiciliary,2411.4,11/08/2017
PRECIOUS HOPE HEALTH & HOME CARE&&ISHC3233,Home Care / Domiciliary,78424.17,11/08/2017
PRESENTATION SISTERS CARE CENTRE&&SSAROE908,Residential,2240,25/08/2017
"PRESTIGE SOCIAL CARE SERVICES LTD&&ISHC3158",Home Care / Domiciliary,553,11/08/2017
"PRESTIGE SOCIAL CARE SERVICES LTD&&ISHC3158",Home Care / Domiciliary,4902.53,11/08/2017
PRETTY 333 LTD&&SSAROE539,Private Contractors,2404.12,25/08/2017
PRIME LIFE LTD PEAKER PARK&&SSARO3236,Residential,33600,23/08/2017
PRIME LIFE LTD&&SSARO3236,Nursing,103737.88,25/08/2017
PRIME LIFE LTD&&SSARO3236,Private Contractors,-1683,25/08/2017
PRIME LIFE LTD&&SSARO3236,Private Contractors,936,25/08/2017
PRIME LIFE LTD&&SSARO3236,Private Contractors,1362.43,25/08/2017
PRIME LIFE LTD&&SSARO3236,Private Contractors,2184,25/08/2017
PRIME LIFE LTD&&SSARO3236,Private Contractors,5569.43,25/08/2017
PRIME LIFE LTD&&SSARO3236,Private Contractors,5778.08,25/08/2017
PRIME LIFE LTD&&SSARO3236,Private Contractors,103737.88,25/08/2017
PRIME LIFE LTD&&SSARO3236,Residential,-5820,25/08/2017
PRIME LIFE LTD&&SSARO3236,Residential,-4157.14,25/08/2017
PRIME LIFE LTD&&SSARO3236,Residential,-3741.43,25/08/2017
PRIME LIFE LTD&&SSARO3236,Residential,-3533.57,25/08/2017
PRIME LIFE LTD&&SSARO3236,Residential,-2910,25/08/2017
PRIME LIFE LTD&&SSARO3236,Residential,-2286.43,25/08/2017
PRIME LIFE LTD&&SSARO3236,Residential,-2078.57,25/08/2017
PRIME LIFE LTD&&SSARO3236,Residential,-1558.56,25/08/2017
PRIME LIFE LTD&&SSARO3236,Residential,-1039.29,25/08/2017
PRIME LIFE LTD&&SSARO3236,Residential,-556.63,25/08/2017
PRIME LIFE LTD&&SSARO3236,Residential,550,25/08/2017
PRIME LIFE LTD&&SSARO3236,Residential,637.14,25/08/2017
PRIME LIFE LTD&&SSARO3236,Residential,834.43,25/08/2017
PRIME LIFE LTD&&SSARO3236,Residential,936,25/08/2017
PRIME LIFE LTD&&SSARO3236,Residential,2184,25/08/2017
PRIME LIFE LTD&&SSARO3236,Residential,4491.71,25/08/2017
PRIME LIFE LTD&&SSARO3236,Residential,5569.43,25/08/2017
PRIME LIFE LTD&&SSARO3236,Residential,5778.08,25/08/2017
PRIME LIFE LTD&&SSARO3236,Residential,5893.2,25/08/2017
PRIME LIFE LTD&&SSARO3236,Residential,8430.76,25/08/2017
PRIME LIFE LTD&&SSARO3236,Residential,9662,25/08/2017
PRIME LIFE LTD&&SSARO3236,Residential,10178.68,25/08/2017
PRIME LIFE LTD&&SSARO3236,Residential,11428.08,25/08/2017
PRIME LIFE LTD&&SSARO3236,Residential,21356.32,25/08/2017
PRIME LIFE LTD&&SSARO3236,Residential,22724,25/08/2017
PRIME LIFE LTD&&SSARO3236,Residential,23456.72,25/08/2017
PRIME LIFE LTD&&SSARO3236,Residential,103737.88,25/08/2017
PRIME LIFE LTD&&SSAROE1144,Residential,-2028,25/08/2017
PRIME LIFE LTD&&SSAROE1144,Residential,-1465.43,25/08/2017
PRIME LIFE LTD&&SSAROE1144,Residential,-1062,25/08/2017
PRIME LIFE LTD&&SSAROE1144,Residential,-870,25/08/2017
PRIME LIFE LTD&&SSAROE1144,Residential,834.43,25/08/2017
PRIME LIFE LTD&&SSAROE1144,Residential,894.43,25/08/2017
PRIME LIFE LTD&&SSAROE1144,Residential,1297.86,25/08/2017
PRIME LIFE LTD&&SSAROE1144,Residential,1593,25/08/2017
PRIME LIFE LTD&&SSAROE1144,Residential,80723.6,25/08/2017
PRIME LIFE LTD&&SSAROE56173,Nursing,55960,25/08/2017
PRIME LIFE LTD&&SSAROE56173,Private Contractors,-2284.86,25/08/2017
PRIME LIFE LTD&&SSAROE56173,Private Contractors,55960,25/08/2017
PRIME LIFE LTD&&SSAROE56173,Residential,-996.57,25/08/2017
PRIME LIFE LTD&&SSAROE56173,Residential,941.5,25/08/2017
PRIME LIFE LTD&&SSAROE56173,Residential,1162.8,25/08/2017
PRIME LIFE LTD&&SSAROE56173,Residential,30405.44,25/08/2017
PRIME LIFE LTD&&SSAROE56173,Residential,55960,25/08/2017
PRIMROSE LODGE&&SSAROE559,Residential,1429.72,25/08/2017
PRIMROSE LODGE&&SSAROE559,Residential,6676,25/08/2017
PRIMUS HEALTHCARE T/A RYKNELD VIEW&&SSARO3260,Private Contractors,1805.36,25/08/2017
PURPLE CARE TCM LTD&&ISHC3765,Home Care / Domiciliary,804,11/08/2017
PURPLE CARE TCM LTD&&ISHC3765,Home Care / Domiciliary,4460,11/08/2017
PURPLE CARE TCM LTD&&ISHC3765,Home Care / Domiciliary,19776,11/08/2017
QUALITY CARE (EM) LTD&&SSARO1134,Residential,26853.92,25/08/2017
Queniborough CE Primary School Academy,Payment to Ext SEN Providers,542,25/08/2017
QUORNDON CARE LTD&&ISHC2651,Home Care / Domiciliary,500.91,11/08/2017
QUORNDON CARE LTD&&ISHC2651,Home Care / Domiciliary,1334.69,11/08/2017
QUORN ORCHARDS RESIDENTIAL CARE HOME&&SSARO1370,Residential,-1441.29,25/08/2017
QUORN ORCHARDS RESIDENTIAL CARE HOME&&SSARO1370,Residential,1671.87,25/08/2017
QUORN ORCHARDS RESIDENTIAL CARE HOME&&SSARO1370,Residential,37216,25/08/2017
RADCLIFFE MANOR HOUSE&&SSARO2976,Residential,1872,25/08/2017
REDACTED PERSONAL DATA,Residential,828.22,25/08/2017
Ratby Primary School Academy,Payment to Ext SEN Providers,883,25/08/2017
Rawlins Community College Academy,Payment to Ext SEN Providers,904,25/08/2017
Rawlins Community College Academy,Payment to Ext SEN Providers,1247,25/08/2017
Rawlins Community College Academy,Payment to Ext SEN Providers,1300,25/08/2017
Rawlins Community College Academy,Payment to Ext SEN Providers,2732,25/08/2017
REDACTED PERSONAL DATA,S.E.N. Taxi Hire,684,30/08/2017
REDACTED PERSONAL DATA,Residential,6681.84,25/08/2017
REARSBY HOME LTD&&SSAROE40387,Residential,-2065.15,25/08/2017
REARSBY HOME LTD&&SSAROE40387,Residential,26084,25/08/2017
Redlands Community Primary School Academy,Children&Families Spprt Servs,1922.58,04/08/2017
Redlands Community Primary School Academy,Payment to Ext SEN Providers,978,25/08/2017
Redmoor High School Academy Trust,Payment to Ext SEN Providers,2711,25/08/2017
Regional Foster Placements Ltd,Other Agency & Cont Services,2200,03/08/2017
Regional Foster Placements Ltd,Other Agency & Cont Services,2556.96,08/08/2017
Regional Foster Placements Ltd,Other Agency & Cont Services,3192.6,04/08/2017
Regional Foster Placements Ltd,Other Agency & Cont Services,3196.2,03/08/2017
Regional Foster Placements Ltd,Other Agency & Cont Services,3196.2,04/08/2017
Regional Foster Placements Ltd,Other Agency & Cont Services,3299.02,17/08/2017
Regional Foster Placements Ltd,Other Agency & Cont Services,3302.74,17/08/2017
Regional Foster Placements Ltd,Other Agency & Cont Services,3364.2,04/08/2017
Regional Foster Placements Ltd,Other Agency & Cont Services,3476.34,17/08/2017
Regional Foster Placements Ltd,Other Agency & Cont Services,4822.02,04/08/2017
Regional Foster Placements Ltd,Private Contractors,3476.34,03/08/2017
RELIANCE COMMUNITY CARE LTD&&ISHC3815,Home Care / Domiciliary,643.5,11/08/2017
RELIANCE COMMUNITY CARE LTD&&ISHC3815,Home Care / Domiciliary,1105.5,11/08/2017
RELIANCE COMMUNITY CARE LTD&&ISHC3815,Home Care / Domiciliary,1848,11/08/2017
RELIANCE COMMUNITY CARE LTD&&ISHC3815,Home Care / Domiciliary,13574.49,11/08/2017
REDACTED PERSONAL DATA,Provisions Expenditure,19500,01/08/2017
RICHMOND PAINSWICK LTD&&SSARO1923,Residential,4356.44,25/08/2017
Ridgeway Primary Academy,Payment to Ext SEN Providers,1214,25/08/2017
Riverside Commuity Primary School Academy,Payment to Ext SEN Providers,1744,25/08/2017
RKL LIVING LTD&&SSAROE50763,Residential,2035.92,25/08/2017
RKS DOMICILIARY CARE LTD T/A CAREMARK (CHARNWOOD)&&ISHC2618,Home Care / Domiciliary,921.04,11/08/2017
RKS DOMICILIARY CARE LTD T/A CAREMARK (CHARNWOOD)&&ISHC2618,Home Care / Domiciliary,7874.99,11/08/2017
Robert Bakewell Community School Academy,Payment to Ext SEN Providers,801,25/08/2017
Roman Park,Private Contractors,2880,04/08/2017
ROMAN PARK&&SSAROE40341,Residential,-1100,25/08/2017
ROMAN PARK&&SSAROE40341,Residential,27865.68,25/08/2017
ROSECAROLINK CARE LTD&&ISHC3209,Home Care / Domiciliary,1175.12,11/08/2017
ROSECAROLINK CARE LTD&&ISHC3209,Home Care / Domiciliary,18173.1,11/08/2017
ROSEDALE CARE HOME LTD&&SSARO1053,Residential,-825.43,25/08/2017
ROSEDALE CARE HOME LTD&&SSARO1053,Residential,864,25/08/2017
ROSEDALE CARE HOME LTD&&SSARO1053,Residential,20220,25/08/2017
ROSEGUARD PROPERTIES LTD T/A HENDERSON HOUSE CARE HOME&&SSARO3341,Residential,2664.56,25/08/2017
Rothley CE Primary School Academy,Children&Families Spprt Servs,1720.43,04/08/2017
Rothley CE Primary School Academy,Payment to Ext SEN Providers,542,25/08/2017
Royal British Legion,Hospitality,840,18/08/2017
Royal Leicestershire Rutland & Wycliffe Society For The Blind  1,Voluntary Associations,13234.08,25/08/2017
ROYAL MASONIC BENEVOLENT FUND NO 4 A/C&&SSAROE40219,Residential,15912,25/08/2017
Royal Mencap Society,Managed/Traditional Services,3855.76,16/08/2017
Royal Mencap Society,Personal Accounts - Govt Depts,3855.76,16/08/2017
Royal Mencap Society,Supported Living,-1544.6,07/08/2017
Royal Mencap Society,Supported Living,-1436.2,07/08/2017
Royal Mencap Society,Supported Living,3855.76,16/08/2017
Royal Mencap Society,Supported Living,4926.36,07/08/2017
Royal Mencap Society,Supported Living,4926.36,16/08/2017
ROYAL MENCAP SOCIETY&&SSARO2165,Residential,5996,25/08/2017
ROYAL MENCAP SOCIETY&&SSAROE1114,Residential,3240,25/08/2017
ROYAL MENCAP SOCIETY&&SSAROE1114,Residential,19652,25/08/2017
ROYAL SOCIETY FOR THE BLIND (RESIDENTIAL A/C)&&SSAROE13283,Residential,-1955.22,25/08/2017
ROYAL SOCIETY FOR THE BLIND (RESIDENTIAL A/C)&&SSAROE13283,Residential,1318,25/08/2017
ROYAL SOCIETY FOR THE BLIND (RESIDENTIAL A/C)&&SSAROE13283,Residential,1955.22,25/08/2017
ROYAL SOCIETY FOR THE BLIND (RESIDENTIAL A/C)&&SSAROE13283,Residential,4976.92,25/08/2017
ROYAL SOCIETY FOR THE BLIND (RESIDENTIAL A/C)&&SSAROE13283,Residential,5531.56,25/08/2017
ROYAL SOCIETY FOR THE BLIND (RESIDENTIAL A/C)&&SSAROE13283,Residential,13204,25/08/2017
ROYAL SOCIETY FOR THE BLIND (RESIDENTIAL A/C)&&SSAROE13283,Residential,16697.08,25/08/2017
ROYAL SOCIETY FOR THE BLIND (RESIDENTIAL A/C)&&SSAROE13283,Residential,51083.24,25/08/2017
RUNWOOD CARE HOMES&&SSARO3147,Residential,2132,25/08/2017
RUNWOOD HOMES LTD&&SSARO2844,Residential,3799.6,25/08/2017
RUNWOOD HOMES LTD&&SSARO3337,Residential,1899.8,25/08/2017
RUSHCLIFFE CARE LTD T/A BEAUMANOR&&SSAROE353,Private Contractors,33128,25/08/2017
RUSHCLIFFE CARE LTD T/A BEAUMANOR&&SSAROE353,Residential,33128,25/08/2017
RUSHCLIFFE CARE LTD T/A CASTLE DONINGTON NURSING HOME&&SSAROE40221,Nursing,36821.6,25/08/2017
RUSHCLIFFE CARE LTD T/A CASTLE DONINGTON NURSING HOME&&SSAROE40221,Private Contractors,-1909.15,25/08/2017
RUSHCLIFFE CARE LTD T/A CASTLE DONINGTON NURSING HOME&&SSAROE40221,Private Contractors,36821.6,25/08/2017
RUSHCLIFFE CARE LTD T/A CASTLE DONINGTON NURSING HOME&&SSAROE40221,Residential,688,25/08/2017
RUSHCLIFFE CARE LTD T/A CASTLE DONINGTON NURSING HOME&&SSAROE40221,Residential,857.15,25/08/2017
RUSHCLIFFE CARE LTD T/A CASTLE DONINGTON NURSING HOME&&SSAROE40221,Residential,36821.6,25/08/2017
RUSHCLIFFE CARE LTD T/A COALVILLE NURSING & RESIDENTIAL HOME&&SSAROE66717,Private Contractors,-1086.32,25/08/2017
RUSHCLIFFE CARE LTD T/A COALVILLE NURSING & RESIDENTIAL HOME&&SSAROE66717,Private Contractors,-689.32,25/08/2017
RUSHCLIFFE CARE LTD T/A COALVILLE NURSING & RESIDENTIAL HOME&&SSAROE66717,Private Contractors,-592.92,25/08/2017
RUSHCLIFFE CARE LTD T/A COALVILLE NURSING & RESIDENTIAL HOME&&SSAROE66717,Private Contractors,-527.04,25/08/2017
RUSHCLIFFE CARE LTD T/A COALVILLE NURSING & RESIDENTIAL HOME&&SSAROE66717,Private Contractors,668.4,25/08/2017
RUSHCLIFFE CARE LTD T/A COALVILLE NURSING & RESIDENTIAL HOME&&SSAROE66717,Private Contractors,2482.68,25/08/2017
RUSHCLIFFE CARE LTD T/A COALVILLE NURSING & RESIDENTIAL HOME&&SSAROE66717,Private Contractors,30066.72,25/08/2017
RUSHCLIFFE CARE LTD T/A COALVILLE NURSING & RESIDENTIAL HOME&&SSAROE66717,Residential,30066.72,25/08/2017
RUSHCLIFFE CARE LTD T/A EPINAL WAY CARE CENTRE&&SSAROE4,Nursing,4536,25/08/2017
RUSHCLIFFE CARE LTD T/A EPINAL WAY CARE CENTRE&&SSAROE4,Nursing,50749.2,25/08/2017
RUSHCLIFFE CARE LTD T/A EPINAL WAY CARE CENTRE&&SSAROE4,Private Contractors,4536,25/08/2017
RUSHCLIFFE CARE LTD T/A EPINAL WAY CARE CENTRE&&SSAROE4,Private Contractors,10016,25/08/2017
RUSHCLIFFE CARE LTD T/A EPINAL WAY CARE CENTRE&&SSAROE4,Private Contractors,50749.2,25/08/2017
RUSHCLIFFE CARE LTD T/A EPINAL WAY CARE CENTRE&&SSAROE4,Residential,10016,25/08/2017
RUSHCLIFFE CARE LTD T/A EPINAL WAY CARE CENTRE&&SSAROE4,Residential,50749.2,25/08/2017
RUSHCLIFFE CARE LTD T/A JASMINE COURT&&SSARO1136,Nursing,51047.72,25/08/2017
RUSHCLIFFE CARE LTD T/A JASMINE COURT&&SSARO1136,Private Contractors,3528.58,25/08/2017
RUSHCLIFFE CARE LTD T/A JASMINE COURT&&SSARO1136,Private Contractors,5414.87,25/08/2017
RUSHCLIFFE CARE LTD T/A JASMINE COURT&&SSARO1136,Private Contractors,51047.72,25/08/2017
RUSHCLIFFE CARE LTD T/A JASMINE COURT&&SSARO1136,Residential,51047.72,25/08/2017
RUSHCLIFFE CARE LTD T/A OLD SCHOOL HOUSE/HAYES CLOSE&&SSARO1393,Residential,20692,25/08/2017
RUSHCLIFFE CARE LTD T/A OLD SCHOOL HOUSE/HAYES CLOSE&&SSARO1393,Residential,43876,25/08/2017
RUSHCLIFFE CARE LTD T/A PARKMANOR RESIDENTIAL HOME&&SSAROE422,Nursing,-908.27,25/08/2017
RUSHCLIFFE CARE LTD T/A PARKMANOR RESIDENTIAL HOME&&SSAROE422,Nursing,717.71,25/08/2017
RUSHCLIFFE CARE LTD T/A PARKMANOR RESIDENTIAL HOME&&SSAROE422,Nursing,2740.4,25/08/2017
RUSHCLIFFE CARE LTD T/A PARKMANOR RESIDENTIAL HOME&&SSAROE422,Nursing,30181.6,25/08/2017
RUSHCLIFFE CARE LTD T/A PARKMANOR RESIDENTIAL HOME&&SSAROE422,Private Contractors,-908.27,25/08/2017
RUSHCLIFFE CARE LTD T/A PARKMANOR RESIDENTIAL HOME&&SSAROE422,Private Contractors,717.71,25/08/2017
RUSHCLIFFE CARE LTD T/A PARKMANOR RESIDENTIAL HOME&&SSAROE422,Private Contractors,2740.4,25/08/2017
RUSHCLIFFE CARE LTD T/A PARKMANOR RESIDENTIAL HOME&&SSAROE422,Private Contractors,30181.6,25/08/2017
RUSHCLIFFE CARE LTD T/A PARKMANOR RESIDENTIAL HOME&&SSAROE422,Residential,-1688.57,25/08/2017
RUSHCLIFFE CARE LTD T/A PARKMANOR RESIDENTIAL HOME&&SSAROE422,Residential,30181.6,25/08/2017
RUSHCLIFFE CARE LTD T/A THORNHAM GROVE&&SSAROE1139,Residential,-1884,25/08/2017
RUSHCLIFFE CARE LTD T/A THORNHAM GROVE&&SSAROE1139,Residential,-1143.85,25/08/2017
RUSHCLIFFE CARE LTD T/A THORNHAM GROVE&&SSAROE1139,Residential,29372,25/08/2017
RUSHCLIFFE CARE LTD T/A THORPE HOUSE NURSING & RESIDENTIAL HOME&&SSAROE71744,Private Contractors,33468,25/08/2017
RUSHCLIFFE CARE LTD T/A THORPE HOUSE NURSING & RESIDENTIAL HOME&&SSAROE71744,Residential,-922,25/08/2017
RUSHCLIFFE CARE LTD T/A THORPE HOUSE NURSING & RESIDENTIAL HOME&&SSAROE71744,Residential,510,25/08/2017
RUSHCLIFFE CARE LTD T/A THORPE HOUSE NURSING & RESIDENTIAL HOME&&SSAROE71744,Residential,630,25/08/2017
RUSHCLIFFE CARE LTD T/A THORPE HOUSE NURSING & RESIDENTIAL HOME&&SSAROE71744,Residential,33468,25/08/2017
RUTLAND ABERDEEN HOUSE&&SSAROE40345,Residential,4600,25/08/2017
Rutland County Council DC,Day / CLC Services,848.4,14/08/2017
Rutland County Council DC,Day / CLC Services,2373.5,11/08/2017
Rutland County Council DC,Day / CLC Services,3959.2,14/08/2017
Rutland County Council DC,Day / CLC Services,4100.6,14/08/2017
Rutland County Council DC,Other Local Authorities,-835,14/08/2017
Rutland County Council DC,Payments to Foster Parents,2465.24,31/08/2017
Rutland County Council DC,Payments to Foster Parents,2659.05,31/08/2017
Rutland County Council DC,Payments to Foster Parents,5004.29,31/08/2017
RUTLAND HOUSE COMMUNITY TRUST&&SSAROE68167,Residential,9140.36,25/08/2017
REDACTED PERSONAL DATA,Recharge of Pooled Transp Cost,543.6,07/08/2017
Sacred Heart Catholic Voluntary Academy,Payment to Ext SEN Providers,707,25/08/2017
SAINT MICHAELS RESIDENTIAL HOME T/A PRIME LIFE LTD&&SSARO3334,Residential,1824,25/08/2017
SALUS DEMENTIA CARE LTD&&ISHC3225,Home Care / Domiciliary,763.5,11/08/2017
SALUS DEMENTIA CARE LTD&&ISHC3225,Home Care / Domiciliary,8673.57,11/08/2017
SAMALODGE LTD T/A ANITA JANE LODGE&&SSARO3326,Residential,1786.56,25/08/2017
SANCTUARY HOME CARE LTD&&SSARO2283,Residential,12183.12,25/08/2017
SANCTUARY HOME CARE LTD&&SSARO2283,Residential,13294.16,25/08/2017
REDACTED PERSONAL DATA,Home to Sch Trans - Buses,830,04/08/2017
REDACTED PERSONAL DATA,S.E.N. Taxi Hire,590,16/08/2017
REDACTED PERSONAL DATA,S.E.N. Taxi Hire,1180,04/08/2017
SEAGRAVE CARE (CORBY) LTD&&SSARO2068,Residential,4596,25/08/2017
Servest Group Ltd,Control Accounts,2140.87,07/08/2017
Servest Group Ltd,Control Accounts,2179.8,07/08/2017
Servest Group Ltd,Control Accounts,2199.38,29/08/2017
Servest Group Ltd,Control Accounts,2348.68,07/08/2017
Servest Group Ltd,Control Accounts,2787.87,31/08/2017
Servest Group Ltd,Control Accounts,7374,31/08/2017
Servest Group Ltd,Control Accounts,11606.08,29/08/2017
Servest Group Ltd,Control Accounts,13138.06,17/08/2017
Servest Group Ltd,Control Accounts,54594.56,30/08/2017
Servest Group Ltd,Severance /Redundancy,737.4,09/08/2017
Servest Group Ltd,Severance /Redundancy,3287.68,09/08/2017
Servest Group Ltd,Severance /Redundancy,3807,09/08/2017
SEVACARE (UK) LTD&&ISHC2050,Home Care / Domiciliary,4575.24,11/08/2017
SEVACARE (UK) LTD&&ISHCHC449,Home Care / Domiciliary,673.63,11/08/2017
SEVACARE (UK) LTD&&ISHCHC449,Home Care / Domiciliary,845.3,11/08/2017
SEVACARE (UK) LTD&&ISHCHC449,Home Care / Domiciliary,1336.62,11/08/2017
SEVACARE (UK) LTD&&ISHCHC449,Home Care / Domiciliary,13799.57,11/08/2017
REDACTED PERSONAL DATA,Residential,2136,25/08/2017
SHALOM HOME CARE LTD&&ISHC2656,Home Care / Domiciliary,2435.4,11/08/2017
SHANKAR LEICESTER LTD T/A LONGCLIFFE NURSING HOME&&SSAROE40225,Residential,14996,25/08/2017
SHANKAR LEICESTER LTD T/A MARWOOD RESIDENTIAL CARE HOME&&SSAROE532,Residential,-1163.29,25/08/2017
SHANKAR LEICESTER LTD T/A MARWOOD RESIDENTIAL CARE HOME&&SSAROE532,Residential,1204.57,25/08/2017
SHANKAR LEICESTER LTD T/A MARWOOD RESIDENTIAL CARE HOME&&SSAROE532,Residential,15392,25/08/2017
REDACTED PERSONAL DATA,Residential,5600.28,25/08/2017
SHEPSHED CARERS LTD&&ISHCHC405,Home Care / Domiciliary,5453.37,11/08/2017
Sileby Community Library,Grants,1000,23/08/2017
SJ Taxis,S.E.N. Taxi Hire,1024,16/08/2017
SJ Taxis,S.E.N. Taxi Hire,2560,04/08/2017
Sketchley School Priory,Payment to Ext SEN Providers,22040.9,31/08/2017
Skills for Care Ltd,Day / CLC Services,1363.2,30/08/2017
SKILLS FOR LIVING (LEICESTERSHIRE) LTD&&SSARO1571,Residential,16812,25/08/2017
SKILLS FOR LIVING (LEICS) LTD&&SSAROE739,Residential,697.8,25/08/2017
SKILLS FOR LIVING (LEICS) LTD&&SSAROE739,Residential,849.92,25/08/2017
SKILLS FOR LIVING (LEICS) LTD&&SSAROE739,Residential,15764,25/08/2017
Somerby Primary School Academy,Children&Families Spprt Servs,1487.7,04/08/2017
South Charnwood High School Academy,Payment to Ext SEN Providers,1645,25/08/2017
South Wigston High School Academy,Payment to Ext SEN Providers,624,25/08/2017
SOVA HEALTHCARE LEICESTER&&ISHC3195,Home Care / Domiciliary,1648.65,11/08/2017
REDACTED PERSONAL DATA,Residential,7011.04,25/08/2017
Speedline Mini Buses & Taxis,Home to Sch Trans - Buses,1056,04/08/2017
Spencer Academy T/A Long Field Academy,Payment to Ext SEN Providers,2064,25/08/2017
REDACTED PERSONAL DATA,Home to Sch Trans - Buses,1480,10/08/2017
REDACTED PERSONAL DATA,Home to Sch Trans - Buses,2714.2,10/08/2017
Spotty Dog Taxis,Home to Sch Trans - Buses,599,18/08/2017
REDACTED PERSONAL DATA,Residential,20398.88,25/08/2017
SR CARE LTD T/A THE CHESTNUTS&&SSAROE43299,Residential,10416,25/08/2017
SSAFA & FHS,Voluntary Associations,893.37,25/08/2017
SSE,Personal Accounts - Other,514.89,22/08/2017
REDACTED PERSONAL DATA,Residential,3092,25/08/2017
Stafford Leys Academy Trust,Payment to Ext SEN Providers,930,25/08/2017
ST BENNETTS CARE HOME&&SSAROE40234,Residential,2358,25/08/2017
ST BERNARDS HALLATON MANOR LTD&&SSAROE14425,Residential,21778.32,25/08/2017
St Edwards C of E Primary School,Devolved Capital,3567.75,23/08/2017
Stephenson Studio School Trust,Payment to Ext SEN Providers,1282,25/08/2017
ST FRANCIS NURSING HOME&&SSARO3335,Residential,5005.95,25/08/2017
ST FRANCIS NURSING HOME&&SSARO3335,Residential,15110.57,25/08/2017
St John Fisher Catholic Voluntary Academy,Payment to Ext SEN Providers,636,25/08/2017
St Martins Catholic Voluntary Academy,Payment to Ext SEN Providers,1460,29/08/2017
ST MARTINS RES HOME LTD&&SSARO2034,Residential,557.15,25/08/2017
ST MARTINS RES HOME LTD&&SSARO2034,Residential,13752,25/08/2017
Stoke-on-Trent City Council,Private Contractors,262500,11/08/2017
Stonebow Primary School Academy,Payment to Ext SEN Providers,1817,25/08/2017
STONESBY HOUSE&&SSAROE997,Residential,20642.12,25/08/2017
STORM HOMECARE LTD&&ISHC3169,Home Care / Domiciliary,500.85,11/08/2017
STORM HOMECARE LTD&&ISHC3169,Home Care / Domiciliary,564.99,11/08/2017
STORM HOMECARE LTD&&ISHC3169,Home Care / Domiciliary,1349.77,11/08/2017
STORM HOMECARE LTD&&ISHC3169,Home Care / Domiciliary,1374.3,11/08/2017
STORM HOMECARE LTD&&ISHC3169,Home Care / Domiciliary,2140.94,11/08/2017
STORM HOMECARE LTD&&ISHC3169,Home Care / Domiciliary,2223.43,11/08/2017
STORM HOMECARE LTD&&ISHC3169,Home Care / Domiciliary,3848.04,11/08/2017
STORM HOMECARE LTD&&ISHC3169,Home Care / Domiciliary,4619.99,11/08/2017
STORM HOMECARE LTD&&ISHC3169,Home Care / Domiciliary,8749.71,11/08/2017
STORM HOMECARE LTD&&ISHC3169,Home Care / Domiciliary,8758.88,11/08/2017
STORM HOMECARE LTD&&ISHC3169,Home Care / Domiciliary,12294.92,11/08/2017
STORM HOMECARE LTD&&ISHC3169,Home Care / Domiciliary,14983.71,11/08/2017
St Peters Catholic Primary School Academy,Payment to Ext SEN Providers,707,25/08/2017
St Peters Primary Academy,Payment to Ext SEN Providers,1579,25/08/2017
St Peter & St Paul CE Academy,Payment to Ext SEN Providers,1248,29/08/2017
S&T POYNTON T/A CHARNWOOD PARK RESIDENTIAL HOME&&SSAROE40270,Residential,10208,25/08/2017
SUNCARE HOMES LTD T/A TY GWN&&SSAROE40319,Residential,13964,25/08/2017
Support Connections Ltd,Day / CLC Services,2420,08/08/2017
Support Connections Ltd,Day / CLC Services,2520,08/08/2017
Support Connections Ltd,Day / CLC Services,3360,08/08/2017
Support Connections Ltd,Managed/Traditional Services,2420,08/08/2017
Support Connections Ltd,Managed/Traditional Services,2520,08/08/2017
Support Connections Ltd,Managed/Traditional Services,3360,08/08/2017
Support Connections Ltd,Personal Accounts - Govt Depts,2420,08/08/2017
Support Connections Ltd,Personal Accounts - Govt Depts,2520,08/08/2017
Support Connections Ltd,Personal Accounts - Govt Depts,3360,08/08/2017
Swalcliffe Park School,Payment to Ext SEN Providers,29333.67,25/08/2017
Swiis Foster Care Ltd,Other Agency & Cont Services,720.02,09/08/2017
Swiis Foster Care Ltd,Other Agency & Cont Services,720.02,14/08/2017
Swiis Foster Care Ltd,Other Agency & Cont Services,720.02,16/08/2017
Swiis Foster Care Ltd,Other Agency & Cont Services,720.02,23/08/2017
Swiis Foster Care Ltd,Other Agency & Cont Services,800.03,03/08/2017
Swiis Foster Care Ltd,Other Agency & Cont Services,800.03,09/08/2017
Swiis Foster Care Ltd,Other Agency & Cont Services,800.03,10/08/2017
Swiis Foster Care Ltd,Other Agency & Cont Services,800.03,14/08/2017
Swiis Foster Care Ltd,Other Agency & Cont Services,800.03,16/08/2017
Swiis Foster Care Ltd,Other Agency & Cont Services,800.03,23/08/2017
Swiis Foster Care Ltd,Other Agency & Cont Services,800.03,30/08/2017
Syston & District Volunteer Centre Vehicle A/C,Recharge of Pooled Transp Cost,636.4,24/08/2017
Syston & District Volunteer Centre Vehicle A/C,Recharge of Pooled Transp Cost,682.2,04/08/2017
Syston & District Volunteer Centre Vehicle A/C,Recharge of Pooled Transp Cost,2231.04,24/08/2017
Syston & District Volunteer Centre Vehicle A/C,Recharge of Pooled Transp Cost,2337.28,04/08/2017
REDACTED PERSONAL DATA,S.E.N. Taxi Hire,790,30/08/2017
REDACTED PERSONAL DATA,S.E.N. Taxi Hire,1035,30/08/2017
TANGLEWOOD LINCOLNSHIRE LTD T/A TORAY PINES CARE HOME&&SSARO3266,Residential,1824,25/08/2017
TEP The Environment Partnership,Consultants & Specialists,1002,04/08/2017
TEP The Environment Partnership,Consultants & Specialists,2007.49,10/08/2017
TEP The Environment Partnership,Consultants & Specialists,9230.69,09/08/2017
TEP The Environment Partnership,Design & Supervision Fees Ext,25858.93,07/08/2017
REDACTED PERSONAL DATA,Suspense,3657.6,16/08/2017
THE ADMINISTRATORS OFFICE WYGGESTON OFFICE&&SSAROE44952,Residential,4076.16,25/08/2017
THE ASHTON CARE HOME&&SARO3106,Nursing,29107,25/08/2017
THE ASHTON CARE HOME&&SARO3106,Private Contractors,29107,25/08/2017
THE ASHTON CARE HOME&&SARO3106,Residential,-1741.72,25/08/2017
THE ASHTON CARE HOME&&SARO3106,Residential,29107,25/08/2017
THE CHANTRY&&SARO3073,Residential,-3870,25/08/2017
THE CHANTRY&&SARO3073,Residential,-2253.2,25/08/2017
THE CHANTRY&&SARO3073,Residential,90332.48,25/08/2017
Thera South Midlands,Private Contractors,984.5,09/08/2017
Thera South Midlands,Private Contractors,1809.5,31/08/2017
Thera South Midlands,Private Contractors,2422,31/08/2017
Thera South Midlands,Supported Living,588,07/08/2017
Thera South Midlands,Supported Living,1092,07/08/2017
Thera South Midlands,Supported Living,1092,18/08/2017
Thera South Midlands,Supported Living,1484,18/08/2017
THE SYSTON DAY NURSERY&&EYRSEY499967,Grants,2810.25,17/08/2017
Thomas Estley Community College Academy,Other Services,1790,25/08/2017
Thomas Estley Community College Academy,Payment to Ext SEN Providers,2176,25/08/2017
THORNBECK COLLEGE&&SSAROE66277,Residential,6716.52,23/08/2017
Thringstone Primary School Academy,Payment to Ext SEN Providers,1072,25/08/2017
REDACTED PERSONAL DATA,Residential,9396.84,25/08/2017
TODAYWISE LTD&&SSAROE40280,Residential,27320,25/08/2017
Toms Taxis,S.E.N. Taxi Hire,500,25/08/2017
Toms Taxis,S.E.N. Taxi Hire,520,25/08/2017
Toms Taxis,S.E.N. Taxi Hire,540,25/08/2017
Toms Taxis,S.E.N. Taxi Hire,600,04/08/2017
Toms Taxis,S.E.N. Taxi Hire,600,25/08/2017
Toms Taxis,S.E.N. Taxi Hire,660,25/08/2017
Toms Taxis,S.E.N. Taxi Hire,880,04/08/2017
Toms Taxis,S.E.N. Taxi Hire,950,04/08/2017
Toms Taxis,S.E.N. Taxi Hire,1080,04/08/2017
Toms Taxis,S.E.N. Taxi Hire,1200,04/08/2017
Toms Taxis,S.E.N. Taxi Hire,1300,04/08/2017
Topps Express Ltd,Personal Accounts - Govt Depts,540,30/08/2017
Topps Express Ltd,Personal Accounts - Govt Depts,1334.4,04/08/2017
Topps Express Ltd,Personal Accounts - Govt Depts,1404,30/08/2017
Topps Express Ltd,Personal Accounts - Govt Depts,1764,04/08/2017
Topps Express Ltd,Personal Accounts - Govt Depts,1854,30/08/2017
Topps Express Ltd,Recharge of Pooled Transp Cost,570,30/08/2017
Topps Express Ltd,Recharge of Pooled Transp Cost,1334.4,04/08/2017
Topps Express Ltd,Recharge of Pooled Transp Cost,1404,30/08/2017
Topps Express Ltd,Recharge of Pooled Transp Cost,1672.38,11/08/2017
Topps Express Ltd,Recharge of Pooled Transp Cost,1764,04/08/2017
Topps Express Ltd,Recharge of Pooled Transp Cost,1854,30/08/2017
Topps Express Ltd,Recharge of Pooled Transp Cost,3716.4,04/08/2017
Topps Express Ltd,S.E.N. Taxi Hire,621.6,11/08/2017
Topps Express Ltd,S.E.N. Taxi Hire,1420.8,04/08/2017
Topps Express Ltd,S.E.N. Taxi Hire,1560,11/08/2017
Topps Express Ltd,S.E.N. Taxi Hire,1672.38,11/08/2017
Topps Express Ltd,S.E.N. Taxi Hire,1680,11/08/2017
Topps Express Ltd,S.E.N. Taxi Hire,2148,11/08/2017
Topps Express Ltd,S.E.N. Taxi Hire,2160,11/08/2017
Topps Express Ltd,S.E.N. Taxi Hire,2772,11/08/2017
Topps Express Ltd,S.E.N. Taxi Hire,3042,30/08/2017
Topps Express Ltd,S.E.N. Taxi Hire,3120,04/08/2017
Topps Express Ltd,S.E.N. Taxi Hire,3716.4,04/08/2017
Topps Express Ltd,S.E.N. Taxi Hire,4296,04/08/2017
Topps Express Ltd,S.E.N. Taxi Hire,4320,04/08/2017
Topps Express Ltd,S.E.N. Taxi Hire,4680,04/08/2017
Topps Express Ltd,S.E.N. Taxi Hire,4800,04/08/2017
Topps Express Ltd,S.E.N. Taxi Hire,5544,04/08/2017
Total Travel,Home to Sch Trans - Buses,958.77,18/08/2017
Total Travel,Home to Sch Trans - Buses,1180.35,18/08/2017
Total Travel,Home to Sch Trans - Buses,1457.3,18/08/2017
Townlands CE Primary Academy,Children&Families Spprt Servs,1718.4,25/08/2017
Townlands CE Primary Academy,Payment to Ext SEN Providers,836,25/08/2017
TRACS 2005&&SSARO1081,Residential,7080,25/08/2017
TRACS LTD&&SSARO3235,Residential,12028,25/08/2017
TRACS LTD&&SSAROE62040,Residential,2614,25/08/2017
TRBL CARE HOME T/A GALANOS HOUSE&&SSARO1509,Private Contractors,1848.2,25/08/2017
Treehouse Care Fostering Solutions Ltd,Other Agency & Cont Services,4751.68,18/08/2017
Treehouse Care Fostering Solutions Ltd,Other Agency & Cont Services,4751.68,29/08/2017
Trustees of the Newline Pension Scheme,Rent,24750,07/08/2017
Tugby CE Primary School Academy,Payment to Ext SEN Providers,542,25/08/2017
UNDERLEY SCHOOLS LTD&&SSARO1867,Residential,9230.52,25/08/2017
Unison Leicestershire County Branch,Fees & Charges (833),28234.44,10/08/2017
Unison Leicestershire County Branch,Suspense,28234.44,10/08/2017
UNITED RESPONSE&&SSAROE79,Residential,5728.96,25/08/2017
University Hospitals of Leicester NHS Trust,Minimum Cost Contracts,3633.21,22/08/2017
University of Birmingham,Training Expenses,-634,04/08/2017
University of Birmingham,Training Expenses,634,04/08/2017
REDACTED PERSONAL DATA,Other Agency & Cont Services,2500,17/08/2017
REDACTED PERSONAL DATA,Provisions,802.4,11/08/2017
REDACTED PERSONAL DATA,Provisions,836.53,03/08/2017
REDACTED PERSONAL DATA,Provisions,950.06,04/08/2017
VENETIA HOUSE&&SSAROE40411,Residential,3218.56,25/08/2017
Victoria Cabs     1,Personal Accounts - Govt Depts,1902.6,31/08/2017
Victoria Cabs     1,Personal Accounts - Govt Depts,1993.2,04/08/2017
Victoria Cabs     1,Recharge of Pooled Transp Cost,1197,04/08/2017
Victoria Cabs     1,Recharge of Pooled Transp Cost,1548,04/08/2017
Victoria Cabs     1,Recharge of Pooled Transp Cost,1584,31/08/2017
Victoria Cabs     1,Recharge of Pooled Transp Cost,1902.6,31/08/2017
Victoria Cabs     1,Recharge of Pooled Transp Cost,1993.2,04/08/2017
Victoria Cabs     1,Recharge of Pooled Transp Cost,3009.6,04/08/2017
Victoria Cabs     1,S.E.N. Taxi Hire,503.16,31/08/2017
Victoria Cabs     1,S.E.N. Taxi Hire,1221.96,04/08/2017
Victoria Cabs     1,S.E.N. Taxi Hire,525,31/08/2017
Victoria Cabs     1,S.E.N. Taxi Hire,924,31/08/2017
Victoria Cabs     1,S.E.N. Taxi Hire,1050,31/08/2017
Victoria Cabs     1,S.E.N. Taxi Hire,1260,04/08/2017
Victoria Cabs     1,S.E.N. Taxi Hire,1848,04/08/2017
Victoria Cabs     1,S.E.N. Taxi Hire,2100,04/08/2017
Victoria Cabs     1,S.E.N. Taxi Hire,2851.2,04/08/2017
Victoria Cabs     1,S.E.N. Taxi Hire,3247.2,31/08/2017
Victoria Cabs     1,S.E.N. Taxi Hire,3420,31/08/2017
Victoria Cabs     1,S.E.N. Taxi Hire,4446,04/08/2017
VILLAGE HOMECARE LTD&&ISHC2754,Home Care / Domiciliary,5772.91,11/08/2017
Viscount Beaumonts CE Aided Primary School,Children&Families Spprt Servs,1693.55,07/08/2017
Vista        1,Grants,3613,30/08/2017
Vista        1,Private Contractors,516,11/08/2017
Vista        1,Private Contractors,575.8,11/08/2017
Vista        1,Private Contractors,636.81,11/08/2017
Vista        1,Private Contractors,826.41,11/08/2017
Vista        1,Private Contractors,884.3,11/08/2017
Vista        1,Private Contractors,1093.48,11/08/2017
Vista        1,Private Contractors,1151.63,11/08/2017
REDACTED PERSONAL DATA,Consultants & Specialists,3287.02,04/08/2017
Vix Technology Limited,Prior Year Adjustments,28200.07,25/08/2017
V&L CORPORATION LTD&&SSAROE40238,Private Contractors,4608.16,25/08/2017
V&L CORPORATION LTD&&SSAROE40238,Private Contractors,37939.14,25/08/2017
V&L CORPORATION LTD&&SSAROE40238,Residential,531,25/08/2017
V&L CORPORATION LTD&&SSAROE40238,Residential,682.71,25/08/2017
V&L CORPORATION LTD&&SSAROE40238,Residential,892,25/08/2017
V&L CORPORATION LTD&&SSAROE40238,Residential,1940.57,25/08/2017
V&L CORPORATION LTD&&SSAROE40238,Residential,4608.16,25/08/2017
V&L CORPORATION LTD&&SSAROE40238,Residential,37939.14,25/08/2017
Voluntary Action Rutland,Recharge of Pooled Transp Cost,533.48,22/08/2017
Voluntary Action Rutland,Recharge of Pooled Transp Cost,570.6,25/08/2017
Voluntary Action South Leicestershire     1,Voluntary Associations,15833.33,25/08/2017
Volunteer Centre Castle Donington,Minimum Cost Contracts,11372,11/08/2017
Volunteer Centre Castle Donington,Voluntary Associations,11372,11/08/2017
VOYAGE 1 LTD&&SSAROE2344,Residential,-12666.96,25/08/2017
VOYAGE 1 LTD&&SSAROE2344,Residential,-11712.16,25/08/2017
VOYAGE 1 LTD&&SSAROE2344,Residential,-7276,25/08/2017
VOYAGE 1 LTD&&SSAROE2344,Residential,-7016.14,25/08/2017
VOYAGE 1 LTD&&SSAROE2344,Residential,-5976.71,25/08/2017
VOYAGE 1 LTD&&SSAROE2344,Residential,-1299.29,25/08/2017
VOYAGE 1 LTD&&SSAROE2344,Residential,-577.6,25/08/2017
VOYAGE 1 LTD&&SSAROE2344,Residential,613.13,25/08/2017
VOYAGE 1 LTD&&SSAROE2344,Residential,1299.29,25/08/2017
VOYAGE 1 LTD&&SSAROE2344,Residential,5722.56,25/08/2017
VOYAGE 1 LTD&&SSAROE2344,Residential,5976.71,25/08/2017
VOYAGE 1 LTD&&SSAROE2344,Residential,6657.2,25/08/2017
VOYAGE 1 LTD&&SSAROE2344,Residential,7016.14,25/08/2017
VOYAGE 1 LTD&&SSAROE2344,Residential,7276,25/08/2017
VOYAGE 1 LTD&&SSAROE2344,Residential,23314.52,25/08/2017
VOYAGE CARE 20 TOWNGATE&&SSARO3296,Residential,7812,25/08/2017
VOYAGE LTD&&SSAROE1094,Residential,31204,25/08/2017
REDACTED PERSONAL DATA,Residential,-1632,25/08/2017
REDACTED PERSONAL DATA,Residential,572,25/08/2017
REDACTED PERSONAL DATA,Residential,2061,25/08/2017
REDACTED PERSONAL DATA,Residential,23988,25/08/2017
WELFORD COURT LTD&&SSAROE40193,Residential,557.15,25/08/2017
WELFORD COURT LTD&&SSAROE40193,Residential,1659.56,25/08/2017
Welland Park Community College Academy,Payment to Ext SEN Providers,1401,25/08/2017
Westcotes House Ltd,Other Agency & Cont Services,13749.59,29/08/2017
Westcotes House Ltd,Other Transfer Payments,4050,04/08/2017
Westcotes House Ltd,Other Transfer Payments,13749.59,03/08/2017
West End Taxis,Personal Accounts - Govt Depts,1619.76,04/08/2017
West End Taxis,Recharge of Pooled Transp Cost,1320,04/08/2017
West End Taxis,Recharge of Pooled Transp Cost,1600,04/08/2017
West End Taxis,S.E.N. Taxi Hire,1619.76,04/08/2017
WESTERN PARK (LEICESTER) LTD&&SSAROE73278,Private Contractors,-1484.25,25/08/2017
WESTERN PARK (LEICESTER) LTD&&SSAROE73278,Private Contractors,5354.24,25/08/2017
WESTERN PARK (LEICESTER) LTD&&SSAROE73278,Residential,5354.24,25/08/2017
WESTMINSTER HEALTH CARE LTD NEWTON HOUSE RECEIPTS A/C&&SSAROE47130,Private Contractors,13455.2,25/08/2017
WESTMINSTER HEALTH CARE LTD NEWTON HOUSE RECEIPTS A/C&&SSAROE47130,Residential,13455.2,25/08/2017
WESTMINSTER HOMECARE LTD&&ISHCHC420,Home Care / Domiciliary,-563.18,11/08/2017
WESTMINSTER HOMECARE LTD&&ISHCHC420,Home Care / Domiciliary,642.68,11/08/2017
WESTMINSTER HOMECARE LTD&&ISHCHC420,Home Care / Domiciliary,1153.24,11/08/2017
WESTMINSTER HOMECARE LTD&&ISHCHC420,Home Care / Domiciliary,5934.88,11/08/2017
WESTROYD HOUSE COUNTY HEALTH CARE&&SSAROE40326,Residential,-1465.43,25/08/2017
WESTROYD HOUSE COUNTY HEALTH CARE&&SSAROE40326,Residential,-1049.14,25/08/2017
WESTROYD HOUSE COUNTY HEALTH CARE&&SSAROE40326,Residential,1784,25/08/2017
WESTROYD HOUSE COUNTY HEALTH CARE&&SSAROE40326,Residential,3568,25/08/2017
WESTROYD HOUSE COUNTY HEALTH CARE&&SSAROE40326,Residential,43428,25/08/2017
WHM Work Connections,Private Contractors,3770,18/08/2017
WHM Work Connections,Private Contractors,3950,25/08/2017
WHM Work Connections,Private Contractors,4270,11/08/2017
WHM Work Connections,Private Contractors,4588,04/08/2017
WHM Work Connections,Private Contractors,4895,03/08/2017
WHM Work Connections,Private Contractors,5018,03/08/2017
WHM Work Connections,Private Contractors,5150,03/08/2017
WHM Work Connections,Private Contractors,6248,03/08/2017
WHYTECLIFFE LTD T/A ARUNDEL PARK LODGE GLENTWORTH HOUSE NURSING HOME&&SSARO2984,Private Contractors,2224,25/08/2017
Wigston Academies Trust T/A Wigston College,Payment to Ext SEN Providers,706,25/08/2017
Wigston Academy Trust,Payment to Ext SEN Providers,-5834,25/08/2017
Wigston Academy Trust,Payment to Ext SEN Providers,3611,25/08/2017
Wigston Academy Trust,Payment to Ext SEN Providers,4189,25/08/2017
Wigston Academy Trust,Payment to Ext SEN Providers,6310,25/08/2017
"WILLOW HOUSE&&SSARO3150",Residential,33828,25/08/2017
Wilsons Solicitors LLP,Managed/Traditional Services,1275.78,22/08/2017
Witherley C E Primary School,Devolved Capital,3081.75,23/08/2017
WJ South Ltd,Private Contractors,144811.34,03/08/2017
Womens Aid Leicestershire Ltd    1,Voluntary Associations,9605.25,25/08/2017
Woodbrook Vale School Academy,Payment to Ext SEN Providers,1308,25/08/2017
WOODWAY CARERS LTD T/A WOODWAY HOUSE&&SSAROE40468,Residential,1340,25/08/2017
WOODWAY CARERS LTD T/A WOODWAY HOUSE&&SSAROE40468,Residential,25864,25/08/2017
Worcestershire County Council,Consultants & Specialists,7261.34,01/08/2017
Worcestershire County Council,Other Local Authorities,1292.31,01/08/2017
Worcestershire County Council,Other Local Authorities,2369.23,01/08/2017
Wreake Valley Academy,Payment to Ext SEN Providers,2242,25/08/2017
WYCAR LEYS (BULWELL) LTD&&SSAROE948,Residential,15428,25/08/2017
WYCAR LEYS LEICESTER LTD&&SSARO2168,Residential,18949.12,25/08/2017
WYCAR LEYS LTD&&SSAROE609,Residential,20597.96,25/08/2017
YOUR HEALTH LTD&&SSAROE266,Nursing,-693.88,25/08/2017
YOUR HEALTH LTD&&SSAROE266,Nursing,-569.97,25/08/2017
YOUR HEALTH LTD&&SSAROE266,Private Contractors,-693.88,25/08/2017
YOUR HEALTH LTD&&SSAROE266,Private Contractors,-569.97,25/08/2017
YOUR HEALTH LTD&&SSAROE266,Private Contractors,13771.52,25/08/2017
YOUR HEALTH LTD&&SSAROE266,Residential,-693.88,25/08/2017
YOUR HEALTH LTD&&SSAROE266,Residential,-569.97,25/08/2017
YOUR HEALTH LTD&&SSAROE266,Residential,13771.52,25/08/2017
YOUR HEALTH LTD&&SSAROE40355,Residential,2061.72,25/08/2017
YOUR HEALTH LTD T/A WESTWOOD HOUSE&&SSAROE953,Residential,-1328.86,25/08/2017
YOUR HEALTH LTD T/A WESTWOOD HOUSE&&SSAROE953,Residential,606.86,25/08/2017
YOUR HEALTH LTD T/A WESTWOOD HOUSE&&SSAROE953,Residential,11384,25/08/2017
Youth Justice Board,Public Bodies,5730,25/08/2017
Youth Justice Board,Public Bodies,5921,16/08/2017
Youth Justice Board,Public Bodies,5921,29/08/2017
REDACTED PERSONAL DATA,S.E.N. Taxi Hire,760,18/08/2017
REDACTED PERSONAL DATA,S.E.N. Taxi Hire,997.5,18/08/2017
REDACTED PERSONAL DATA,S.E.N. Taxi Hire,1600,04/08/2017
REDACTED PERSONAL DATA,S.E.N. Taxi Hire,1942.5,04/08/2017
REDACTED PERSONAL DATA,S.E.N. Taxi Hire,1946,18/08/2017
REDACTED PERSONAL DATA,S.E.N. Taxi Hire,2641,04/08/2017
